NUMERO_MANDATO;RIGA_MANDATO;QUIET;IMPORTO_RIGA;IMPORTO_MANDATO;BENEFICIARIO;CIG;DATA_MANDATO;CAPITOLO;ARTICOLO;NUMERO_IMPEGNO;TITOLO;DESCR_TITOLO;LIVELLO_II;DESCR_LIVELLO_II;LIVELLO_III;DESCR_LIVELLO_III;LIVELLO_IV;DESCR_LIVELLO_IV;LIVELLO_V;DESCR_LIVELLO_V;DATA_PAG_EFF
1;1;9999999;233,73;593,23;ENEL ENERGIA SPA;9072556E0B;09/01/2023;2973;0;572;1;Spese correnti;3;Acquisto di beni e servizi;2;Acquisto di servizi;5;Utenze e canoni;4;Energia elettrica;11/01/2023
1;2;9999999;359,5;593,23;ENEL ENERGIA SPA;9072556E0B;09/01/2023;2973;0;572;1;Spese correnti;3;Acquisto di beni e servizi;2;Acquisto di servizi;5;Utenze e canoni;4;Energia elettrica;11/01/2023
2;1;9999999;6,72;1.136,98;ENEL ENERGIA SPA;9072556E0B;09/01/2023;5931;0;571;1;Spese correnti;3;Acquisto di beni e servizi;2;Acquisto di servizi;5;Utenze e canoni;4;Energia elettrica;11/01/2023
2;2;9999999;10,85;1.136,98;ENEL ENERGIA SPA;9072556E0B;09/01/2023;5931;0;571;1;Spese correnti;3;Acquisto di beni e servizi;2;Acquisto di servizi;5;Utenze e canoni;4;Energia elettrica;11/01/2023
2;3;9999999;59,94;1.136,98;ENEL ENERGIA SPA;9072556E0B;09/01/2023;5931;0;571;1;Spese correnti;3;Acquisto di beni e servizi;2;Acquisto di servizi;5;Utenze e canoni;4;Energia elettrica;11/01/2023
2;4;9999999;61,7;1.136,98;ENEL ENERGIA SPA;9072556E0B;09/01/2023;5931;0;571;1;Spese correnti;3;Acquisto di beni e servizi;2;Acquisto di servizi;5;Utenze e canoni;4;Energia elettrica;11/01/2023
2;5;9999999;68,36;1.136,98;ENEL ENERGIA SPA;9072556E0B;09/01/2023;5931;0;571;1;Spese correnti;3;Acquisto di beni e servizi;2;Acquisto di servizi;5;Utenze e canoni;4;Energia elettrica;11/01/2023
2;6;9999999;74,29;1.136,98;ENEL ENERGIA SPA;9072556E0B;09/01/2023;5931;0;571;1;Spese correnti;3;Acquisto di beni e servizi;2;Acquisto di servizi;5;Utenze e canoni;4;Energia elettrica;11/01/2023
2;7;9999999;102,08;1.136,98;ENEL ENERGIA SPA;9072556E0B;09/01/2023;5931;0;571;1;Spese correnti;3;Acquisto di beni e servizi;2;Acquisto di servizi;5;Utenze e canoni;4;Energia elettrica;11/01/2023
2;8;9999999;139,43;1.136,98;ENEL ENERGIA SPA;9072556E0B;09/01/2023;5931;0;571;1;Spese correnti;3;Acquisto di beni e servizi;2;Acquisto di servizi;5;Utenze e canoni;4;Energia elettrica;11/01/2023
2;9;9999999;613,61;1.136,98;ENEL ENERGIA SPA;9072556E0B;09/01/2023;5931;0;571;1;Spese correnti;3;Acquisto di beni e servizi;2;Acquisto di servizi;5;Utenze e canoni;4;Energia elettrica;11/01/2023
3;1;9999999;67,88;149,86;ENEL ENERGIA SPA;9072556E0B;09/01/2023;6461;0;546;1;Spese correnti;3;Acquisto di beni e servizi;2;Acquisto di servizi;5;Utenze e canoni;4;Energia elettrica;11/01/2023
3;2;9999999;81,98;149,86;ENEL ENERGIA SPA;9072556E0B;09/01/2023;6461;0;546;1;Spese correnti;3;Acquisto di beni e servizi;2;Acquisto di servizi;5;Utenze e canoni;4;Energia elettrica;11/01/2023
4;1;9999999;17,01;42.702,05;ENEL ENERGIA SPA;9072556E0B;09/01/2023;5930;0;545;1;Spese correnti;3;Acquisto di beni e servizi;2;Acquisto di servizi;5;Utenze e canoni;4;Energia elettrica;11/01/2023
4;2;9999999;17,65;42.702,05;ENEL ENERGIA SPA;9072556E0B;09/01/2023;5930;0;545;1;Spese correnti;3;Acquisto di beni e servizi;2;Acquisto di servizi;5;Utenze e canoni;4;Energia elettrica;11/01/2023
4;3;9999999;22,73;42.702,05;ENEL ENERGIA SPA;9072556E0B;09/01/2023;5930;0;545;1;Spese correnti;3;Acquisto di beni e servizi;2;Acquisto di servizi;5;Utenze e canoni;4;Energia elettrica;11/01/2023
4;4;9999999;32,87;42.702,05;ENEL ENERGIA SPA;9072556E0B;09/01/2023;5930;0;545;1;Spese correnti;3;Acquisto di beni e servizi;2;Acquisto di servizi;5;Utenze e canoni;4;Energia elettrica;11/01/2023
4;5;9999999;34,57;42.702,05;ENEL ENERGIA SPA;9072556E0B;09/01/2023;5930;0;545;1;Spese correnti;3;Acquisto di beni e servizi;2;Acquisto di servizi;5;Utenze e canoni;4;Energia elettrica;11/01/2023
4;6;9999999;36,83;42.702,05;ENEL ENERGIA SPA;9072556E0B;09/01/2023;5930;0;545;1;Spese correnti;3;Acquisto di beni e servizi;2;Acquisto di servizi;5;Utenze e canoni;4;Energia elettrica;11/01/2023
4;7;9999999;42,29;42.702,05;ENEL ENERGIA SPA;9072556E0B;09/01/2023;5930;0;545;1;Spese correnti;3;Acquisto di beni e servizi;2;Acquisto di servizi;5;Utenze e canoni;4;Energia elettrica;11/01/2023
4;8;9999999;43,62;42.702,05;ENEL ENERGIA SPA;9072556E0B;09/01/2023;5930;0;545;1;Spese correnti;3;Acquisto di beni e servizi;2;Acquisto di servizi;5;Utenze e canoni;4;Energia elettrica;11/01/2023
4;9;9999999;47,93;42.702,05;ENEL ENERGIA SPA;9072556E0B;09/01/2023;5930;0;545;1;Spese correnti;3;Acquisto di beni e servizi;2;Acquisto di servizi;5;Utenze e canoni;4;Energia elettrica;11/01/2023
4;10;9999999;50,18;42.702,05;ENEL ENERGIA SPA;9072556E0B;09/01/2023;5930;0;545;1;Spese correnti;3;Acquisto di beni e servizi;2;Acquisto di servizi;5;Utenze e canoni;4;Energia elettrica;11/01/2023
4;11;9999999;51,95;42.702,05;ENEL ENERGIA SPA;9072556E0B;09/01/2023;5930;0;545;1;Spese correnti;3;Acquisto di beni e servizi;2;Acquisto di servizi;5;Utenze e canoni;4;Energia elettrica;11/01/2023
4;12;9999999;57,57;42.702,05;ENEL ENERGIA SPA;9072556E0B;09/01/2023;5930;0;545;1;Spese correnti;3;Acquisto di beni e servizi;2;Acquisto di servizi;5;Utenze e canoni;4;Energia elettrica;11/01/2023
4;13;9999999;62,72;42.702,05;ENEL ENERGIA SPA;9072556E0B;09/01/2023;5930;0;545;1;Spese correnti;3;Acquisto di beni e servizi;2;Acquisto di servizi;5;Utenze e canoni;4;Energia elettrica;11/01/2023
4;14;9999999;67,09;42.702,05;ENEL ENERGIA SPA;9072556E0B;09/01/2023;5930;0;545;1;Spese correnti;3;Acquisto di beni e servizi;2;Acquisto di servizi;5;Utenze e canoni;4;Energia elettrica;11/01/2023
4;15;9999999;67,73;42.702,05;ENEL ENERGIA SPA;9072556E0B;09/01/2023;5930;0;545;1;Spese correnti;3;Acquisto di beni e servizi;2;Acquisto di servizi;5;Utenze e canoni;4;Energia elettrica;11/01/2023
4;16;9999999;80,46;42.702,05;ENEL ENERGIA SPA;9072556E0B;09/01/2023;5930;0;545;1;Spese correnti;3;Acquisto di beni e servizi;2;Acquisto di servizi;5;Utenze e canoni;4;Energia elettrica;11/01/2023
4;17;9999999;81,39;42.702,05;ENEL ENERGIA SPA;9072556E0B;09/01/2023;5930;0;545;1;Spese correnti;3;Acquisto di beni e servizi;2;Acquisto di servizi;5;Utenze e canoni;4;Energia elettrica;11/01/2023
4;18;9999999;88,46;42.702,05;ENEL ENERGIA SPA;9072556E0B;09/01/2023;5930;0;545;1;Spese correnti;3;Acquisto di beni e servizi;2;Acquisto di servizi;5;Utenze e canoni;4;Energia elettrica;11/01/2023
4;19;9999999;89,38;42.702,05;ENEL ENERGIA SPA;9072556E0B;09/01/2023;5930;0;545;1;Spese correnti;3;Acquisto di beni e servizi;2;Acquisto di servizi;5;Utenze e canoni;4;Energia elettrica;11/01/2023
4;20;9999999;95,88;42.702,05;ENEL ENERGIA SPA;9072556E0B;09/01/2023;5930;0;545;1;Spese correnti;3;Acquisto di beni e servizi;2;Acquisto di servizi;5;Utenze e canoni;4;Energia elettrica;11/01/2023
4;21;9999999;96,45;42.702,05;ENEL ENERGIA SPA;9072556E0B;09/01/2023;5930;0;545;1;Spese correnti;3;Acquisto di beni e servizi;2;Acquisto di servizi;5;Utenze e canoni;4;Energia elettrica;11/01/2023
4;22;9999999;107,65;42.702,05;ENEL ENERGIA SPA;9072556E0B;09/01/2023;5930;0;545;1;Spese correnti;3;Acquisto di beni e servizi;2;Acquisto di servizi;5;Utenze e canoni;4;Energia elettrica;11/01/2023
4;23;9999999;112,53;42.702,05;ENEL ENERGIA SPA;9072556E0B;09/01/2023;5930;0;545;1;Spese correnti;3;Acquisto di beni e servizi;2;Acquisto di servizi;5;Utenze e canoni;4;Energia elettrica;11/01/2023
4;24;9999999;121,6;42.702,05;ENEL ENERGIA SPA;9072556E0B;09/01/2023;5930;0;545;1;Spese correnti;3;Acquisto di beni e servizi;2;Acquisto di servizi;5;Utenze e canoni;4;Energia elettrica;11/01/2023
4;25;9999999;125,84;42.702,05;ENEL ENERGIA SPA;9072556E0B;09/01/2023;5930;0;545;1;Spese correnti;3;Acquisto di beni e servizi;2;Acquisto di servizi;5;Utenze e canoni;4;Energia elettrica;11/01/2023
4;26;9999999;140,35;42.702,05;ENEL ENERGIA SPA;9072556E0B;09/01/2023;5930;0;545;1;Spese correnti;3;Acquisto di beni e servizi;2;Acquisto di servizi;5;Utenze e canoni;4;Energia elettrica;11/01/2023
4;27;9999999;160,56;42.702,05;ENEL ENERGIA SPA;9072556E0B;09/01/2023;5930;0;545;1;Spese correnti;3;Acquisto di beni e servizi;2;Acquisto di servizi;5;Utenze e canoni;4;Energia elettrica;11/01/2023
4;28;9999999;172,89;42.702,05;ENEL ENERGIA SPA;9072556E0B;09/01/2023;5930;0;545;1;Spese correnti;3;Acquisto di beni e servizi;2;Acquisto di servizi;5;Utenze e canoni;4;Energia elettrica;11/01/2023
4;29;9999999;177,17;42.702,05;ENEL ENERGIA SPA;9072556E0B;09/01/2023;5930;0;545;1;Spese correnti;3;Acquisto di beni e servizi;2;Acquisto di servizi;5;Utenze e canoni;4;Energia elettrica;11/01/2023
4;30;9999999;192,26;42.702,05;ENEL ENERGIA SPA;9072556E0B;09/01/2023;5930;0;545;1;Spese correnti;3;Acquisto di beni e servizi;2;Acquisto di servizi;5;Utenze e canoni;4;Energia elettrica;11/01/2023
4;31;9999999;214,61;42.702,05;ENEL ENERGIA SPA;9072556E0B;09/01/2023;5930;0;545;1;Spese correnti;3;Acquisto di beni e servizi;2;Acquisto di servizi;5;Utenze e canoni;4;Energia elettrica;11/01/2023
4;32;9999999;263,17;42.702,05;ENEL ENERGIA SPA;9072556E0B;09/01/2023;5930;0;545;1;Spese correnti;3;Acquisto di beni e servizi;2;Acquisto di servizi;5;Utenze e canoni;4;Energia elettrica;11/01/2023
4;33;9999999;270,23;42.702,05;ENEL ENERGIA SPA;9072556E0B;09/01/2023;5930;0;545;1;Spese correnti;3;Acquisto di beni e servizi;2;Acquisto di servizi;5;Utenze e canoni;4;Energia elettrica;11/01/2023
4;34;9999999;276,68;42.702,05;ENEL ENERGIA SPA;9072556E0B;09/01/2023;5930;0;545;1;Spese correnti;3;Acquisto di beni e servizi;2;Acquisto di servizi;5;Utenze e canoni;4;Energia elettrica;11/01/2023
4;35;9999999;287,32;42.702,05;ENEL ENERGIA SPA;9072556E0B;09/01/2023;5930;0;545;1;Spese correnti;3;Acquisto di beni e servizi;2;Acquisto di servizi;5;Utenze e canoni;4;Energia elettrica;11/01/2023
4;36;9999999;290,67;42.702,05;ENEL ENERGIA SPA;9072556E0B;09/01/2023;5930;0;545;1;Spese correnti;3;Acquisto di beni e servizi;2;Acquisto di servizi;5;Utenze e canoni;4;Energia elettrica;11/01/2023
4;37;9999999;303,62;42.702,05;ENEL ENERGIA SPA;9072556E0B;09/01/2023;5930;0;545;1;Spese correnti;3;Acquisto di beni e servizi;2;Acquisto di servizi;5;Utenze e canoni;4;Energia elettrica;11/01/2023
4;38;9999999;355,35;42.702,05;ENEL ENERGIA SPA;9072556E0B;09/01/2023;5930;0;545;1;Spese correnti;3;Acquisto di beni e servizi;2;Acquisto di servizi;5;Utenze e canoni;4;Energia elettrica;11/01/2023
4;39;9999999;373,5;42.702,05;ENEL ENERGIA SPA;9072556E0B;09/01/2023;5930;0;545;1;Spese correnti;3;Acquisto di beni e servizi;2;Acquisto di servizi;5;Utenze e canoni;4;Energia elettrica;11/01/2023
4;40;9999999;374,81;42.702,05;ENEL ENERGIA SPA;9072556E0B;09/01/2023;5930;0;545;1;Spese correnti;3;Acquisto di beni e servizi;2;Acquisto di servizi;5;Utenze e canoni;4;Energia elettrica;11/01/2023
4;41;9999999;388,08;42.702,05;ENEL ENERGIA SPA;9072556E0B;09/01/2023;5930;0;545;1;Spese correnti;3;Acquisto di beni e servizi;2;Acquisto di servizi;5;Utenze e canoni;4;Energia elettrica;11/01/2023
4;42;9999999;410,03;42.702,05;ENEL ENERGIA SPA;9072556E0B;09/01/2023;5930;0;545;1;Spese correnti;3;Acquisto di beni e servizi;2;Acquisto di servizi;5;Utenze e canoni;4;Energia elettrica;11/01/2023
4;43;9999999;438,18;42.702,05;ENEL ENERGIA SPA;9072556E0B;09/01/2023;5930;0;545;1;Spese correnti;3;Acquisto di beni e servizi;2;Acquisto di servizi;5;Utenze e canoni;4;Energia elettrica;11/01/2023
4;44;9999999;453,35;42.702,05;ENEL ENERGIA SPA;9072556E0B;09/01/2023;5930;0;545;1;Spese correnti;3;Acquisto di beni e servizi;2;Acquisto di servizi;5;Utenze e canoni;4;Energia elettrica;11/01/2023
4;45;9999999;472,13;42.702,05;ENEL ENERGIA SPA;9072556E0B;09/01/2023;5930;0;545;1;Spese correnti;3;Acquisto di beni e servizi;2;Acquisto di servizi;5;Utenze e canoni;4;Energia elettrica;11/01/2023
4;46;9999999;501,03;42.702,05;ENEL ENERGIA SPA;9072556E0B;09/01/2023;5930;0;545;1;Spese correnti;3;Acquisto di beni e servizi;2;Acquisto di servizi;5;Utenze e canoni;4;Energia elettrica;11/01/2023
4;47;9999999;507,5;42.702,05;ENEL ENERGIA SPA;9072556E0B;09/01/2023;5930;0;545;1;Spese correnti;3;Acquisto di beni e servizi;2;Acquisto di servizi;5;Utenze e canoni;4;Energia elettrica;11/01/2023
4;48;9999999;512,41;42.702,05;ENEL ENERGIA SPA;9072556E0B;09/01/2023;5930;0;545;1;Spese correnti;3;Acquisto di beni e servizi;2;Acquisto di servizi;5;Utenze e canoni;4;Energia elettrica;11/01/2023
4;49;9999999;524,44;42.702,05;ENEL ENERGIA SPA;9072556E0B;09/01/2023;5930;0;545;1;Spese correnti;3;Acquisto di beni e servizi;2;Acquisto di servizi;5;Utenze e canoni;4;Energia elettrica;11/01/2023
4;50;9999999;524,54;42.702,05;ENEL ENERGIA SPA;9072556E0B;09/01/2023;5930;0;545;1;Spese correnti;3;Acquisto di beni e servizi;2;Acquisto di servizi;5;Utenze e canoni;4;Energia elettrica;11/01/2023
4;51;9999999;530,98;42.702,05;ENEL ENERGIA SPA;9072556E0B;09/01/2023;5930;0;545;1;Spese correnti;3;Acquisto di beni e servizi;2;Acquisto di servizi;5;Utenze e canoni;4;Energia elettrica;11/01/2023
4;52;9999999;551,39;42.702,05;ENEL ENERGIA SPA;9072556E0B;09/01/2023;5930;0;545;1;Spese correnti;3;Acquisto di beni e servizi;2;Acquisto di servizi;5;Utenze e canoni;4;Energia elettrica;11/01/2023
4;53;9999999;603,18;42.702,05;ENEL ENERGIA SPA;9072556E0B;09/01/2023;5930;0;545;1;Spese correnti;3;Acquisto di beni e servizi;2;Acquisto di servizi;5;Utenze e canoni;4;Energia elettrica;11/01/2023
4;54;9999999;631,46;42.702,05;ENEL ENERGIA SPA;9072556E0B;09/01/2023;5930;0;545;1;Spese correnti;3;Acquisto di beni e servizi;2;Acquisto di servizi;5;Utenze e canoni;4;Energia elettrica;11/01/2023
4;55;9999999;632,39;42.702,05;ENEL ENERGIA SPA;9072556E0B;09/01/2023;5930;0;545;1;Spese correnti;3;Acquisto di beni e servizi;2;Acquisto di servizi;5;Utenze e canoni;4;Energia elettrica;11/01/2023
4;56;9999999;685,43;42.702,05;ENEL ENERGIA SPA;9072556E0B;09/01/2023;5930;0;545;1;Spese correnti;3;Acquisto di beni e servizi;2;Acquisto di servizi;5;Utenze e canoni;4;Energia elettrica;11/01/2023
4;57;9999999;727,63;42.702,05;ENEL ENERGIA SPA;9072556E0B;09/01/2023;5930;0;545;1;Spese correnti;3;Acquisto di beni e servizi;2;Acquisto di servizi;5;Utenze e canoni;4;Energia elettrica;11/01/2023
4;58;9999999;742,81;42.702,05;ENEL ENERGIA SPA;9072556E0B;09/01/2023;5930;0;545;1;Spese correnti;3;Acquisto di beni e servizi;2;Acquisto di servizi;5;Utenze e canoni;4;Energia elettrica;11/01/2023
4;59;9999999;754,25;42.702,05;ENEL ENERGIA SPA;9072556E0B;09/01/2023;5930;0;545;1;Spese correnti;3;Acquisto di beni e servizi;2;Acquisto di servizi;5;Utenze e canoni;4;Energia elettrica;11/01/2023
4;60;9999999;757,03;42.702,05;ENEL ENERGIA SPA;9072556E0B;09/01/2023;5930;0;545;1;Spese correnti;3;Acquisto di beni e servizi;2;Acquisto di servizi;5;Utenze e canoni;4;Energia elettrica;11/01/2023
4;61;9999999;792,57;42.702,05;ENEL ENERGIA SPA;9072556E0B;09/01/2023;5930;0;545;1;Spese correnti;3;Acquisto di beni e servizi;2;Acquisto di servizi;5;Utenze e canoni;4;Energia elettrica;11/01/2023
4;62;9999999;813,54;42.702,05;ENEL ENERGIA SPA;9072556E0B;09/01/2023;5930;0;545;1;Spese correnti;3;Acquisto di beni e servizi;2;Acquisto di servizi;5;Utenze e canoni;4;Energia elettrica;11/01/2023
4;63;9999999;829,09;42.702,05;ENEL ENERGIA SPA;9072556E0B;09/01/2023;5930;0;545;1;Spese correnti;3;Acquisto di beni e servizi;2;Acquisto di servizi;5;Utenze e canoni;4;Energia elettrica;11/01/2023
4;64;9999999;937,62;42.702,05;ENEL ENERGIA SPA;9072556E0B;09/01/2023;5930;0;545;1;Spese correnti;3;Acquisto di beni e servizi;2;Acquisto di servizi;5;Utenze e canoni;4;Energia elettrica;11/01/2023
4;65;9999999;987,61;42.702,05;ENEL ENERGIA SPA;9072556E0B;09/01/2023;5930;0;545;1;Spese correnti;3;Acquisto di beni e servizi;2;Acquisto di servizi;5;Utenze e canoni;4;Energia elettrica;11/01/2023
4;66;9999999;1.021,41;42.702,05;ENEL ENERGIA SPA;9072556E0B;09/01/2023;5930;0;545;1;Spese correnti;3;Acquisto di beni e servizi;2;Acquisto di servizi;5;Utenze e canoni;4;Energia elettrica;11/01/2023
4;67;9999999;1.070,60;42.702,05;ENEL ENERGIA SPA;9072556E0B;09/01/2023;5930;0;545;1;Spese correnti;3;Acquisto di beni e servizi;2;Acquisto di servizi;5;Utenze e canoni;4;Energia elettrica;11/01/2023
4;68;9999999;1.103,06;42.702,05;ENEL ENERGIA SPA;9072556E0B;09/01/2023;5930;0;545;1;Spese correnti;3;Acquisto di beni e servizi;2;Acquisto di servizi;5;Utenze e canoni;4;Energia elettrica;11/01/2023
4;69;9999999;1.407,61;42.702,05;ENEL ENERGIA SPA;9072556E0B;09/01/2023;5930;0;545;1;Spese correnti;3;Acquisto di beni e servizi;2;Acquisto di servizi;5;Utenze e canoni;4;Energia elettrica;11/01/2023
4;70;9999999;1.446,08;42.702,05;ENEL ENERGIA SPA;9072556E0B;09/01/2023;5930;0;545;1;Spese correnti;3;Acquisto di beni e servizi;2;Acquisto di servizi;5;Utenze e canoni;4;Energia elettrica;11/01/2023
4;71;9999999;1.775,73;42.702,05;ENEL ENERGIA SPA;9072556E0B;09/01/2023;5930;0;545;1;Spese correnti;3;Acquisto di beni e servizi;2;Acquisto di servizi;5;Utenze e canoni;4;Energia elettrica;11/01/2023
4;72;9999999;1.798,29;42.702,05;ENEL ENERGIA SPA;9072556E0B;09/01/2023;5930;0;545;1;Spese correnti;3;Acquisto di beni e servizi;2;Acquisto di servizi;5;Utenze e canoni;4;Energia elettrica;11/01/2023
4;73;9999999;2.087,22;42.702,05;ENEL ENERGIA SPA;9072556E0B;09/01/2023;5930;0;545;1;Spese correnti;3;Acquisto di beni e servizi;2;Acquisto di servizi;5;Utenze e canoni;4;Energia elettrica;11/01/2023
4;74;9999999;2.226,41;42.702,05;ENEL ENERGIA SPA;9072556E0B;09/01/2023;5930;0;545;1;Spese correnti;3;Acquisto di beni e servizi;2;Acquisto di servizi;5;Utenze e canoni;4;Energia elettrica;11/01/2023
4;75;9999999;2.300,44;42.702,05;ENEL ENERGIA SPA;9072556E0B;09/01/2023;5930;0;545;1;Spese correnti;3;Acquisto di beni e servizi;2;Acquisto di servizi;5;Utenze e canoni;4;Energia elettrica;11/01/2023
4;76;9999999;2.306,98;42.702,05;ENEL ENERGIA SPA;9072556E0B;09/01/2023;5930;0;545;1;Spese correnti;3;Acquisto di beni e servizi;2;Acquisto di servizi;5;Utenze e canoni;4;Energia elettrica;11/01/2023
4;77;9999999;2.943,98;42.702,05;ENEL ENERGIA SPA;9072556E0B;09/01/2023;5930;0;545;1;Spese correnti;3;Acquisto di beni e servizi;2;Acquisto di servizi;5;Utenze e canoni;4;Energia elettrica;11/01/2023
5;1;9999999;121,39;121,39;ENEL ENERGIA SPA;9072556E0B;09/01/2023;4686;1;544;1;Spese correnti;3;Acquisto di beni e servizi;2;Acquisto di servizi;5;Utenze e canoni;4;Energia elettrica;11/01/2023
6;1;9999999;1.394,31;1.394,31;ENEL ENERGIA SPA;9072556E0B;09/01/2023;4527;0;543;1;Spese correnti;3;Acquisto di beni e servizi;2;Acquisto di servizi;5;Utenze e canoni;4;Energia elettrica;11/01/2023
7;1;9999999;34,87;5.168,18;ENEL ENERGIA SPA;9072556E0B;09/01/2023;1801;0;542;1;Spese correnti;3;Acquisto di beni e servizi;2;Acquisto di servizi;5;Utenze e canoni;4;Energia elettrica;11/01/2023
7;2;9999999;246,44;5.168,18;ENEL ENERGIA SPA;9072556E0B;09/01/2023;1801;0;542;1;Spese correnti;3;Acquisto di beni e servizi;2;Acquisto di servizi;5;Utenze e canoni;4;Energia elettrica;11/01/2023
7;3;9999999;515,95;5.168,18;ENEL ENERGIA SPA;9072556E0B;09/01/2023;1801;0;542;1;Spese correnti;3;Acquisto di beni e servizi;2;Acquisto di servizi;5;Utenze e canoni;4;Energia elettrica;11/01/2023
7;4;9999999;629,45;5.168,18;ENEL ENERGIA SPA;9072556E0B;09/01/2023;1801;0;542;1;Spese correnti;3;Acquisto di beni e servizi;2;Acquisto di servizi;5;Utenze e canoni;4;Energia elettrica;11/01/2023
7;5;9999999;919;5.168,18;ENEL ENERGIA SPA;9072556E0B;09/01/2023;1801;0;542;1;Spese correnti;3;Acquisto di beni e servizi;2;Acquisto di servizi;5;Utenze e canoni;4;Energia elettrica;11/01/2023
7;6;9999999;2.822,47;5.168,18;ENEL ENERGIA SPA;9072556E0B;09/01/2023;1801;0;542;1;Spese correnti;3;Acquisto di beni e servizi;2;Acquisto di servizi;5;Utenze e canoni;4;Energia elettrica;11/01/2023
8;1;9999999;121,24;121,24;ENEL ENERGIA SPA;9072556E0B;09/01/2023;1346;0;321;1;Spese correnti;3;Acquisto di beni e servizi;2;Acquisto di servizi;5;Utenze e canoni;4;Energia elettrica;11/01/2023
9;1;9999999;250,5;1.702,79;SERENISSIMA RISTORAZIONE SPA;932853027C;09/01/2023;7553;1;733;1;Spese correnti;3;Acquisto di beni e servizi;2;Acquisto di servizi;15;Contratti di servizio pubblico;6;Contratti di servizio per le mense scolastiche;11/01/2023
9;2;9999999;649,95;1.702,79;SERENISSIMA RISTORAZIONE SPA;932853027C;09/01/2023;7553;1;733;1;Spese correnti;3;Acquisto di beni e servizi;2;Acquisto di servizi;15;Contratti di servizio pubblico;6;Contratti di servizio per le mense scolastiche;11/01/2023
9;3;9999999;802,34;1.702,79;SERENISSIMA RISTORAZIONE SPA;932853027C;09/01/2023;7553;1;733;1;Spese correnti;3;Acquisto di beni e servizi;2;Acquisto di servizi;15;Contratti di servizio pubblico;6;Contratti di servizio per le mense scolastiche;11/01/2023
10;1;9999999;525;13.077,72;SERENISSIMA RISTORAZIONE SPA;932853027C;09/01/2023;4261;0;732;1;Spese correnti;3;Acquisto di beni e servizi;2;Acquisto di servizi;15;Contratti di servizio pubblico;6;Contratti di servizio per le mense scolastiche;11/01/2023
10;2;9999999;577,64;13.077,72;SERENISSIMA RISTORAZIONE SPA;932853027C;09/01/2023;4261;0;732;1;Spese correnti;3;Acquisto di beni e servizi;2;Acquisto di servizi;15;Contratti di servizio pubblico;6;Contratti di servizio per le mense scolastiche;11/01/2023
10;3;9999999;780,76;13.077,72;SERENISSIMA RISTORAZIONE SPA;932853027C;09/01/2023;4261;0;732;1;Spese correnti;3;Acquisto di beni e servizi;2;Acquisto di servizi;15;Contratti di servizio pubblico;6;Contratti di servizio per le mense scolastiche;11/01/2023
10;4;9999999;902,3;13.077,72;SERENISSIMA RISTORAZIONE SPA;932853027C;09/01/2023;4261;0;732;1;Spese correnti;3;Acquisto di beni e servizi;2;Acquisto di servizi;15;Contratti di servizio pubblico;6;Contratti di servizio per le mense scolastiche;11/01/2023
10;5;9999999;1.750,32;13.077,72;SERENISSIMA RISTORAZIONE SPA;932853027C;09/01/2023;4261;0;732;1;Spese correnti;3;Acquisto di beni e servizi;2;Acquisto di servizi;15;Contratti di servizio pubblico;6;Contratti di servizio per le mense scolastiche;11/01/2023
10;6;9999999;4.060,24;13.077,72;SERENISSIMA RISTORAZIONE SPA;932853027C;09/01/2023;4261;0;732;1;Spese correnti;3;Acquisto di beni e servizi;2;Acquisto di servizi;15;Contratti di servizio pubblico;6;Contratti di servizio per le mense scolastiche;11/01/2023
10;7;9999999;4.481,46;13.077,72;SERENISSIMA RISTORAZIONE SPA;932853027C;09/01/2023;4261;0;732;1;Spese correnti;3;Acquisto di beni e servizi;2;Acquisto di servizi;15;Contratti di servizio pubblico;6;Contratti di servizio per le mense scolastiche;11/01/2023
11;1;9999999;217,62;4.357,23;SERENISSIMA RISTORAZIONE SPA;932853027C;09/01/2023;4260;0;731;1;Spese correnti;3;Acquisto di beni e servizi;2;Acquisto di servizi;15;Contratti di servizio pubblico;6;Contratti di servizio per le mense scolastiche;11/01/2023
11;2;9999999;217,62;4.357,23;SERENISSIMA RISTORAZIONE SPA;932853027C;09/01/2023;4260;0;731;1;Spese correnti;3;Acquisto di beni e servizi;2;Acquisto di servizi;15;Contratti di servizio pubblico;6;Contratti di servizio per le mense scolastiche;11/01/2023
11;3;9999999;236,96;4.357,23;SERENISSIMA RISTORAZIONE SPA;932853027C;09/01/2023;4260;0;731;1;Spese correnti;3;Acquisto di beni e servizi;2;Acquisto di servizi;15;Contratti di servizio pubblico;6;Contratti di servizio per le mense scolastiche;11/01/2023
11;4;9999999;710,89;4.357,23;SERENISSIMA RISTORAZIONE SPA;932853027C;09/01/2023;4260;0;731;1;Spese correnti;3;Acquisto di beni e servizi;2;Acquisto di servizi;15;Contratti di servizio pubblico;6;Contratti di servizio per le mense scolastiche;11/01/2023
11;5;9999999;1.349,24;4.357,23;SERENISSIMA RISTORAZIONE SPA;932853027C;09/01/2023;4260;0;731;1;Spese correnti;3;Acquisto di beni e servizi;2;Acquisto di servizi;15;Contratti di servizio pubblico;6;Contratti di servizio per le mense scolastiche;11/01/2023
11;6;9999999;1.624,90;4.357,23;SERENISSIMA RISTORAZIONE SPA;932853027C;09/01/2023;4260;0;731;1;Spese correnti;3;Acquisto di beni e servizi;2;Acquisto di servizi;15;Contratti di servizio pubblico;6;Contratti di servizio per le mense scolastiche;11/01/2023
12;1;9999999;79,3;79,3;MAGGIOLI SPA;Z08385AC08;09/01/2023;1470;0;1001;1;Spese correnti;3;Acquisto di beni e servizi;1;Acquisto di beni;2;Altri beni di consumo;1;Carta, cancelleria e stampati;11/01/2023
13;1;9999999;36,6;496,53;MAGGIOLI SPA;Z08385AC08;09/01/2023;1470;0;1001;1;Spese correnti;3;Acquisto di beni e servizi;1;Acquisto di beni;2;Altri beni di consumo;1;Carta, cancelleria e stampati;11/01/2023
13;2;9999999;459,93;496,53;MAGGIOLI SPA;Z08385AC08;09/01/2023;1470;0;1001;1;Spese correnti;3;Acquisto di beni e servizi;1;Acquisto di beni;2;Altri beni di consumo;1;Carta, cancelleria e stampati;11/01/2023
14;1;9999999;454,32;454,32;CONTARINA S.P.A.;ZDA34B8D27;09/01/2023;1194;0;130;1;Spese correnti;3;Acquisto di beni e servizi;2;Acquisto di servizi;5;Utenze e canoni;999;Utenze e canoni per altri servizi n.a.c.;11/01/2023
15;1;9999999;854;854;INIZIATIVE UNINDUSTRIA SRL; ;09/01/2023;8204;4;1150;1;Spese correnti;3;Acquisto di beni e servizi;2;Acquisto di servizi;99;Altri servizi;999;Altri servizi diversi n.a.c.;11/01/2023
16;1;9999999;353,8;353,8;INIZIATIVE UNINDUSTRIA SRL; ;09/01/2023;8204;4;153;1;Spese correnti;3;Acquisto di beni e servizi;2;Acquisto di servizi;99;Altri servizi;999;Altri servizi diversi n.a.c.;11/01/2023
17;1;9999999;7.250,00;7.250,00;LIDL ITALIA s.r.l.;ZDE38F2686;09/01/2023;8170;0;1178;1;Spese correnti;3;Acquisto di beni e servizi;1;Acquisto di beni;2;Altri beni di consumo;11;Generi alimentari;11/01/2023
18;1;9999999;502;502;I.R.S. - ISTITUTO PER LA RICERCA SOCIALE SOC. COOP.;ZBF356CF51;09/01/2023;564;0;338;1;Spese correnti;3;Acquisto di beni e servizi;2;Acquisto di servizi;4;Acquisto di servizi per formazione e addestramento del personale dell'ente;4;Acquisto di servizi per formazione obbligatoria;11/01/2023
19;1;9999999;8,42;8,42;F.LLI LANDO SPA;ZF638F271C;09/01/2023;8134;1;1187;1;Spese correnti;3;Acquisto di beni e servizi;1;Acquisto di beni;2;Altri beni di consumo;11;Generi alimentari;11/01/2023
20;1;9999999;7.241,58;7.241,58;F.LLI LANDO SPA;ZF638F271C;09/01/2023;8170;0;1186;1;Spese correnti;3;Acquisto di beni e servizi;1;Acquisto di beni;2;Altri beni di consumo;11;Generi alimentari;11/01/2023
21;1;9999999;193,35;193,35;AUTOFF.F.LLI DAL BO DI DAL BO MARIO & C. SAS;Z6E35C5CBC;09/01/2023;2422;1;364;1;Spese correnti;3;Acquisto di beni e servizi;2;Acquisto di servizi;9;Manutenzione ordinaria e riparazioni;1;Manutenzione ordinaria e riparazioni di mezzi di trasporto ad uso civile, di sicurezza e ordine pubblico;11/01/2023
22;1;9999999;70;70;DELFINO & PARTNERS SPA;Z32388C0DD;09/01/2023;557;0;1020;1;Spese correnti;3;Acquisto di beni e servizi;2;Acquisto di servizi;4;Acquisto di servizi per formazione e addestramento del personale dell'ente;999;Acquisto di servizi per altre spese per formazione e addestramento n.a.c.;11/01/2023
23;1;9999999;1.011,99;1.011,99;PULITORI ED AFFINI SPA;87752258BF;09/01/2023;1794;0;656;1;Spese correnti;3;Acquisto di beni e servizi;2;Acquisto di servizi;13;Servizi ausiliari per il funzionamento dell'ente;2;Servizi di pulizia e lavanderia;11/01/2023
24;1;9999999;3.999,99;3.999,99;PULITORI ED AFFINI SPA;87752258BF;09/01/2023;1794;0;656;1;Spese correnti;3;Acquisto di beni e servizi;2;Acquisto di servizi;13;Servizi ausiliari per il funzionamento dell'ente;2;Servizi di pulizia e lavanderia;11/01/2023
25;1;9999999;596,34;596,34;A.EMME TERMOIDRAULICA DI MANZATO ALESSANDRO;ZB938A9B85;09/01/2023;2760;0;1069;1;Spese correnti;3;Acquisto di beni e servizi;2;Acquisto di servizi;9;Manutenzione ordinaria e riparazioni;4;Manutenzione ordinaria e riparazioni di impianti e macchinari;11/01/2023
26;1;9999999;1.306,86;1.306,86;A.EMME TERMOIDRAULICA DI MANZATO ALESSANDRO;ZB938A9B85;09/01/2023;2770;1;1068;1;Spese correnti;3;Acquisto di beni e servizi;2;Acquisto di servizi;9;Manutenzione ordinaria e riparazioni;4;Manutenzione ordinaria e riparazioni di impianti e macchinari;11/01/2023
27;1;9999999;353,8;353,8;S.D.R. di ANTONELLO ROBERTO & C. SAS;ZA638A85BB;09/01/2023;5070;0;1056;1;Spese correnti;3;Acquisto di beni e servizi;2;Acquisto di servizi;9;Manutenzione ordinaria e riparazioni;4;Manutenzione ordinaria e riparazioni di impianti e macchinari;11/01/2023
28;1;9999999;696,62;696,62;LA SEMAFORICA S.R.L.;Z943912CDB;09/01/2023;5707;0;1209;1;Spese correnti;3;Acquisto di beni e servizi;2;Acquisto di servizi;9;Manutenzione ordinaria e riparazioni;4;Manutenzione ordinaria e riparazioni di impianti e macchinari;11/01/2023
29;1;9999999;488,32;488,32;TELECOM ITALIA S.P.A.;Z523435997;09/01/2023;1801;1;235;1;Spese correnti;3;Acquisto di beni e servizi;2;Acquisto di servizi;5;Utenze e canoni;2;Telefonia mobile;11/01/2023
30;1;9999999;2.336,04;2.336,04;TELECOM ITALIA S.P.A.;9,29E+10;09/01/2023;1801;1;610;1;Spese correnti;3;Acquisto di beni e servizi;2;Acquisto di servizi;5;Utenze e canoni;999;Utenze e canoni per altri servizi n.a.c.;11/01/2023
31;1;9999999;442,88;442,88;TELECOM ITALIA S.P.A.;9,29E+10;09/01/2023;2790;1;613;1;Spese correnti;3;Acquisto di beni e servizi;2;Acquisto di servizi;5;Utenze e canoni;999;Utenze e canoni per altri servizi n.a.c.;11/01/2023
32;1;9999999;135,3;135,3;TELECOM ITALIA S.P.A.;9,29E+10;09/01/2023;2792;1;611;1;Spese correnti;3;Acquisto di beni e servizi;2;Acquisto di servizi;5;Utenze e canoni;999;Utenze e canoni per altri servizi n.a.c.;11/01/2023
33;1;9999999;1.841,43;1.841,43;TELECOM ITALIA S.P.A.;9,29E+10;09/01/2023;2973;1;612;1;Spese correnti;3;Acquisto di beni e servizi;2;Acquisto di servizi;5;Utenze e canoni;999;Utenze e canoni per altri servizi n.a.c.;11/01/2023
34;1;9999999;151,04;151,04;TELECOM ITALIA S.P.A.;9,29E+10;09/01/2023;6642;0;838;1;Spese correnti;3;Acquisto di beni e servizi;2;Acquisto di servizi;5;Utenze e canoni;1;Telefonia fissa;11/01/2023
35;1;9999999;1.163,22;1.163,22;COMUNE DI PREGANZIOL; ;10/01/2023;11302;3;1380;2;Spese in conto capitale;2;Investimenti fissi lordi e acquisto di terreni;1;Beni materiali;9;Beni immobili;19;Fabbricati ad uso strumentale;13/01/2023
36;1;9999999;1.085,56;1.085,56;COMUNE DI PREGANZIOL; ;10/01/2023;13215;0;1339;2;Spese in conto capitale;2;Investimenti fissi lordi e acquisto di terreni;1;Beni materiali;9;Beni immobili;3;Fabbricati ad uso scolastico;13/01/2023
37;1;9999999;2.646,34;2.646,34;COMUNE DI PREGANZIOL; ;10/01/2023;11302;3;1380;2;Spese in conto capitale;2;Investimenti fissi lordi e acquisto di terreni;1;Beni materiali;9;Beni immobili;19;Fabbricati ad uso strumentale;13/01/2023
38;1;9999999;2.016,01;2.016,01;COMUNE DI PREGANZIOL; ;10/01/2023;13215;0;1339;2;Spese in conto capitale;2;Investimenti fissi lordi e acquisto di terreni;1;Beni materiali;9;Beni immobili;3;Fabbricati ad uso scolastico;13/01/2023
39;1;9999999;811,78;811,78;COMUNE DI PREGANZIOL; ;10/01/2023;13218;0;577;2;Spese in conto capitale;2;Investimenti fissi lordi e acquisto di terreni;1;Beni materiali;9;Beni immobili;3;Fabbricati ad uso scolastico;13/01/2023
40;1;9999999;437,1;437,1;COMUNE DI PREGANZIOL; ;10/01/2023;13218;0;577;2;Spese in conto capitale;2;Investimenti fissi lordi e acquisto di terreni;1;Beni materiali;9;Beni immobili;3;Fabbricati ad uso scolastico;13/01/2023
41;1;9999999;90;90;PUBLIKA S.R.L.;ZF537A92C8;10/01/2023;560;0;820;1;Spese correnti;3;Acquisto di beni e servizi;2;Acquisto di servizi;4;Acquisto di servizi per formazione e addestramento del personale dell'ente;999;Acquisto di servizi per altre spese per formazione e addestramento n.a.c.;13/01/2023
42;1;9999999;646,6;646,6;DIGITOUCH MARKETING SRL;Z0738124D9;10/01/2023;964;0;943;1;Spese correnti;3;Acquisto di beni e servizi;2;Acquisto di servizi;99;Altri servizi;999;Altri servizi diversi n.a.c.;13/01/2023
43;1;9999999;174,58;174,58;MAGGIOLI SPA;Z08385AC08;10/01/2023;1470;0;1001;1;Spese correnti;3;Acquisto di beni e servizi;1;Acquisto di beni;2;Altri beni di consumo;1;Carta, cancelleria e stampati;13/01/2023
44;1;9999999;426,4;426,4;MAGGIOLI SPA;Z08385AC08;10/01/2023;1470;0;1001;1;Spese correnti;3;Acquisto di beni e servizi;1;Acquisto di beni;2;Altri beni di consumo;1;Carta, cancelleria e stampati;13/01/2023
46;1;9999999;1.085,78;1.085,78;AGENZIA DELLE ENTRATE DI TREVISO; ;10/01/2023;1904;0;113;1;Spese correnti;10;Altre spese correnti;3;Versamenti IVA a debito;1;Versamenti IVA a debito per le gestioni commerciali;1;Versamenti IVA a debito per le gestioni commerciali;16/01/2023
47;1;9999999;50.000,00;50.000,00;SC.MAT.MONS.ROMANELLO; ;10/01/2023;2822;0;1270;1;Spese correnti;4;Trasferimenti correnti;4;Trasferimenti correnti a Istituzioni Sociali Private;1;Trasferimenti correnti a Istituzioni Sociali Private;1;Trasferimenti correnti a Istituzioni Sociali Private;13/01/2023
48;1;9999999;50.000,00;50.000,00;SC.MATERNA GIOVANNI XXIII'; ;10/01/2023;2822;0;1271;1;Spese correnti;4;Trasferimenti correnti;4;Trasferimenti correnti a Istituzioni Sociali Private;1;Trasferimenti correnti a Istituzioni Sociali Private;1;Trasferimenti correnti a Istituzioni Sociali Private;13/01/2023
49;1;9999999;40.000,00;40.000,00;SCUOLA INFANZIA MARIA IMMACOLATA; ;10/01/2023;2822;0;1272;1;Spese correnti;4;Trasferimenti correnti;4;Trasferimenti correnti a Istituzioni Sociali Private;1;Trasferimenti correnti a Istituzioni Sociali Private;1;Trasferimenti correnti a Istituzioni Sociali Private;13/01/2023
50;1;9999999;5.000,00;5.000,00;"SC. PRIM. PARITARIA IST.SUORE FRANCESCANE ""SANTA MARIA DELLE GRAZIE"""; ;10/01/2023;3010;0;1273;1;Spese correnti;4;Trasferimenti correnti;4;Trasferimenti correnti a Istituzioni Sociali Private;1;Trasferimenti correnti a Istituzioni Sociali Private;1;Trasferimenti correnti a Istituzioni Sociali Private;13/01/2023
51;1;9999999;5.000,00;5.000,00;SC.MAT.MONS.ROMANELLO; ;10/01/2023;2822;1;1333;1;Spese correnti;4;Trasferimenti correnti;4;Trasferimenti correnti a Istituzioni Sociali Private;1;Trasferimenti correnti a Istituzioni Sociali Private;1;Trasferimenti correnti a Istituzioni Sociali Private;13/01/2023
52;1;9999999;5.000,00;5.000,00;SC.MATERNA GIOVANNI XXIII'; ;10/01/2023;2822;1;1332;1;Spese correnti;4;Trasferimenti correnti;4;Trasferimenti correnti a Istituzioni Sociali Private;1;Trasferimenti correnti a Istituzioni Sociali Private;1;Trasferimenti correnti a Istituzioni Sociali Private;13/01/2023
53;1;9999999;5.000,00;5.000,00;SCUOLA INFANZIA MARIA IMMACOLATA; ;10/01/2023;2822;1;1334;1;Spese correnti;4;Trasferimenti correnti;4;Trasferimenti correnti a Istituzioni Sociali Private;1;Trasferimenti correnti a Istituzioni Sociali Private;1;Trasferimenti correnti a Istituzioni Sociali Private;13/01/2023
55;1;9999999;19.086,86;19.086,86;U.L.S.S. N. 2 MARCA TREVIGIANA########; ;10/01/2023;2842;0;1268;1;Spese correnti;4;Trasferimenti correnti;1;Trasferimenti correnti a Amministrazioni Pubbliche;2;Trasferimenti correnti a Amministrazioni Locali;11;Trasferimenti correnti a Aziende sanitarie locali  n.a.f.;13/01/2023
56;1;9999999;26,1;26,1;OMESSO NOMINATIVO NEL RISPETTO DELLA NORMATIVA SULLA PROTEZIONE DATI PERSONALI; ;10/01/2023;74;1;1345;1;Spese correnti;3;Acquisto di beni e servizi;2;Acquisto di servizi;2;Organizzazione eventi, pubblicita` e servizi per trasferta;1;Rimborso per viaggio e trasloco;13/01/2023
57;1;9999999;245;245;"COND.""ALARTIGLIO"" C/O AMM.NI IMM.LI TAGLIAPIETRA A."; ;10/01/2023;1198;0;1269;1;Spese correnti;3;Acquisto di beni e servizi;2;Acquisto di servizi;5;Utenze e canoni;7;Spese di condominio;13/01/2023
58;1;9999999;618;618;"COND.""ALARTIGLIO"" C/O AMM.NI IMM.LI TAGLIAPIETRA A."; ;10/01/2023;1198;0;1269;1;Spese correnti;3;Acquisto di beni e servizi;2;Acquisto di servizi;5;Utenze e canoni;7;Spese di condominio;13/01/2023
59;1;9999999;734,69;734,69;REGIONE VENETO - U.O. GENIO CIVILE TREVISO; ;10/01/2023;7022;0;1220;1;Spese correnti;3;Acquisto di beni e servizi;2;Acquisto di servizi;7;Utilizzo di beni di terzi;999;Altre spese sostenute per utilizzo di beni di terzi n.a.c.;13/01/2023
60;1;9999999;100;100;REGIONE VENETO - U.O. GENIO CIVILE TREVISO; ;10/01/2023;7022;0;1220;1;Spese correnti;3;Acquisto di beni e servizi;2;Acquisto di servizi;7;Utilizzo di beni di terzi;999;Altre spese sostenute per utilizzo di beni di terzi n.a.c.;13/01/2023
61;1;9999999;286,81;286,81;COMUNE DI TREVISO; ;10/01/2023;1510;0;1274;1;Spese correnti;3;Acquisto di beni e servizi;2;Acquisto di servizi;99;Altri servizi;5;Spese per commissioni e comitati dell'Ente;13/01/2023
62;1;9999999;1.950,83;1.950,83;OMESSO NOMINATIVO NEL RISPETTO DELLA NORMATIVA SULLA PROTEZIONE DATI PERSONALI; ;10/01/2023;8361;2;1328;1;Spese correnti;4;Trasferimenti correnti;4;Trasferimenti correnti a Istituzioni Sociali Private;1;Trasferimenti correnti a Istituzioni Sociali Private;1;Trasferimenti correnti a Istituzioni Sociali Private;13/01/2023
63;1;9999999;133,81;133,81;OMESSO NOMINATIVO NEL RISPETTO DELLA NORMATIVA SULLA PROTEZIONE DATI PERSONALI; ;10/01/2023;8361;2;1327;1;Spese correnti;4;Trasferimenti correnti;4;Trasferimenti correnti a Istituzioni Sociali Private;1;Trasferimenti correnti a Istituzioni Sociali Private;1;Trasferimenti correnti a Istituzioni Sociali Private;13/01/2023
64;1;9999999;2.480,79;2.480,79;OMESSO NOMINATIVO NEL RISPETTO DELLA NORMATIVA SULLA PROTEZIONE DATI PERSONALI; ;10/01/2023;8361;2;1329;1;Spese correnti;4;Trasferimenti correnti;4;Trasferimenti correnti a Istituzioni Sociali Private;1;Trasferimenti correnti a Istituzioni Sociali Private;1;Trasferimenti correnti a Istituzioni Sociali Private;13/01/2023
65;1;9999999;555,41;555,41;OMESSO NOMINATIVO NEL RISPETTO DELLA NORMATIVA SULLA PROTEZIONE DATI PERSONALI; ;10/01/2023;8361;2;1330;1;Spese correnti;4;Trasferimenti correnti;4;Trasferimenti correnti a Istituzioni Sociali Private;1;Trasferimenti correnti a Istituzioni Sociali Private;1;Trasferimenti correnti a Istituzioni Sociali Private;13/01/2023
66;1;9999999;516,28;516,28;OMESSO NOMINATIVO NEL RISPETTO DELLA NORMATIVA SULLA PROTEZIONE DATI PERSONALI; ;10/01/2023;8361;2;1331;1;Spese correnti;4;Trasferimenti correnti;4;Trasferimenti correnti a Istituzioni Sociali Private;1;Trasferimenti correnti a Istituzioni Sociali Private;1;Trasferimenti correnti a Istituzioni Sociali Private;13/01/2023
67;1;9999999;480;480;OMESSO NOMINATIVO NEL RISPETTO DELLA NORMATIVA SULLA PROTEZIONE DATI PERSONALI; ;10/01/2023;8361;0;967;1;Spese correnti;4;Trasferimenti correnti;2;Trasferimenti correnti a Famiglie;2;Interventi assistenziali;999;Altri assegni e sussidi assistenziali;13/01/2023
68;1;9999999;5,88;5,88;COMUNE DI VIGONZA; ;11/01/2023;675;0;1346;1;Spese correnti;3;Acquisto di beni e servizi;2;Acquisto di servizi;16;Servizi amministrativi;2;Spese postali;13/01/2023
69;1;9999999;20,36;20,36;COMUNE DI GROSSETO; ;11/01/2023;675;0;1346;1;Spese correnti;3;Acquisto di beni e servizi;2;Acquisto di servizi;16;Servizi amministrativi;2;Spese postali;13/01/2023
70;1;9999999;17,64;17,64;COMUNE DI PADOVA; ;11/01/2023;675;0;1346;1;Spese correnti;3;Acquisto di beni e servizi;2;Acquisto di servizi;16;Servizi amministrativi;2;Spese postali;13/01/2023
71;1;9999999;5,88;5,88;COMUNE DI ISTRANA; ;11/01/2023;675;0;1346;1;Spese correnti;3;Acquisto di beni e servizi;2;Acquisto di servizi;16;Servizi amministrativi;2;Spese postali;13/01/2023
73;1;9999999;2.372,38;2.372,38;ABACO S.P.A.;90176575F7;11/01/2023;1010;0;1315;1;Spese correnti;3;Acquisto di beni e servizi;2;Acquisto di servizi;3;Aggi di riscossione;999;Altri aggi di riscossione n.a.c.;13/01/2023
74;1;9999999;226,4;226,4;ABACO S.P.A.;90176575F7;11/01/2023;1010;0;1326;1;Spese correnti;3;Acquisto di beni e servizi;2;Acquisto di servizi;3;Aggi di riscossione;999;Altri aggi di riscossione n.a.c.;13/01/2023
77;1;9999999;4.206,15;4.206,15;CIRCOLO RICREATIVO ANZIANI PREGANZIOL; ;11/01/2023;4760;0;1307;1;Spese correnti;4;Trasferimenti correnti;4;Trasferimenti correnti a Istituzioni Sociali Private;1;Trasferimenti correnti a Istituzioni Sociali Private;1;Trasferimenti correnti a Istituzioni Sociali Private;13/01/2023
78;1;9999999;1.788,70;1.788,70;AUSER INSIEME CIRCOLO RICREATIVO ANZIANI S.TROVASO; ;11/01/2023;4760;0;1306;1;Spese correnti;4;Trasferimenti correnti;4;Trasferimenti correnti a Istituzioni Sociali Private;1;Trasferimenti correnti a Istituzioni Sociali Private;1;Trasferimenti correnti a Istituzioni Sociali Private;13/01/2023
79;1;9999999;2.948,59;2.948,59;PRO LOCO PREGANZIOL; ;11/01/2023;5412;0;1363;1;Spese correnti;4;Trasferimenti correnti;4;Trasferimenti correnti a Istituzioni Sociali Private;1;Trasferimenti correnti a Istituzioni Sociali Private;1;Trasferimenti correnti a Istituzioni Sociali Private;13/01/2023
80;1;9999999;75;75;IDEAPA SRL;Z693805007;11/01/2023;557;0;887;1;Spese correnti;3;Acquisto di beni e servizi;2;Acquisto di servizi;4;Acquisto di servizi per formazione e addestramento del personale dell'ente;999;Acquisto di servizi per altre spese per formazione e addestramento n.a.c.;13/01/2023
81;1;9999999;75;75;IDEAPA SRL;ZAF38C8ED3;11/01/2023;557;0;1080;1;Spese correnti;3;Acquisto di beni e servizi;2;Acquisto di servizi;4;Acquisto di servizi per formazione e addestramento del personale dell'ente;999;Acquisto di servizi per altre spese per formazione e addestramento n.a.c.;13/01/2023
82;1;9999999;3.989,40;3.989,40;B.R. SERVICE SRL;Z5134DAEA0;11/01/2023;682;0;189;1;Spese correnti;3;Acquisto di beni e servizi;2;Acquisto di servizi;99;Altri servizi;999;Altri servizi diversi n.a.c.;13/01/2023
83;1;9999999;1.641,90;1.641,90;LA SEMAFORICA S.R.L.;Z103582B47;11/01/2023;5707;0;327;1;Spese correnti;3;Acquisto di beni e servizi;2;Acquisto di servizi;9;Manutenzione ordinaria e riparazioni;11;Manutenzione ordinaria e riparazioni di altri beni materiali;13/01/2023
84;1;9999999;8.209,60;8.209,60;LA SEMAFORICA S.R.L.;Z103582B47;11/01/2023;5707;0;327;1;Spese correnti;3;Acquisto di beni e servizi;2;Acquisto di servizi;9;Manutenzione ordinaria e riparazioni;11;Manutenzione ordinaria e riparazioni di altri beni materiali;13/01/2023
85;1;9999999;631,96;631,96;SIMPLY FUN SRLS;ZA73109CB3;11/01/2023;7440;0;354;1;Spese correnti;3;Acquisto di beni e servizi;2;Acquisto di servizi;9;Manutenzione ordinaria e riparazioni;11;Manutenzione ordinaria e riparazioni di altri beni materiali;13/01/2023
86;1;9999999;1.013,91;1.013,91;AGENZIA DELLE ENTRATE DI TREVISO; ;12/01/2023;1904;0;123;1;Spese correnti;10;Altre spese correnti;3;Versamenti IVA a debito;1;Versamenti IVA a debito per le gestioni commerciali;1;Versamenti IVA a debito per le gestioni commerciali;17/01/2023
87;1;9999999;980;980;B.R. SERVICE SRL;Z2335338BB;12/01/2023;678;0;271;1;Spese correnti;3;Acquisto di beni e servizi;2;Acquisto di servizi;4;Acquisto di servizi per formazione e addestramento del personale dell'ente;4;Acquisto di servizi per formazione obbligatoria;17/01/2023
88;1;9999999;770,41;770,41;AUTOFFICINA B.M.T. CARS & TRUCKS SRL;Z043908986;12/01/2023;1340;1;1204;1;Spese correnti;3;Acquisto di beni e servizi;2;Acquisto di servizi;9;Manutenzione ordinaria e riparazioni;1;Manutenzione ordinaria e riparazioni di mezzi di trasporto ad uso civile, di sicurezza e ordine pubblico;17/01/2023
89;1;9999999;78,99;78,99;AUTOFFICINA B.M.T. CARS & TRUCKS SRL;Z043908986;12/01/2023;1340;1;1263;1;Spese correnti;3;Acquisto di beni e servizi;2;Acquisto di servizi;9;Manutenzione ordinaria e riparazioni;1;Manutenzione ordinaria e riparazioni di mezzi di trasporto ad uso civile, di sicurezza e ordine pubblico;17/01/2023
90;1;9999999;27.417,87;27.417,87;EURO TOURS SRL;88188476C3;12/01/2023;4261;4;1177;1;Spese correnti;3;Acquisto di beni e servizi;2;Acquisto di servizi;15;Contratti di servizio pubblico;2;Contratti di servizio di trasporto scolastico;17/01/2023
91;1;9999999;1.000,00;1.000,00;BM S.N.C. DI BATTAGGIA MASSIMO & C.;Z1331E1F1F;12/01/2023;5940;0;1261;1;Spese correnti;3;Acquisto di beni e servizi;2;Acquisto di servizi;9;Manutenzione ordinaria e riparazioni;4;Manutenzione ordinaria e riparazioni di impianti e macchinari;17/01/2023
92;1;9999999;97.112,22;97.112,22;CONTARINA S.P.A.; ;12/01/2023;7430;0;868;1;Spese correnti;3;Acquisto di beni e servizi;2;Acquisto di servizi;9;Manutenzione ordinaria e riparazioni;8;Manutenzione ordinaria e riparazioni di beni immobili;17/01/2023
93;1;9999999;9.882,00;9.882,00;VAN DEN BORRE SRL;Z7938BD89C;12/01/2023;7430;0;1191;1;Spese correnti;3;Acquisto di beni e servizi;2;Acquisto di servizi;9;Manutenzione ordinaria e riparazioni;8;Manutenzione ordinaria e riparazioni di beni immobili;17/01/2023
94;1;9999999;832,04;832,04;VAN DEN BORRE SRL;Z7938BD89C;12/01/2023;7430;0;1265;1;Spese correnti;3;Acquisto di beni e servizi;2;Acquisto di servizi;9;Manutenzione ordinaria e riparazioni;8;Manutenzione ordinaria e riparazioni di beni immobili;17/01/2023
95;1;9999999;5.407,07;5.407,07;MOM - MOBILITA' DI MARCA SPA;Z643506DD7;12/01/2023;8204;1;233;1;Spese correnti;3;Acquisto di beni e servizi;2;Acquisto di servizi;15;Contratti di servizio pubblico;3;Contratti di servizio per il trasporto di disabili e anziani;17/01/2023
96;1;9999999;3.555,52;12.582,23;CODESS SOCIALE-COOP. ONLUS;8855832FBD;12/01/2023;7560;1;771;1;Spese correnti;3;Acquisto di beni e servizi;2;Acquisto di servizi;15;Contratti di servizio pubblico;10;Contratti di servizio di asilo nido;17/01/2023
96;2;9999999;9.026,71;12.582,23;CODESS SOCIALE-COOP. ONLUS;8855832FBD;12/01/2023;7560;1;771;1;Spese correnti;3;Acquisto di beni e servizi;2;Acquisto di servizi;15;Contratti di servizio pubblico;10;Contratti di servizio di asilo nido;17/01/2023
97;1;9999999;11.745,78;24.630,93;CODESS SOCIALE-COOP. ONLUS;8855832FBD;12/01/2023;7560;1;771;1;Spese correnti;3;Acquisto di beni e servizi;2;Acquisto di servizi;15;Contratti di servizio pubblico;10;Contratti di servizio di asilo nido;17/01/2023
97;2;9999999;12.885,15;24.630,93;CODESS SOCIALE-COOP. ONLUS;8855832FBD;12/01/2023;7560;1;771;1;Spese correnti;3;Acquisto di beni e servizi;2;Acquisto di servizi;15;Contratti di servizio pubblico;10;Contratti di servizio di asilo nido;17/01/2023
98;1;9999999;5.855,43;5.855,43;CODESS SOCIALE-COOP. ONLUS;8855832FBD;12/01/2023;7560;1;1195;1;Spese correnti;3;Acquisto di beni e servizi;2;Acquisto di servizi;15;Contratti di servizio pubblico;10;Contratti di servizio di asilo nido;17/01/2023
99;1;9999999;661,5;7.164,60;CONSORZIO PROVINCIALE INTESA-CCA SOC.COOP.SOCIALECONSORTILE;9293702D7F;12/01/2023;8208;0;846;1;Spese correnti;3;Acquisto di beni e servizi;2;Acquisto di servizi;99;Altri servizi;999;Altri servizi diversi n.a.c.;17/01/2023
99;2;9999999;2.028,00;7.164,60;CONSORZIO PROVINCIALE INTESA-CCA SOC.COOP.SOCIALECONSORTILE;9293702D7F;12/01/2023;8208;0;846;1;Spese correnti;3;Acquisto di beni e servizi;2;Acquisto di servizi;99;Altri servizi;999;Altri servizi diversi n.a.c.;17/01/2023
99;3;9999999;2.237,55;7.164,60;CONSORZIO PROVINCIALE INTESA-CCA SOC.COOP.SOCIALECONSORTILE;9293702D7F;12/01/2023;8208;0;846;1;Spese correnti;3;Acquisto di beni e servizi;2;Acquisto di servizi;99;Altri servizi;999;Altri servizi diversi n.a.c.;17/01/2023
99;4;9999999;2.237,55;7.164,60;CONSORZIO PROVINCIALE INTESA-CCA SOC.COOP.SOCIALECONSORTILE;9293702D7F;12/01/2023;8208;0;846;1;Spese correnti;3;Acquisto di beni e servizi;2;Acquisto di servizi;99;Altri servizi;999;Altri servizi diversi n.a.c.;17/01/2023
100;1;9999999;850;850;OMESSO NOMINATIVO NEL RISPETTO DELLA NORMATIVA SULLA PROTEZIONE DATI PERSONALI; ;12/01/2023;8361;0;1084;1;Spese correnti;4;Trasferimenti correnti;2;Trasferimenti correnti a Famiglie;2;Interventi assistenziali;999;Altri assegni e sussidi assistenziali;17/01/2023
101;1;9999999;850;850;OMESSO NOMINATIVO NEL RISPETTO DELLA NORMATIVA SULLA PROTEZIONE DATI PERSONALI; ;12/01/2023;8361;0;1084;1;Spese correnti;4;Trasferimenti correnti;2;Trasferimenti correnti a Famiglie;2;Interventi assistenziali;999;Altri assegni e sussidi assistenziali;17/01/2023
102;1;9999999;1.490,00;1.490,00;OMESSO NOMINATIVO NEL RISPETTO DELLA NORMATIVA SULLA PROTEZIONE DATI PERSONALI; ;12/01/2023;8361;0;1067;1;Spese correnti;4;Trasferimenti correnti;2;Trasferimenti correnti a Famiglie;2;Interventi assistenziali;999;Altri assegni e sussidi assistenziali;17/01/2023
103;1;9999999;344,46;344,46;OMESSO NOMINATIVO NEL RISPETTO DELLA NORMATIVA SULLA PROTEZIONE DATI PERSONALI; ;12/01/2023;8361;0;1316;1;Spese correnti;4;Trasferimenti correnti;2;Trasferimenti correnti a Famiglie;2;Interventi assistenziali;999;Altri assegni e sussidi assistenziali;17/01/2023
104;1;9999999;519,9;519,9;OMESSO NOMINATIVO NEL RISPETTO DELLA NORMATIVA SULLA PROTEZIONE DATI PERSONALI; ;12/01/2023;8361;0;1316;1;Spese correnti;4;Trasferimenti correnti;2;Trasferimenti correnti a Famiglie;2;Interventi assistenziali;999;Altri assegni e sussidi assistenziali;17/01/2023
105;1;9999999;17,64;17,64;POLIZIA STRADALE DI TREVISO; ;13/01/2023;675;0;1346;1;Spese correnti;3;Acquisto di beni e servizi;2;Acquisto di servizi;16;Servizi amministrativi;2;Spese postali;17/01/2023
106;1;9999999;451,4;451,4;VIDEOBOX S.A.S. DI SALVADORI FRANCESCA & C.;Z09394B4A4;13/01/2023;4506;0;1320;1;Spese correnti;3;Acquisto di beni e servizi;1;Acquisto di beni;1;Giornali, riviste e pubblicazioni;1;Giornali e riviste;17/01/2023
107;1;9999999;976;976;IL TRABICCOLO DEI SOGNI ASSOCIAZIONE CULTURALE;Z1E363E35D;13/01/2023;4529;0;501;1;Spese correnti;3;Acquisto di beni e servizi;2;Acquisto di servizi;11;Prestazioni professionali e specialistiche;999;Altre prestazioni professionali e specialistiche n.a.c.;17/01/2023
108;1;9999999;780;780;CENTRO PER LA SALUTE DEL BAMBINO ONLUS;Z1B37C29BF;13/01/2023;4529;0;857;1;Spese correnti;3;Acquisto di beni e servizi;2;Acquisto di servizi;11;Prestazioni professionali e specialistiche;999;Altre prestazioni professionali e specialistiche n.a.c.;17/01/2023
109;1;9999999;793;793;SOC. IMM. MURETTO S.N.C. DI CRESCENTE V. & C.; ;17/01/2023;1812;0;327;1;Spese correnti;3;Acquisto di beni e servizi;2;Acquisto di servizi;7;Utilizzo di beni di terzi;1;Locazione di beni immobili;19/01/2023
111;1;9999999;1.769,00;1.769,00;CENTRO STUDI AMM.VI M.T.;Z8F34FBA3D;17/01/2023;670;1;259;1;Spese correnti;3;Acquisto di beni e servizi;2;Acquisto di servizi;99;Altri servizi;999;Altri servizi diversi n.a.c.;19/01/2023
112;1;9999999;237,58;237,58;EDILVERDE S.R.L.;ZE734FDFAF;17/01/2023;1147;1;204;1;Spese correnti;3;Acquisto di beni e servizi;1;Acquisto di beni;2;Altri beni di consumo;999;Altri beni e materiali di consumo n.a.c.;19/01/2023
113;1;9999999;214,24;214,24;MARCHIOL S.P.A.;Z90356FC7F;17/01/2023;1147;1;323;1;Spese correnti;3;Acquisto di beni e servizi;1;Acquisto di beni;2;Altri beni di consumo;999;Altri beni e materiali di consumo n.a.c.;19/01/2023
114;1;9999999;600;600;SOC.COOP. G. TONIOLO;Z2E37459CF;17/01/2023;1147;1;851;1;Spese correnti;3;Acquisto di beni e servizi;1;Acquisto di beni;2;Altri beni di consumo;999;Altri beni e materiali di consumo n.a.c.;19/01/2023
115;1;9999999;171,84;171,84;SOC.COOP. G. TONIOLO;Z2E37459CF;17/01/2023;1147;2;852;1;Spese correnti;3;Acquisto di beni e servizi;1;Acquisto di beni;2;Altri beni di consumo;999;Altri beni e materiali di consumo n.a.c.;19/01/2023
116;1;9999999;290;290;SOC.COOP. G. TONIOLO;Z2E37459CF;17/01/2023;1147;2;1260;1;Spese correnti;3;Acquisto di beni e servizi;1;Acquisto di beni;2;Altri beni di consumo;999;Altri beni e materiali di consumo n.a.c.;19/01/2023
117;1;9999999;110,39;110,39;EDILVERDE S.R.L.;ZE734FDFAF;17/01/2023;1300;0;203;1;Spese correnti;3;Acquisto di beni e servizi;1;Acquisto di beni;2;Altri beni di consumo;999;Altri beni e materiali di consumo n.a.c.;19/01/2023
118;1;9999999;704,56;704,56;SOC.COOP. G. TONIOLO;Z2E37459CF;17/01/2023;1300;0;850;1;Spese correnti;3;Acquisto di beni e servizi;1;Acquisto di beni;2;Altri beni di consumo;999;Altri beni e materiali di consumo n.a.c.;19/01/2023
119;1;9999999;198,68;198,68;EDILVERDE S.R.L.;ZE734FDFAF;17/01/2023;1300;0;1264;1;Spese correnti;3;Acquisto di beni e servizi;1;Acquisto di beni;2;Altri beni di consumo;999;Altri beni e materiali di consumo n.a.c.;19/01/2023
120;1;9999999;2.806,00;2.806,00;MORESSA S.R.L.;Z553839EAA;17/01/2023;1340;1;959;1;Spese correnti;3;Acquisto di beni e servizi;2;Acquisto di servizi;9;Manutenzione ordinaria e riparazioni;1;Manutenzione ordinaria e riparazioni di mezzi di trasporto ad uso civile, di sicurezza e ordine pubblico;19/01/2023
121;1;9999999;456,67;456,67;SOC.COOP. G. TONIOLO;Z2E37459CF;17/01/2023;2610;0;853;1;Spese correnti;3;Acquisto di beni e servizi;1;Acquisto di beni;2;Altri beni di consumo;999;Altri beni e materiali di consumo n.a.c.;19/01/2023
122;1;9999999;133,06;133,06;MARCHIOL S.P.A.;Z90356FC7F;17/01/2023;4010;0;326;1;Spese correnti;3;Acquisto di beni e servizi;1;Acquisto di beni;2;Altri beni di consumo;999;Altri beni e materiali di consumo n.a.c.;19/01/2023
123;1;9999999;323;323;EDIZIONI ARTEBAMBINI SNC;ZD93926A7F;17/01/2023;4506;0;1319;1;Spese correnti;3;Acquisto di beni e servizi;1;Acquisto di beni;1;Giornali, riviste e pubblicazioni;1;Giornali e riviste;19/01/2023
124;1;9999999;1.495,13;1.495,13;EDILVERDE S.R.L.;ZE734FDFAF;17/01/2023;5620;2;202;1;Spese correnti;3;Acquisto di beni e servizi;1;Acquisto di beni;2;Altri beni di consumo;999;Altri beni e materiali di consumo n.a.c.;19/01/2023
125;1;9999999;708,65;708,65;MARCHIOL S.P.A.;Z90356FC7F;17/01/2023;5840;0;322;1;Spese correnti;3;Acquisto di beni e servizi;1;Acquisto di beni;2;Altri beni di consumo;999;Altri beni e materiali di consumo n.a.c.;19/01/2023
126;1;9999999;100;100;SOC.COOP. G. TONIOLO;Z2E37459CF;17/01/2023;6760;0;856;1;Spese correnti;3;Acquisto di beni e servizi;1;Acquisto di beni;2;Altri beni di consumo;999;Altri beni e materiali di consumo n.a.c.;19/01/2023
127;1;9999999;-7.409,48;7.409,48;TRE ERRE INGEGNERIA SRL;9011869D8C;17/01/2023;13215;0;1266;2;Spese in conto capitale;2;Investimenti fissi lordi e acquisto di terreni;1;Beni materiali;9;Beni immobili;999;Beni immobili n.a.c.;19/01/2023
127;2;9999999;7.409,48;7.409,48;TRE ERRE INGEGNERIA SRL;9011869D8C;17/01/2023;13215;0;1266;2;Spese in conto capitale;2;Investimenti fissi lordi e acquisto di terreni;1;Beni materiali;9;Beni immobili;999;Beni immobili n.a.c.;19/01/2023
127;3;9999999;7.409,48;7.409,48;TRE ERRE INGEGNERIA SRL;9011869D8C;17/01/2023;13215;0;1266;2;Spese in conto capitale;2;Investimenti fissi lordi e acquisto di terreni;1;Beni materiali;9;Beni immobili;999;Beni immobili n.a.c.;19/01/2023
128;1;9999999;-64.309,78;64.309,78;TRE ERRE INGEGNERIA SRL;9011869D8C;17/01/2023;13215;0;1266;2;Spese in conto capitale;2;Investimenti fissi lordi e acquisto di terreni;1;Beni materiali;9;Beni immobili;999;Beni immobili n.a.c.;19/01/2023
128;2;9999999;64.309,78;64.309,78;TRE ERRE INGEGNERIA SRL;9011869D8C;17/01/2023;13215;0;1266;2;Spese in conto capitale;2;Investimenti fissi lordi e acquisto di terreni;1;Beni materiali;9;Beni immobili;999;Beni immobili n.a.c.;19/01/2023
128;3;9999999;64.309,78;64.309,78;TRE ERRE INGEGNERIA SRL;9011869D8C;17/01/2023;13215;0;1266;2;Spese in conto capitale;2;Investimenti fissi lordi e acquisto di terreni;1;Beni materiali;9;Beni immobili;999;Beni immobili n.a.c.;19/01/2023
130;1;9999999;1.200,00;1.200,00;MINISTERO DELLO SVILUPPO ECONOMICO; ;17/01/2023;1800;0;124;1;Spese correnti;3;Acquisto di beni e servizi;2;Acquisto di servizi;19;Servizi informatici e di telecomunicazioni;5;Servizi per i sistemi e relativa manutenzione;19/01/2023
131;1;9999999;25;25;AVI - ASS.VIDEOTECHE E MEDIATECHE ITALIANE;Z25396D095;17/01/2023;690;0;128;1;Spese correnti;3;Acquisto di beni e servizi;2;Acquisto di servizi;99;Altri servizi;3;Quote di associazioni;19/01/2023
132;1;9999999;4.117,26;4.117,26;CHINELLATO CARLO; ;17/01/2023;170;0;1012;1;Spese correnti;3;Acquisto di beni e servizi;2;Acquisto di servizi;1;Organi e incarichi istituzionali dell'amministrazione;8;Compensi agli organi istituzionali di revisione, di controllo ed altri incarichi istituzionali dell'amministrazione;19/01/2023
133;1;9999999;6.175,88;6.175,88;FILIPPETTO NICOLA; ;17/01/2023;170;0;1012;1;Spese correnti;3;Acquisto di beni e servizi;2;Acquisto di servizi;1;Organi e incarichi istituzionali dell'amministrazione;8;Compensi agli organi istituzionali di revisione, di controllo ed altri incarichi istituzionali dell'amministrazione;19/01/2023
134;1;9999999;8.234,51;8.234,51;MORANDINI GIANNI; ;17/01/2023;170;0;1012;1;Spese correnti;3;Acquisto di beni e servizi;2;Acquisto di servizi;1;Organi e incarichi istituzionali dell'amministrazione;8;Compensi agli organi istituzionali di revisione, di controllo ed altri incarichi istituzionali dell'amministrazione;19/01/2023
135;1;9999999;-594,8;594,88;OMESSO NOMINATIVO NEL RISPETTO DELLA NORMATIVA SULLA PROTEZIONE DATI PERSONALI;ZA939216F7;18/01/2023;610;0;1318;1;Spese correnti;3;Acquisto di beni e servizi;2;Acquisto di servizi;99;Altri servizi;999;Altri servizi diversi n.a.c.;20/01/2023
135;2;9999999;594,8;594,88;OMESSO NOMINATIVO NEL RISPETTO DELLA NORMATIVA SULLA PROTEZIONE DATI PERSONALI;ZA939216F7;18/01/2023;610;0;1318;1;Spese correnti;3;Acquisto di beni e servizi;2;Acquisto di servizi;99;Altri servizi;999;Altri servizi diversi n.a.c.;20/01/2023
135;3;9999999;594,88;594,88;OMESSO NOMINATIVO NEL RISPETTO DELLA NORMATIVA SULLA PROTEZIONE DATI PERSONALI;ZA939216F7;18/01/2023;610;0;1318;1;Spese correnti;3;Acquisto di beni e servizi;2;Acquisto di servizi;99;Altri servizi;999;Altri servizi diversi n.a.c.;20/01/2023
136;1;9999999;1.220,00;1.220,00;VERMARK SRLS;Z65390D4B1;18/01/2023;610;1;1221;1;Spese correnti;3;Acquisto di beni e servizi;2;Acquisto di servizi;2;Organizzazione eventi, pubblicita` e servizi per trasferta;999;Altre spese per relazioni pubbliche, convegni e mostre, pubblicita` n.a.c;20/01/2023
137;1;9999999;30;173,25;E.MEDI.CAL SRL;ZD9388DC3A;18/01/2023;679;0;1063;1;Spese correnti;3;Acquisto di beni e servizi;2;Acquisto di servizi;18;Servizi sanitari;1;Spese per accertamenti sanitari resi necessari dall'attività lavorativa;20/01/2023
137;2;9999999;49,75;173,25;E.MEDI.CAL SRL;ZD9388DC3A;18/01/2023;679;0;1063;1;Spese correnti;3;Acquisto di beni e servizi;2;Acquisto di servizi;18;Servizi sanitari;1;Spese per accertamenti sanitari resi necessari dall'attività lavorativa;20/01/2023
137;3;9999999;93,5;173,25;E.MEDI.CAL SRL;ZD9388DC3A;18/01/2023;679;0;1063;1;Spese correnti;3;Acquisto di beni e servizi;2;Acquisto di servizi;18;Servizi sanitari;1;Spese per accertamenti sanitari resi necessari dall'attività lavorativa;20/01/2023
138;1;9999999;5.724,27;5.724,27;COOP. ITACA Soc.Coop.Soc.Onlus;8693218E6C;18/01/2023;8204;4;453;1;Spese correnti;3;Acquisto di beni e servizi;2;Acquisto di servizi;99;Altri servizi;999;Altri servizi diversi n.a.c.;20/01/2023
139;1;9999999;2.471,65;2.471,65;KIRIKU Societa' cooperativa sociale onlus;Z6C35B265E;18/01/2023;8204;4;461;1;Spese correnti;3;Acquisto di beni e servizi;2;Acquisto di servizi;99;Altri servizi;999;Altri servizi diversi n.a.c.;20/01/2023
140;1;9999999;12.534,64;12.534,64;CODESS SOCIALE-COOP. ONLUS;9120417633;18/01/2023;8250;0;578;1;Spese correnti;3;Acquisto di beni e servizi;2;Acquisto di servizi;15;Contratti di servizio pubblico;9;Contratti di servizio di assistenza sociale domiciliare;20/01/2023
142;1;9999999;491,96;491,96;BP SRL;Z163742B24;18/01/2023;1185;1;755;1;Spese correnti;3;Acquisto di beni e servizi;2;Acquisto di servizi;9;Manutenzione ordinaria e riparazioni;4;Manutenzione ordinaria e riparazioni di impianti e macchinari;20/01/2023
143;1;9999999;2.583,52;2.583,52;SOGEST ITALIA SRL;Z08372EAAD;18/01/2023;1805;0;714;1;Spese correnti;3;Acquisto di beni e servizi;2;Acquisto di servizi;13;Servizi ausiliari per il funzionamento dell'ente;1;Servizi di sorveglianza, custodia e accoglienza;20/01/2023
144;1;9999999;400;400;BP SRL;Z163742B24;18/01/2023;2980;1;759;1;Spese correnti;3;Acquisto di beni e servizi;2;Acquisto di servizi;9;Manutenzione ordinaria e riparazioni;4;Manutenzione ordinaria e riparazioni di impianti e macchinari;20/01/2023
145;1;9999999;9;9;BP SRL;Z163742B24;18/01/2023;4030;0;760;1;Spese correnti;3;Acquisto di beni e servizi;2;Acquisto di servizi;9;Manutenzione ordinaria e riparazioni;4;Manutenzione ordinaria e riparazioni di impianti e macchinari;20/01/2023
146;1;9999999;2.851,75;2.851,75;SCOMPARIN SERVICE & GARDENS DI SCOMPARIN MICHELE;Z5C38E58E2;18/01/2023;5720;2;1190;1;Spese correnti;3;Acquisto di beni e servizi;2;Acquisto di servizi;9;Manutenzione ordinaria e riparazioni;11;Manutenzione ordinaria e riparazioni di altri beni materiali;20/01/2023
147;1;9999999;7.054,56;7.054,56;VERITAS  S.P.A.;Z0D3855C00;18/01/2023;7435;2;989;1;Spese correnti;3;Acquisto di beni e servizi;2;Acquisto di servizi;9;Manutenzione ordinaria e riparazioni;4;Manutenzione ordinaria e riparazioni di impianti e macchinari;20/01/2023
148;1;9999999;0,01;0,01;BP SRL;Z163742B24;18/01/2023;7550;0;766;1;Spese correnti;3;Acquisto di beni e servizi;2;Acquisto di servizi;9;Manutenzione ordinaria e riparazioni;4;Manutenzione ordinaria e riparazioni di impianti e macchinari;20/01/2023
149;1;9999999;239,81;239,81;MORANDINI GIANNI; ;18/01/2023;172;0;1013;1;Spese correnti;3;Acquisto di beni e servizi;2;Acquisto di servizi;1;Organi e incarichi istituzionali dell'amministrazione;2;Organi istituzionali dell'amministrazione - Rimborsi;20/01/2023
150;1;9999999;3.904,00;3.904,00;TERMOIDRAULICA BISON SRL;Z7A38A3E10;19/01/2023;13218;0;577;2;Spese in conto capitale;2;Investimenti fissi lordi e acquisto di terreni;1;Beni materiali;9;Beni immobili;3;Fabbricati ad uso scolastico;23/01/2023
151;1;9999999;1.095,24;1.095,24;SE.M.PRE S.R.L.;Z5138A66FA;19/01/2023;1300;0;1053;1;Spese correnti;3;Acquisto di beni e servizi;1;Acquisto di beni;2;Altri beni di consumo;999;Altri beni e materiali di consumo n.a.c.;25/01/2023
152;1;9999999;339,41;339,41;KUWAIT PETROLEUM ITALIA SPA;Z9C36EAB07;19/01/2023;1307;0;598;1;Spese correnti;3;Acquisto di beni e servizi;1;Acquisto di beni;2;Altri beni di consumo;2;Carburanti, combustibili e lubrificanti;23/01/2023
153;1;9999999;99,41;99,41;DOLOMITI ENERGIA SPA;908782459B;19/01/2023;1346;0;553;1;Spese correnti;3;Acquisto di beni e servizi;2;Acquisto di servizi;5;Utenze e canoni;6;Gas;25/01/2023
154;1;9999999;13,32;13,32;FASTWEB SPA;Z742CA65BF;19/01/2023;1346;1;362;1;Spese correnti;3;Acquisto di beni e servizi;2;Acquisto di servizi;5;Utenze e canoni;1;Telefonia fissa;25/01/2023
155;1;9999999;609,05;609,05;POSTE ITALIANE SPA;ZCE3502180;19/01/2023;1793;0;288;1;Spese correnti;3;Acquisto di beni e servizi;2;Acquisto di servizi;16;Servizi amministrativi;2;Spese postali;23/01/2023
156;1;9999999;1.423,13;1.423,13;STUDIO CAVAGGIONI SCARL;ZCD36F5326;19/01/2023;1798;0;606;1;Spese correnti;3;Acquisto di beni e servizi;2;Acquisto di servizi;19;Servizi informatici e di telecomunicazioni;6;Servizi di sicurezza;23/01/2023
157;1;9999999;5,49;3.820,11;DOLOMITI ENERGIA SPA;908782459B;19/01/2023;1801;0;500;1;Spese correnti;3;Acquisto di beni e servizi;2;Acquisto di servizi;5;Utenze e canoni;6;Gas;23/01/2023
157;2;9999999;57,41;3.820,11;DOLOMITI ENERGIA SPA;908782459B;19/01/2023;1801;0;500;1;Spese correnti;3;Acquisto di beni e servizi;2;Acquisto di servizi;5;Utenze e canoni;6;Gas;23/01/2023
157;3;9999999;128,43;3.820,11;DOLOMITI ENERGIA SPA;908782459B;19/01/2023;1801;0;500;1;Spese correnti;3;Acquisto di beni e servizi;2;Acquisto di servizi;5;Utenze e canoni;6;Gas;23/01/2023
157;4;9999999;150,64;3.820,11;DOLOMITI ENERGIA SPA;908782459B;19/01/2023;1801;0;500;1;Spese correnti;3;Acquisto di beni e servizi;2;Acquisto di servizi;5;Utenze e canoni;6;Gas;23/01/2023
157;5;9999999;456,72;3.820,11;DOLOMITI ENERGIA SPA;908782459B;19/01/2023;1801;0;500;1;Spese correnti;3;Acquisto di beni e servizi;2;Acquisto di servizi;5;Utenze e canoni;6;Gas;23/01/2023
157;6;9999999;3.021,42;3.820,11;DOLOMITI ENERGIA SPA;908782459B;19/01/2023;1801;0;500;1;Spese correnti;3;Acquisto di beni e servizi;2;Acquisto di servizi;5;Utenze e canoni;6;Gas;23/01/2023
158;1;9999999;183,39;183,39;DOLOMITI ENERGIA SPA;908782459B;19/01/2023;1801;0;500;1;Spese correnti;3;Acquisto di beni e servizi;2;Acquisto di servizi;5;Utenze e canoni;6;Gas;23/01/2023
159;1;9999999;272,56;272,56;FASTWEB SPA;Z742CA65BF;19/01/2023;1801;1;245;1;Spese correnti;3;Acquisto di beni e servizi;2;Acquisto di servizi;5;Utenze e canoni;1;Telefonia fissa;23/01/2023
160;1;9999999;3.097,79;3.097,79;DOLOMITI ENERGIA SPA;908782459B;19/01/2023;2790;0;738;1;Spese correnti;3;Acquisto di beni e servizi;2;Acquisto di servizi;5;Utenze e canoni;6;Gas;23/01/2023
161;1;9999999;608,16;608,16;VIER  SCARL; ;19/01/2023;2790;0;212;1;Spese correnti;3;Acquisto di beni e servizi;2;Acquisto di servizi;5;Utenze e canoni;4;Energia elettrica;23/01/2023
162;1;9999999;1.138,88;1.138,88;DOLOMITI ENERGIA SPA;908782459B;19/01/2023;2790;0;738;1;Spese correnti;3;Acquisto di beni e servizi;2;Acquisto di servizi;5;Utenze e canoni;6;Gas;23/01/2023
163;1;9999999;15,71;15,71;FASTWEB SPA;Z742CA65BF;19/01/2023;2790;1;246;1;Spese correnti;3;Acquisto di beni e servizi;2;Acquisto di servizi;5;Utenze e canoni;1;Telefonia fissa;23/01/2023
164;1;9999999;1.307,67;1.307,67;DOLOMITI ENERGIA SPA;908782459B;19/01/2023;2792;0;547;1;Spese correnti;3;Acquisto di beni e servizi;2;Acquisto di servizi;5;Utenze e canoni;6;Gas;23/01/2023
165;1;9999999;668,95;668,95;VIER  SCARL; ;19/01/2023;2792;0;213;1;Spese correnti;3;Acquisto di beni e servizi;2;Acquisto di servizi;5;Utenze e canoni;4;Energia elettrica;23/01/2023
166;1;9999999;150,41;150,41;DOLOMITI ENERGIA SPA;908782459B;19/01/2023;2792;0;547;1;Spese correnti;3;Acquisto di beni e servizi;2;Acquisto di servizi;5;Utenze e canoni;6;Gas;23/01/2023
167;1;9999999;14,1;14,1;FASTWEB SPA;Z742CA65BF;19/01/2023;2792;1;247;1;Spese correnti;3;Acquisto di beni e servizi;2;Acquisto di servizi;5;Utenze e canoni;1;Telefonia fissa;23/01/2023
168;1;9999999;1.630,01;1.630,01;VIER  SCARL; ;19/01/2023;2973;0;214;1;Spese correnti;3;Acquisto di beni e servizi;2;Acquisto di servizi;5;Utenze e canoni;4;Energia elettrica;23/01/2023
169;1;9999999;16,41;5.434,59;DOLOMITI ENERGIA SPA;908782459B;19/01/2023;2973;0;586;1;Spese correnti;3;Acquisto di beni e servizi;2;Acquisto di servizi;5;Utenze e canoni;6;Gas;23/01/2023
169;2;9999999;175,82;5.434,59;DOLOMITI ENERGIA SPA;908782459B;19/01/2023;2973;0;586;1;Spese correnti;3;Acquisto di beni e servizi;2;Acquisto di servizi;5;Utenze e canoni;6;Gas;23/01/2023
169;3;9999999;1.477,15;5.434,59;DOLOMITI ENERGIA SPA;908782459B;19/01/2023;2973;0;586;1;Spese correnti;3;Acquisto di beni e servizi;2;Acquisto di servizi;5;Utenze e canoni;6;Gas;23/01/2023
169;4;9999999;3.765,21;5.434,59;DOLOMITI ENERGIA SPA;908782459B;19/01/2023;2973;0;586;1;Spese correnti;3;Acquisto di beni e servizi;2;Acquisto di servizi;5;Utenze e canoni;6;Gas;23/01/2023
170;1;9999999;1.826,35;1.826,35;VIER  SCARL; ;19/01/2023;2973;0;214;1;Spese correnti;3;Acquisto di beni e servizi;2;Acquisto di servizi;5;Utenze e canoni;4;Energia elettrica;23/01/2023
171;1;9999999;1.254,88;1.254,88;DOLOMITI ENERGIA SPA;908782459B;19/01/2023;2973;0;586;1;Spese correnti;3;Acquisto di beni e servizi;2;Acquisto di servizi;5;Utenze e canoni;6;Gas;23/01/2023
172;1;9999999;102,82;102,82;FASTWEB SPA;Z742CA65BF;19/01/2023;2973;1;248;1;Spese correnti;3;Acquisto di beni e servizi;2;Acquisto di servizi;5;Utenze e canoni;1;Telefonia fissa;23/01/2023
173;1;9999999;8.411,34;8.411,34;DOLOMITI ENERGIA SPA;908782459B;19/01/2023;4020;0;585;1;Spese correnti;3;Acquisto di beni e servizi;2;Acquisto di servizi;5;Utenze e canoni;6;Gas;23/01/2023
174;1;9999999;1.848,80;1.848,80;VIER  SCARL; ;19/01/2023;4020;0;215;1;Spese correnti;3;Acquisto di beni e servizi;2;Acquisto di servizi;5;Utenze e canoni;4;Energia elettrica;23/01/2023
175;1;9999999;1.212,54;1.212,54;DOLOMITI ENERGIA SPA;908782459B;19/01/2023;4020;0;585;1;Spese correnti;3;Acquisto di beni e servizi;2;Acquisto di servizi;5;Utenze e canoni;6;Gas;23/01/2023
176;1;9999999;124,55;124,55;FASTWEB SPA;Z742CA65BF;19/01/2023;4020;1;249;1;Spese correnti;3;Acquisto di beni e servizi;2;Acquisto di servizi;5;Utenze e canoni;1;Telefonia fissa;23/01/2023
177;1;9999999;446,31;446,31;DOLOMITI ENERGIA SPA;908782459B;19/01/2023;4527;0;548;1;Spese correnti;3;Acquisto di beni e servizi;2;Acquisto di servizi;5;Utenze e canoni;6;Gas;23/01/2023
178;1;9999999;13,19;13,19;FASTWEB SPA;Z742CA65BF;19/01/2023;4527;1;250;1;Spese correnti;3;Acquisto di beni e servizi;2;Acquisto di servizi;5;Utenze e canoni;1;Telefonia fissa;23/01/2023
179;1;9999999;29,31;29,31;DOLOMITI ENERGIA SPA;908782459B;19/01/2023;4686;0;549;1;Spese correnti;3;Acquisto di beni e servizi;2;Acquisto di servizi;5;Utenze e canoni;6;Gas;23/01/2023
180;1;9999999;314,85;314,85;VIER  SCARL; ;19/01/2023;5050;0;216;1;Spese correnti;3;Acquisto di beni e servizi;2;Acquisto di servizi;5;Utenze e canoni;4;Energia elettrica;23/01/2023
181;1;9999999;168,93;759,31;DOLOMITI ENERGIA SPA;908782459B;19/01/2023;5050;0;584;1;Spese correnti;3;Acquisto di beni e servizi;2;Acquisto di servizi;5;Utenze e canoni;6;Gas;23/01/2023
181;2;9999999;590,38;759,31;DOLOMITI ENERGIA SPA;908782459B;19/01/2023;5050;0;584;1;Spese correnti;3;Acquisto di beni e servizi;2;Acquisto di servizi;5;Utenze e canoni;6;Gas;23/01/2023
182;1;9999999;617,24;617,24;VIER  SCARL; ;19/01/2023;5050;0;216;1;Spese correnti;3;Acquisto di beni e servizi;2;Acquisto di servizi;5;Utenze e canoni;4;Energia elettrica;23/01/2023
183;1;9999999;17,78;2.860,10;DOLOMITI ENERGIA SPA;908782459B;19/01/2023;5050;0;584;1;Spese correnti;3;Acquisto di beni e servizi;2;Acquisto di servizi;5;Utenze e canoni;6;Gas;23/01/2023
183;2;9999999;48,07;2.860,10;DOLOMITI ENERGIA SPA;908782459B;19/01/2023;5050;0;584;1;Spese correnti;3;Acquisto di beni e servizi;2;Acquisto di servizi;5;Utenze e canoni;6;Gas;23/01/2023
183;3;9999999;295,19;2.860,10;DOLOMITI ENERGIA SPA;908782459B;19/01/2023;5050;0;584;1;Spese correnti;3;Acquisto di beni e servizi;2;Acquisto di servizi;5;Utenze e canoni;6;Gas;23/01/2023
183;4;9999999;2.499,06;2.860,10;DOLOMITI ENERGIA SPA;908782459B;19/01/2023;5050;0;584;1;Spese correnti;3;Acquisto di beni e servizi;2;Acquisto di servizi;5;Utenze e canoni;6;Gas;23/01/2023
184;1;9999999;2,65;2,65;DOLOMITI ENERGIA SPA;908782459B;19/01/2023;5051;0;583;1;Spese correnti;3;Acquisto di beni e servizi;2;Acquisto di servizi;5;Utenze e canoni;6;Gas;23/01/2023
185;1;9999999;3.072,89;3.072,89;SE.M.PRE S.R.L.;Z5138A66FA;19/01/2023;5640;0;1052;1;Spese correnti;3;Acquisto di beni e servizi;1;Acquisto di beni;2;Altri beni di consumo;999;Altri beni e materiali di consumo n.a.c.;25/01/2023
186;1;9999999;26,02;26,02;DOLOMITI ENERGIA SPA;908782459B;19/01/2023;6461;0;550;1;Spese correnti;3;Acquisto di beni e servizi;2;Acquisto di servizi;5;Utenze e canoni;6;Gas;25/01/2023
187;1;9999999;126,83;126,83;DOLOMITI ENERGIA SPA;908782459B;19/01/2023;6461;0;550;1;Spese correnti;3;Acquisto di beni e servizi;2;Acquisto di servizi;5;Utenze e canoni;6;Gas;23/01/2023
188;1;9999999;13,18;13,18;FASTWEB SPA;Z742CA65BF;19/01/2023;6642;0;251;1;Spese correnti;3;Acquisto di beni e servizi;2;Acquisto di servizi;5;Utenze e canoni;1;Telefonia fissa;23/01/2023
189;1;9999999;111,09;111,09;DOLOMITI ENERGIA SPA;908782459B;19/01/2023;6647;0;552;1;Spese correnti;3;Acquisto di beni e servizi;2;Acquisto di servizi;5;Utenze e canoni;6;Gas;23/01/2023
190;1;9999999;972,06;2.284,66;DOLOMITI ENERGIA SPA;908782459B;19/01/2023;7552;1;551;1;Spese correnti;3;Acquisto di beni e servizi;2;Acquisto di servizi;5;Utenze e canoni;6;Gas;23/01/2023
190;2;9999999;1.312,60;2.284,66;DOLOMITI ENERGIA SPA;908782459B;19/01/2023;7552;1;551;1;Spese correnti;3;Acquisto di beni e servizi;2;Acquisto di servizi;5;Utenze e canoni;6;Gas;23/01/2023
191;1;9999999;851,41;851,41;VIER  SCARL; ;19/01/2023;7552;1;217;1;Spese correnti;3;Acquisto di beni e servizi;2;Acquisto di servizi;5;Utenze e canoni;4;Energia elettrica;25/01/2023
192;1;9999999;433,61;433,61;DOLOMITI ENERGIA SPA;908782459B;19/01/2023;7552;1;551;1;Spese correnti;3;Acquisto di beni e servizi;2;Acquisto di servizi;5;Utenze e canoni;6;Gas;23/01/2023
194;1;9999999;11.294,41;11.294,41;AMMINISTRATORI COMUNALI; ;19/01/2023;74;0;141;1;Spese correnti;3;Acquisto di beni e servizi;2;Acquisto di servizi;1;Organi e incarichi istituzionali dell'amministrazione;1;Organi istituzionali dell'amministrazione - Indennità;25/01/2023
257;1;9999999;37,4;37,4;DIPENDENTI DIVERSI (MISSIONI E RIMBORSO SPESE); ;19/01/2023;1786;0;298;1;Spese correnti;3;Acquisto di beni e servizi;2;Acquisto di servizi;2;Organizzazione eventi, pubblicita` e servizi per trasferta;1;Rimborso per viaggio e trasloco;25/01/2023
304;1;9999999;800;800;BP SRL;Z23393CA74;23/01/2023;1147;1;1279;1;Spese correnti;3;Acquisto di beni e servizi;1;Acquisto di beni;2;Altri beni di consumo;999;Altri beni e materiali di consumo n.a.c.;25/01/2023
305;1;9999999;141,92;141,92;BP SRL;Z23393CA74;23/01/2023;1147;2;1280;1;Spese correnti;3;Acquisto di beni e servizi;1;Acquisto di beni;2;Altri beni di consumo;999;Altri beni e materiali di consumo n.a.c.;25/01/2023
306;1;9999999;2.301,54;2.301,54;BP SRL;Z23393CA74;23/01/2023;1185;1;1281;1;Spese correnti;3;Acquisto di beni e servizi;2;Acquisto di servizi;9;Manutenzione ordinaria e riparazioni;4;Manutenzione ordinaria e riparazioni di impianti e macchinari;25/01/2023
307;1;9999999;236,31;236,31;BP SRL;Z23393CA74;23/01/2023;1185;2;1282;1;Spese correnti;3;Acquisto di beni e servizi;2;Acquisto di servizi;9;Manutenzione ordinaria e riparazioni;4;Manutenzione ordinaria e riparazioni di impianti e macchinari;25/01/2023
308;1;9999999;213,5;213,5;FERRAMENTA ZOTTARELLI S.N.C.;Z70386DE84;23/01/2023;1300;0;1014;1;Spese correnti;3;Acquisto di beni e servizi;1;Acquisto di beni;2;Altri beni di consumo;999;Altri beni e materiali di consumo n.a.c.;25/01/2023
309;1;9999999;915;915;FERRAMENTA ZOTTARELLI S.N.C.;Z70386DE84;23/01/2023;1300;0;1014;1;Spese correnti;3;Acquisto di beni e servizi;1;Acquisto di beni;2;Altri beni di consumo;999;Altri beni e materiali di consumo n.a.c.;25/01/2023
310;1;9999999;600;600;BP SRL;Z23393CA74;23/01/2023;2610;0;1283;1;Spese correnti;3;Acquisto di beni e servizi;1;Acquisto di beni;2;Altri beni di consumo;999;Altri beni e materiali di consumo n.a.c.;25/01/2023
311;1;9999999;477,87;477,87;BP SRL;Z23393CA74;23/01/2023;2760;0;1284;1;Spese correnti;3;Acquisto di beni e servizi;2;Acquisto di servizi;9;Manutenzione ordinaria e riparazioni;4;Manutenzione ordinaria e riparazioni di impianti e macchinari;25/01/2023
312;1;9999999;394,04;394,04;BP SRL;Z23393CA74;23/01/2023;2770;1;1285;1;Spese correnti;3;Acquisto di beni e servizi;2;Acquisto di servizi;9;Manutenzione ordinaria e riparazioni;4;Manutenzione ordinaria e riparazioni di impianti e macchinari;25/01/2023
313;1;9999999;200;200;BP SRL;Z23393CA74;23/01/2023;2910;0;1286;1;Spese correnti;3;Acquisto di beni e servizi;1;Acquisto di beni;2;Altri beni di consumo;999;Altri beni e materiali di consumo n.a.c.;25/01/2023
314;1;9999999;6.297,41;6.297,41;BP SRL;Z23393CA74;23/01/2023;2980;1;1287;1;Spese correnti;3;Acquisto di beni e servizi;2;Acquisto di servizi;9;Manutenzione ordinaria e riparazioni;4;Manutenzione ordinaria e riparazioni di impianti e macchinari;25/01/2023
315;1;9999999;788,63;788,63;BP SRL;Z23393CA74;23/01/2023;4030;0;1288;1;Spese correnti;3;Acquisto di beni e servizi;2;Acquisto di servizi;9;Manutenzione ordinaria e riparazioni;4;Manutenzione ordinaria e riparazioni di impianti e macchinari;25/01/2023
316;1;9999999;1.236,15;1.236,15;BP SRL;Z23393CA74;23/01/2023;4540;0;1289;1;Spese correnti;3;Acquisto di beni e servizi;2;Acquisto di servizi;9;Manutenzione ordinaria e riparazioni;4;Manutenzione ordinaria e riparazioni di impianti e macchinari;25/01/2023
317;1;9999999;116,96;116,96;BP SRL;Z23393CA74;23/01/2023;4720;0;1290;1;Spese correnti;3;Acquisto di beni e servizi;2;Acquisto di servizi;9;Manutenzione ordinaria e riparazioni;4;Manutenzione ordinaria e riparazioni di impianti e macchinari;25/01/2023
318;1;9999999;4.408,20;4.408,20;BP SRL;Z23393CA74;23/01/2023;5080;0;1291;1;Spese correnti;3;Acquisto di beni e servizi;2;Acquisto di servizi;9;Manutenzione ordinaria e riparazioni;4;Manutenzione ordinaria e riparazioni di impianti e macchinari;25/01/2023
319;1;9999999;178,97;178,97;BP SRL;Z23393CA74;23/01/2023;7550;0;1292;1;Spese correnti;3;Acquisto di beni e servizi;2;Acquisto di servizi;9;Manutenzione ordinaria e riparazioni;4;Manutenzione ordinaria e riparazioni di impianti e macchinari;25/01/2023
320;1;9999999;4.187,04;4.187,04;MALASPINA GIANLUCA;ZC5352C29E;23/01/2023;6276;0;304;1;Spese correnti;3;Acquisto di beni e servizi;2;Acquisto di servizi;11;Prestazioni professionali e specialistiche;999;Altre prestazioni professionali e specialistiche n.a.c.;25/01/2023
321;1;9999999;780;780;MALGARETTO SARA;ZC5352C29E;23/01/2023;6276;0;305;1;Spese correnti;3;Acquisto di beni e servizi;2;Acquisto di servizi;11;Prestazioni professionali e specialistiche;999;Altre prestazioni professionali e specialistiche n.a.c.;25/01/2023
322;1;9999999;988;988;MIOTELLO MICHELE;ZC5352C29E;23/01/2023;6276;0;306;1;Spese correnti;3;Acquisto di beni e servizi;2;Acquisto di servizi;11;Prestazioni professionali e specialistiche;999;Altre prestazioni professionali e specialistiche n.a.c.;25/01/2023
323;1;9999999;750;750;COORD. PROV. ANTEAS ASSOCIAZIONE VOLONTARIATO; ;23/01/2023;8361;3;441;1;Spese correnti;4;Trasferimenti correnti;4;Trasferimenti correnti a Istituzioni Sociali Private;1;Trasferimenti correnti a Istituzioni Sociali Private;1;Trasferimenti correnti a Istituzioni Sociali Private;25/01/2023
324;1;9999999;1.846,00;1.846,00;COORD. PROV. ANTEAS ASSOCIAZIONE VOLONTARIATO; ;23/01/2023;8361;3;471;1;Spese correnti;4;Trasferimenti correnti;4;Trasferimenti correnti a Istituzioni Sociali Private;1;Trasferimenti correnti a Istituzioni Sociali Private;1;Trasferimenti correnti a Istituzioni Sociali Private;25/01/2023
325;1;9999999;3.426,00;3.426,00;CONSORZIO PROVINCIALE INTESA-CCA SOC.COOP.SOCIALECONSORTILE;9293702D7F;23/01/2023;8208;0;846;1;Spese correnti;3;Acquisto di beni e servizi;2;Acquisto di servizi;99;Altri servizi;999;Altri servizi diversi n.a.c.;25/01/2023
326;1;9999999;11.640,42;11.640,42;ASSOCIAZIONE COMUNI MARCA TREVIGIANA; ;23/01/2023;4261;2;1019;1;Spese correnti;3;Acquisto di beni e servizi;2;Acquisto di servizi;99;Altri servizi;999;Altri servizi diversi n.a.c.;25/01/2023
327;1;9999999;19.605,57;19.605,57;EUROGROUP S.P.A.;9288724189;23/01/2023;13218;0;577;2;Spese in conto capitale;2;Investimenti fissi lordi e acquisto di terreni;1;Beni materiali;9;Beni immobili;3;Fabbricati ad uso scolastico;25/01/2023
328;1;9999999;24.539,01;24.539,01;EUROGROUP S.P.A.;9288724189;23/01/2023;13218;0;577;2;Spese in conto capitale;2;Investimenti fissi lordi e acquisto di terreni;1;Beni materiali;9;Beni immobili;3;Fabbricati ad uso scolastico;25/01/2023
329;1;9999999;6.500,00;6.500,00;EUROGROUP S.P.A.;9288724189;23/01/2023;13218;0;577;2;Spese in conto capitale;2;Investimenti fissi lordi e acquisto di terreni;1;Beni materiali;9;Beni immobili;3;Fabbricati ad uso scolastico;25/01/2023
330;1;9999999;1.725,00;1.725,00;EUROGROUP S.P.A.;9288724189;23/01/2023;13218;0;577;2;Spese in conto capitale;2;Investimenti fissi lordi e acquisto di terreni;1;Beni materiali;9;Beni immobili;3;Fabbricati ad uso scolastico;25/01/2023
331;1;9999999;5.177,50;5.177,50;EUROGROUP S.P.A.;9288724189;23/01/2023;13218;0;577;2;Spese in conto capitale;2;Investimenti fissi lordi e acquisto di terreni;1;Beni materiali;9;Beni immobili;3;Fabbricati ad uso scolastico;25/01/2023
332;1;9999999;655;655;EUROGROUP S.P.A.;9288724189;23/01/2023;13218;0;577;2;Spese in conto capitale;2;Investimenti fissi lordi e acquisto di terreni;1;Beni materiali;9;Beni immobili;3;Fabbricati ad uso scolastico;25/01/2023
333;1;9999999;2.500,00;2.500,00;EUROGROUP S.P.A.;9288724189;23/01/2023;13218;0;577;2;Spese in conto capitale;2;Investimenti fissi lordi e acquisto di terreni;1;Beni materiali;9;Beni immobili;3;Fabbricati ad uso scolastico;25/01/2023
334;1;9999999;1.350,00;1.350,00;OMESSO NOMINATIVO NEL RISPETTO DELLA NORMATIVA SULLA PROTEZIONE DATI PERSONALI; ;23/01/2023;8361;0;146;1;Spese correnti;4;Trasferimenti correnti;2;Trasferimenti correnti a Famiglie;2;Interventi assistenziali;999;Altri assegni e sussidi assistenziali;25/01/2023
335;1;9999999;3.630,00;3.630,00;INSTITUTE OF CONSTRUCTIVIST PSYCHOLOGY SRL;Z002E7D3C7;24/01/2023;561;0;236;1;Spese correnti;3;Acquisto di beni e servizi;2;Acquisto di servizi;4;Acquisto di servizi per formazione e addestramento del personale dell'ente;999;Acquisto di servizi per altre spese per formazione e addestramento n.a.c.;27/01/2023
336;1;9999999;4.271,22;4.271,22;GB IMPIANTI DI BETTIOL GIANFRANCO;Z573926EAD;24/01/2023;1185;1;1262;1;Spese correnti;3;Acquisto di beni e servizi;2;Acquisto di servizi;9;Manutenzione ordinaria e riparazioni;4;Manutenzione ordinaria e riparazioni di impianti e macchinari;27/01/2023
337;1;9999999;587;587;CASA DI SOGGIORNO E RIPOSO MONS. LORENZO CRICO; ;24/01/2023;8204;2;1189;1;Spese correnti;3;Acquisto di beni e servizi;2;Acquisto di servizi;15;Contratti di servizio pubblico;8;Contratti di servizio di assistenza sociale residenziale e semiresidenziale;27/01/2023
338;1;9999999;353,8;353,8;INIZIATIVE UNINDUSTRIA SRL; ;24/01/2023;8204;4;1150;1;Spese correnti;3;Acquisto di beni e servizi;2;Acquisto di servizi;99;Altri servizi;999;Altri servizi diversi n.a.c.;27/01/2023
339;1;9999999;250;250;COMANDO PROV. VIGILI DEL FUOCO;Z3C3991D2E;24/01/2023;1340;0;180;1;Spese correnti;3;Acquisto di beni e servizi;2;Acquisto di servizi;11;Prestazioni professionali e specialistiche;999;Altre prestazioni professionali e specialistiche n.a.c.;27/01/2023
340;1;9999999;50;50;CONSORZIO DI BONIFICA ACQUE RISORGIVE; ;24/01/2023;15925;3;1374;2;Spese in conto capitale;2;Investimenti fissi lordi e acquisto di terreni;1;Beni materiali;9;Beni immobili;12;Infrastrutture stradali;27/01/2023
341;1;9999999;342;342;FORMEL SRL;ZE538BF1CC;24/01/2023;550;0;1078;1;Spese correnti;3;Acquisto di beni e servizi;2;Acquisto di servizi;4;Acquisto di servizi per formazione e addestramento del personale dell'ente;999;Acquisto di servizi per altre spese per formazione e addestramento n.a.c.;27/01/2023
342;1;9999999;1.210,00;1.210,00;SMART SOC. COOP. IMPRESA SOCIALE;Z0E38FB67A;24/01/2023;4710;0;1197;1;Spese correnti;3;Acquisto di beni e servizi;2;Acquisto di servizi;99;Altri servizi;999;Altri servizi diversi n.a.c.;27/01/2023
343;1;9999999;976;976;M&C di MARCO SECCO;Z123906AFB;24/01/2023;4710;0;1202;1;Spese correnti;3;Acquisto di beni e servizi;2;Acquisto di servizi;99;Altri servizi;999;Altri servizi diversi n.a.c.;27/01/2023
345;1;9999999;466,14;2.100,71;SERENISSIMA RISTORAZIONE SPA;932853027C;25/01/2023;4260;0;731;1;Spese correnti;3;Acquisto di beni e servizi;2;Acquisto di servizi;15;Contratti di servizio pubblico;6;Contratti di servizio per le mense scolastiche;30/01/2023
345;2;9999999;473,93;2.100,71;SERENISSIMA RISTORAZIONE SPA;932853027C;25/01/2023;4260;0;731;1;Spese correnti;3;Acquisto di beni e servizi;2;Acquisto di servizi;15;Contratti di servizio pubblico;6;Contratti di servizio per le mense scolastiche;30/01/2023
345;3;9999999;1.160,64;2.100,71;SERENISSIMA RISTORAZIONE SPA;932853027C;25/01/2023;4260;0;731;1;Spese correnti;3;Acquisto di beni e servizi;2;Acquisto di servizi;15;Contratti di servizio pubblico;6;Contratti di servizio per le mense scolastiche;30/01/2023
346;1;9999999;145,08;936,3;SERENISSIMA RISTORAZIONE SPA;932853027C;25/01/2023;4260;0;1182;1;Spese correnti;3;Acquisto di beni e servizi;2;Acquisto di servizi;15;Contratti di servizio pubblico;6;Contratti di servizio per le mense scolastiche;30/01/2023
346;2;9999999;154,75;936,3;SERENISSIMA RISTORAZIONE SPA;932853027C;25/01/2023;4260;0;1182;1;Spese correnti;3;Acquisto di beni e servizi;2;Acquisto di servizi;15;Contratti di servizio pubblico;6;Contratti di servizio per le mense scolastiche;30/01/2023
346;3;9999999;159,59;936,3;SERENISSIMA RISTORAZIONE SPA;932853027C;25/01/2023;4260;0;1182;1;Spese correnti;3;Acquisto di beni e servizi;2;Acquisto di servizi;15;Contratti di servizio pubblico;6;Contratti di servizio per le mense scolastiche;30/01/2023
346;4;9999999;476,88;936,3;SERENISSIMA RISTORAZIONE SPA;932853027C;25/01/2023;4260;0;1182;1;Spese correnti;3;Acquisto di beni e servizi;2;Acquisto di servizi;15;Contratti di servizio pubblico;6;Contratti di servizio per le mense scolastiche;30/01/2023
347;1;9999999;381,19;381,19;SERENISSIMA RISTORAZIONE SPA;932853027C;25/01/2023;4261;0;732;1;Spese correnti;3;Acquisto di beni e servizi;2;Acquisto di servizi;15;Contratti di servizio pubblico;6;Contratti di servizio per le mense scolastiche;30/01/2023
348;1;9999999;371,17;9.129,65;SERENISSIMA RISTORAZIONE SPA;932853027C;25/01/2023;4261;0;1183;1;Spese correnti;3;Acquisto di beni e servizi;2;Acquisto di servizi;15;Contratti di servizio pubblico;6;Contratti di servizio per le mense scolastiche;30/01/2023
348;2;9999999;378,5;9.129,65;SERENISSIMA RISTORAZIONE SPA;932853027C;25/01/2023;4261;0;1183;1;Spese correnti;3;Acquisto di beni e servizi;2;Acquisto di servizi;15;Contratti di servizio pubblico;6;Contratti di servizio per le mense scolastiche;30/01/2023
348;3;9999999;410,47;9.129,65;SERENISSIMA RISTORAZIONE SPA;932853027C;25/01/2023;4261;0;1183;1;Spese correnti;3;Acquisto di beni e servizi;2;Acquisto di servizi;15;Contratti di servizio pubblico;6;Contratti di servizio per le mense scolastiche;30/01/2023
348;4;9999999;563,43;9.129,65;SERENISSIMA RISTORAZIONE SPA;932853027C;25/01/2023;4261;0;1183;1;Spese correnti;3;Acquisto di beni e servizi;2;Acquisto di servizi;15;Contratti di servizio pubblico;6;Contratti di servizio per le mense scolastiche;30/01/2023
348;5;9999999;614,95;9.129,65;SERENISSIMA RISTORAZIONE SPA;932853027C;25/01/2023;4261;0;1183;1;Spese correnti;3;Acquisto di beni e servizi;2;Acquisto di servizi;15;Contratti di servizio pubblico;6;Contratti di servizio per le mense scolastiche;30/01/2023
348;6;9999999;927,34;9.129,65;SERENISSIMA RISTORAZIONE SPA;932853027C;25/01/2023;4261;0;1183;1;Spese correnti;3;Acquisto di beni e servizi;2;Acquisto di servizi;15;Contratti di servizio pubblico;6;Contratti di servizio per le mense scolastiche;30/01/2023
348;7;9999999;2.797,95;9.129,65;SERENISSIMA RISTORAZIONE SPA;932853027C;25/01/2023;4261;0;1183;1;Spese correnti;3;Acquisto di beni e servizi;2;Acquisto di servizi;15;Contratti di servizio pubblico;6;Contratti di servizio per le mense scolastiche;30/01/2023
348;8;9999999;3.065,84;9.129,65;SERENISSIMA RISTORAZIONE SPA;932853027C;25/01/2023;4261;0;1183;1;Spese correnti;3;Acquisto di beni e servizi;2;Acquisto di servizi;15;Contratti di servizio pubblico;6;Contratti di servizio per le mense scolastiche;30/01/2023
349;1;9999999;217,26;933,3;SERENISSIMA RISTORAZIONE SPA;932853027C;25/01/2023;7553;1;733;1;Spese correnti;3;Acquisto di beni e servizi;2;Acquisto di servizi;15;Contratti di servizio pubblico;6;Contratti di servizio per le mense scolastiche;30/01/2023
349;2;9999999;716,04;933,3;SERENISSIMA RISTORAZIONE SPA;932853027C;25/01/2023;7553;1;733;1;Spese correnti;3;Acquisto di beni e servizi;2;Acquisto di servizi;15;Contratti di servizio pubblico;6;Contratti di servizio per le mense scolastiche;30/01/2023
350;1;9999999;163,48;474,99;SERENISSIMA RISTORAZIONE SPA;932853027C;25/01/2023;7553;1;1184;1;Spese correnti;3;Acquisto di beni e servizi;2;Acquisto di servizi;15;Contratti di servizio pubblico;6;Contratti di servizio per le mense scolastiche;30/01/2023
350;2;9999999;311,51;474,99;SERENISSIMA RISTORAZIONE SPA;932853027C;25/01/2023;7553;1;1184;1;Spese correnti;3;Acquisto di beni e servizi;2;Acquisto di servizi;15;Contratti di servizio pubblico;6;Contratti di servizio per le mense scolastiche;30/01/2023
351;1;9999999;300;300;ASSOCIAZIONE COMUNI MARCA TREVIGIANA; ;25/01/2023;4700;0;181;1;Spese correnti;3;Acquisto di beni e servizi;2;Acquisto di servizi;99;Altri servizi;3;Quote di associazioni;30/01/2023
352;1;9999999;1.559,67;1.559,67;ABACO S.P.A.;90176575F7;26/01/2023;1010;0;1315;1;Spese correnti;3;Acquisto di beni e servizi;2;Acquisto di servizi;3;Aggi di riscossione;999;Altri aggi di riscossione n.a.c.;30/01/2023
353;1;9999999;500;500;IDRAULIC-THERM DI MENONCELLO PAOLO;Z65391E157;26/01/2023;1185;1;1229;1;Spese correnti;3;Acquisto di beni e servizi;2;Acquisto di servizi;9;Manutenzione ordinaria e riparazioni;4;Manutenzione ordinaria e riparazioni di impianti e macchinari;30/01/2023
354;1;9999999;500;500;IDRAULIC-THERM DI MENONCELLO PAOLO;Z65391E157;26/01/2023;1185;17;1230;1;Spese correnti;3;Acquisto di beni e servizi;2;Acquisto di servizi;9;Manutenzione ordinaria e riparazioni;4;Manutenzione ordinaria e riparazioni di impianti e macchinari;30/01/2023
355;1;9999999;2.000,00;2.000,00;IDRAULIC-THERM DI MENONCELLO PAOLO;Z65391E157;26/01/2023;2980;1;1231;1;Spese correnti;3;Acquisto di beni e servizi;2;Acquisto di servizi;9;Manutenzione ordinaria e riparazioni;4;Manutenzione ordinaria e riparazioni di impianti e macchinari;30/01/2023
356;1;9999999;1.000,00;1.000,00;IDRAULIC-THERM DI MENONCELLO PAOLO;Z65391E157;26/01/2023;4030;0;1232;1;Spese correnti;3;Acquisto di beni e servizi;2;Acquisto di servizi;9;Manutenzione ordinaria e riparazioni;4;Manutenzione ordinaria e riparazioni di impianti e macchinari;30/01/2023
357;1;9999999;1.340,00;1.340,00;LE LIBRERIE SRL - UN.LOC. LIBRERIA CANOVA TREVISO;Z9C394C1CA;26/01/2023;4506;0;1321;1;Spese correnti;3;Acquisto di beni e servizi;1;Acquisto di beni;1;Giornali, riviste e pubblicazioni;1;Giornali e riviste;30/01/2023
358;1;9999999;500;500;OMESSO NOMINATIVO NEL RISPETTO DELLA NORMATIVA SULLA PROTEZIONE DATI PERSONALI;Z65391E157;26/01/2023;4540;0;1233;1;Spese correnti;3;Acquisto di beni e servizi;2;Acquisto di servizi;9;Manutenzione ordinaria e riparazioni;4;Manutenzione ordinaria e riparazioni di impianti e macchinari;30/01/2023
359;1;9999999;990;990;IDRAULIC-THERM DI MENONCELLO PAOLO;Z65391E157;26/01/2023;5080;0;1234;1;Spese correnti;3;Acquisto di beni e servizi;2;Acquisto di servizi;9;Manutenzione ordinaria e riparazioni;4;Manutenzione ordinaria e riparazioni di impianti e macchinari;30/01/2023
360;1;9999999;2.586,40;2.586,40;ESSE EFFE SRLS;Z593971777;26/01/2023;5620;2;114;1;Spese correnti;3;Acquisto di beni e servizi;1;Acquisto di beni;2;Altri beni di consumo;999;Altri beni e materiali di consumo n.a.c.;30/01/2023
361;1;9999999;854;854;CENTRO STUDI AMM.VI M.T.;ZE234C13AC;26/01/2023;9442;0;126;1;Spese correnti;3;Acquisto di beni e servizi;2;Acquisto di servizi;99;Altri servizi;999;Altri servizi diversi n.a.c.;30/01/2023
362;1;9999999;4.148,00;4.148,00;IDRAULIC-THERM DI MENONCELLO PAOLO;Z20392E823;26/01/2023;11302;7;1266;2;Spese in conto capitale;2;Investimenti fissi lordi e acquisto di terreni;1;Beni materiali;9;Beni immobili;999;Beni immobili n.a.c.;30/01/2023
363;1;9999999;564;564;OMESSO NOMINATIVO NEL RISPETTO DELLA NORMATIVA SULLA PROTEZIONE DATI PERSONALI; ;26/01/2023;8361;0;172;1;Spese correnti;4;Trasferimenti correnti;2;Trasferimenti correnti a Famiglie;2;Interventi assistenziali;999;Altri assegni e sussidi assistenziali;30/01/2023
364;1;9999999;112,5;112,5;OMESSO NOMINATIVO NEL RISPETTO DELLA NORMATIVA SULLA PROTEZIONE DATI PERSONALI; ;26/01/2023;8361;0;176;1;Spese correnti;4;Trasferimenti correnti;2;Trasferimenti correnti a Famiglie;2;Interventi assistenziali;999;Altri assegni e sussidi assistenziali;30/01/2023
365;1;9999999;300;300;OMESSO NOMINATIVO NEL RISPETTO DELLA NORMATIVA SULLA PROTEZIONE DATI PERSONALI; ;26/01/2023;8361;0;174;1;Spese correnti;4;Trasferimenti correnti;2;Trasferimenti correnti a Famiglie;2;Interventi assistenziali;999;Altri assegni e sussidi assistenziali;30/01/2023
366;1;9999999;420;420;OMESSO NOMINATIVO NEL RISPETTO DELLA NORMATIVA SULLA PROTEZIONE DATI PERSONALI; ;26/01/2023;8361;0;175;1;Spese correnti;4;Trasferimenti correnti;2;Trasferimenti correnti a Famiglie;2;Interventi assistenziali;999;Altri assegni e sussidi assistenziali;30/01/2023
367;1;9999999;209,44;209,44;OMESSO NOMINATIVO NEL RISPETTO DELLA NORMATIVA SULLA PROTEZIONE DATI PERSONALI; ;26/01/2023;8361;0;177;1;Spese correnti;4;Trasferimenti correnti;2;Trasferimenti correnti a Famiglie;2;Interventi assistenziali;999;Altri assegni e sussidi assistenziali;30/01/2023
368;1;9999999;67,5;67,5;OMESSO NOMINATIVO NEL RISPETTO DELLA NORMATIVA SULLA PROTEZIONE DATI PERSONALI; ;26/01/2023;8361;0;178;1;Spese correnti;4;Trasferimenti correnti;2;Trasferimenti correnti a Famiglie;2;Interventi assistenziali;999;Altri assegni e sussidi assistenziali;30/01/2023
369;1;9999999;1.616,24;1.616,24;ABACO S.P.A.;90176575F7;26/01/2023;1010;0;1315;1;Spese correnti;3;Acquisto di beni e servizi;2;Acquisto di servizi;3;Aggi di riscossione;999;Altri aggi di riscossione n.a.c.;30/01/2023
370;1;9999999;684,11;684,11;ABACO S.P.A.;90176575F7;26/01/2023;1010;0;182;1;Spese correnti;3;Acquisto di beni e servizi;2;Acquisto di servizi;3;Aggi di riscossione;999;Altri aggi di riscossione n.a.c.;30/01/2023
371;1;9999999;1.443,78;1.443,78;EURO TOURS SRL;88188476C3;27/01/2023;4261;4;1177;1;Spese correnti;3;Acquisto di beni e servizi;2;Acquisto di servizi;15;Contratti di servizio pubblico;2;Contratti di servizio di trasporto scolastico;31/01/2023
372;1;9999999;300;300;EURO TOURS SRL;88188476C3;27/01/2023;4261;4;1314;1;Spese correnti;3;Acquisto di beni e servizi;2;Acquisto di servizi;15;Contratti di servizio pubblico;2;Contratti di servizio di trasporto scolastico;31/01/2023
373;1;9999999;9.900,83;9.900,83;CODESS SOCIALE-COOP. ONLUS;8855832FBD;27/01/2023;7560;1;1195;1;Spese correnti;3;Acquisto di beni e servizi;2;Acquisto di servizi;15;Contratti di servizio pubblico;10;Contratti di servizio di asilo nido;31/01/2023
374;1;9999999;13.503,97;13.503,97;CODESS SOCIALE-COOP. ONLUS;8855832FBD;27/01/2023;7560;1;1195;1;Spese correnti;3;Acquisto di beni e servizi;2;Acquisto di servizi;15;Contratti di servizio pubblico;10;Contratti di servizio di asilo nido;31/01/2023
375;1;9999999;353,8;353,8;INIZIATIVE UNINDUSTRIA SRL; ;27/01/2023;8204;4;121;1;Spese correnti;3;Acquisto di beni e servizi;2;Acquisto di servizi;99;Altri servizi;999;Altri servizi diversi n.a.c.;31/01/2023
376;1;9999999;949,88;949,88;KIRIKU Societa' cooperativa sociale onlus;Z6C35B265E;27/01/2023;8204;4;461;1;Spese correnti;3;Acquisto di beni e servizi;2;Acquisto di servizi;99;Altri servizi;999;Altri servizi diversi n.a.c.;31/01/2023
377;1;9999999;880;880;A.I.D.O. - SEZIONE DI PREGANZIOL; ;27/01/2023;8252;0;1347;1;Spese correnti;4;Trasferimenti correnti;4;Trasferimenti correnti a Istituzioni Sociali Private;1;Trasferimenti correnti a Istituzioni Sociali Private;1;Trasferimenti correnti a Istituzioni Sociali Private;31/01/2023
378;1;9999999;820;820;A.V.I.S. PREGANZIOL; ;27/01/2023;8252;0;1348;1;Spese correnti;4;Trasferimenti correnti;4;Trasferimenti correnti a Istituzioni Sociali Private;1;Trasferimenti correnti a Istituzioni Sociali Private;1;Trasferimenti correnti a Istituzioni Sociali Private;31/01/2023
379;1;9999999;499,3;499,3;APIO ODV; ;27/01/2023;8252;0;1349;1;Spese correnti;4;Trasferimenti correnti;4;Trasferimenti correnti a Istituzioni Sociali Private;1;Trasferimenti correnti a Istituzioni Sociali Private;1;Trasferimenti correnti a Istituzioni Sociali Private;31/01/2023
380;1;9999999;1.833,15;1.833,15;VERITAS  S.P.A.;Z01396F7E7;27/01/2023;15905;14;1343;2;Spese in conto capitale;2;Investimenti fissi lordi e acquisto di terreni;1;Beni materiali;9;Beni immobili;12;Infrastrutture stradali;31/01/2023
381;1;9999999;140.887,61;140.887,61;U.L.S.S. N. 2 MARCA TREVIGIANA########; ;27/01/2023;8360;0;183;1;Spese correnti;4;Trasferimenti correnti;1;Trasferimenti correnti a Amministrazioni Pubbliche;2;Trasferimenti correnti a Amministrazioni Locali;20;Trasferimenti correnti a Aziende sanitarie locali  a titolo di finanziamento del servizio sanitario nazionale;31/01/2023
382;1;9999999;186;186;INAIL EX ISPESL; ;27/01/2023;13218;0;577;2;Spese in conto capitale;2;Investimenti fissi lordi e acquisto di terreni;1;Beni materiali;9;Beni immobili;3;Fabbricati ad uso scolastico;30/01/2023
383;1;9999999;366;366;SE.M.PRE S.R.L.;ZEC383EAA9;30/01/2023;2190;1;986;1;Spese correnti;3;Acquisto di beni e servizi;1;Acquisto di beni;2;Altri beni di consumo;999;Altri beni e materiali di consumo n.a.c.;01/02/2023
384;1;9999999;848,56;848,56;TIRO A SEGNO NAZIONALE-SEZ.TV;ZD035C0760;30/01/2023;2334;2;361;1;Spese correnti;3;Acquisto di beni e servizi;2;Acquisto di servizi;4;Acquisto di servizi per formazione e addestramento del personale dell'ente;4;Acquisto di servizi per formazione obbligatoria;01/02/2023
385;1;9999999;2.700,00;2.700,00;ASSOCIAZIONE CULTURALE TEATRO DELLE ARANCE;Z6538DCB2E;30/01/2023;4710;0;1215;1;Spese correnti;3;Acquisto di beni e servizi;2;Acquisto di servizi;99;Altri servizi;999;Altri servizi diversi n.a.c.;01/02/2023
386;1;9999999;1.333,73;1.333,73;MINISTERO INFRASTR./TRASPORTI-MOTORIZZ.CIVILE; ;30/01/2023;2344;0;1166;1;Spese correnti;3;Acquisto di beni e servizi;2;Acquisto di servizi;5;Utenze e canoni;3;Accesso a banche dati e a pubblicazioni on line;01/02/2023
387;1;9999999;2.361,00;2.361,00;GIES S.R.L.;Z7934ED2CD;31/01/2023;1201;0;199;1;Spese correnti;3;Acquisto di beni e servizi;2;Acquisto di servizi;99;Altri servizi;999;Altri servizi diversi n.a.c.;03/02/2023
388;1;9999999;463;463;GIES S.R.L.;Z7934ED2CD;31/01/2023;810;0;200;1;Spese correnti;3;Acquisto di beni e servizi;2;Acquisto di servizi;99;Altri servizi;999;Altri servizi diversi n.a.c.;03/02/2023
389;1;9999999;101,86;101,86;AGENZIA DELLE ENTRATE DI TREVISO;Z7934ED2CD;31/01/2023;810;0;200;1;Spese correnti;3;Acquisto di beni e servizi;2;Acquisto di servizi;99;Altri servizi;999;Altri servizi diversi n.a.c.;16/02/2023
390;1;9999999;519,42;519,42;AGENZIA DELLE ENTRATE DI TREVISO;Z7934ED2CD;31/01/2023;1201;0;199;1;Spese correnti;3;Acquisto di beni e servizi;2;Acquisto di servizi;99;Altri servizi;999;Altri servizi diversi n.a.c.;16/02/2023
391;1;9999999;423,93;423,93;POSTE ITALIANE SPA;ZCE3502180;31/01/2023;1793;0;288;1;Spese correnti;3;Acquisto di beni e servizi;2;Acquisto di servizi;16;Servizi amministrativi;2;Spese postali;03/02/2023
392;1;9999999;31.134,40;31.134,40;HALLEY VENETO SRL;901457569E;31/01/2023;1798;0;1250;1;Spese correnti;3;Acquisto di beni e servizi;2;Acquisto di servizi;19;Servizi informatici e di telecomunicazioni;1;Gestione e manutenzione applicazioni;03/02/2023
393;1;9999999;2.055,16;2.055,16;G.A.M. GONZAGARREDI MONTESSORI S.R.L.;Z543849579;31/01/2023;14400;2;969;2;Spese in conto capitale;2;Investimenti fissi lordi e acquisto di terreni;1;Beni materiali;3;Mobili e arredi;1;Mobili e arredi per ufficio;03/02/2023
394;1;9999999;958,59;958,59;ANCI VENETO; ;31/01/2023;690;0;189;1;Spese correnti;3;Acquisto di beni e servizi;2;Acquisto di servizi;99;Altri servizi;3;Quote di associazioni;03/02/2023
395;1;9999999;1.000,00;1.000,00;A.N.U.T.E.L.; ;31/01/2023;690;0;192;1;Spese correnti;3;Acquisto di beni e servizi;2;Acquisto di servizi;99;Altri servizi;3;Quote di associazioni;03/02/2023
396;1;9999999;825;825;ASSOCIAZIONE COMUNI MARCA TREVIGIANA; ;31/01/2023;690;0;188;1;Spese correnti;3;Acquisto di beni e servizi;2;Acquisto di servizi;99;Altri servizi;3;Quote di associazioni;03/02/2023
397;1;9999999;440;440;COORD.NAZ.LE ENTI LOCALI PER LA PACE; ;31/01/2023;690;0;191;1;Spese correnti;3;Acquisto di beni e servizi;2;Acquisto di servizi;99;Altri servizi;3;Quote di associazioni;03/02/2023
399;1;9999999;30;30;BANCOPOSTA; ;31/01/2023;820;0;243;1;Spese correnti;3;Acquisto di beni e servizi;2;Acquisto di servizi;17;Servizi finanziari;999;Spese per servizi finanziari n.a.c.;03/02/2023
401;1;9999999;246;246;SE.M.PRE S.R.L.;Z6B388CD49;01/02/2023;15905;8;961;2;Spese in conto capitale;2;Investimenti fissi lordi e acquisto di terreni;1;Beni materiali;9;Beni immobili;12;Infrastrutture stradali;03/02/2023
402;1;9999999;5.000,00;5.000,00;SE.M.PRE S.R.L.;Z6B388CD49;01/02/2023;15905;14;962;2;Spese in conto capitale;2;Investimenti fissi lordi e acquisto di terreni;1;Beni materiali;9;Beni immobili;12;Infrastrutture stradali;03/02/2023
403;1;9999999;1.269,78;1.269,78;STENOTYPE EMILIA S.R.L.;Z5534EB969;01/02/2023;501;0;241;1;Spese correnti;3;Acquisto di beni e servizi;2;Acquisto di servizi;13;Servizi ausiliari per il funzionamento dell'ente;999;Altri servizi ausiliari n.a.c.;03/02/2023
406;1;9999999;90;90;ANCI SA S.R.L.;ZB338AA2BA;01/02/2023;559;0;1073;1;Spese correnti;3;Acquisto di beni e servizi;2;Acquisto di servizi;4;Acquisto di servizi per formazione e addestramento del personale dell'ente;999;Acquisto di servizi per altre spese per formazione e addestramento n.a.c.;03/02/2023
407;1;9999999;800;800;CENTRO STUDI AMM.VI M.T.; ;01/02/2023;690;0;190;1;Spese correnti;3;Acquisto di beni e servizi;2;Acquisto di servizi;99;Altri servizi;3;Quote di associazioni;03/02/2023
408;1;9999999;350;350;CENTRO STUDI AMM.VI M.T.; ;01/02/2023;551;0;208;1;Spese correnti;3;Acquisto di beni e servizi;2;Acquisto di servizi;4;Acquisto di servizi per formazione e addestramento del personale dell'ente;999;Acquisto di servizi per altre spese per formazione e addestramento n.a.c.;03/02/2023
409;1;9999999;400;400;CENTRO STUDI AMM.VI M.T.; ;01/02/2023;557;0;209;1;Spese correnti;3;Acquisto di beni e servizi;2;Acquisto di servizi;4;Acquisto di servizi per formazione e addestramento del personale dell'ente;999;Acquisto di servizi per altre spese per formazione e addestramento n.a.c.;03/02/2023
410;1;9999999;700;700;ASSOCIAZIONE AVVISO PUBBLICO; ;01/02/2023;690;0;195;1;Spese correnti;3;Acquisto di beni e servizi;2;Acquisto di servizi;99;Altri servizi;3;Quote di associazioni;03/02/2023
411;1;9999999;1.300,00;1.300,00;A.N.U.S.C.A. S.R.L.; ;01/02/2023;690;0;196;1;Spese correnti;3;Acquisto di beni e servizi;2;Acquisto di servizi;99;Altri servizi;3;Quote di associazioni;03/02/2023
412;1;9999999;284,38;284,38;VERITAS  S.P.A.; ;01/02/2023;2973;0;221;1;Spese correnti;3;Acquisto di beni e servizi;2;Acquisto di servizi;5;Utenze e canoni;5;Acqua;03/02/2023
413;1;9999999;2,01;233,68;VERITAS  S.P.A.; ;01/02/2023;1801;0;218;1;Spese correnti;3;Acquisto di beni e servizi;2;Acquisto di servizi;5;Utenze e canoni;5;Acqua;03/02/2023
413;2;9999999;24,68;233,68;VERITAS  S.P.A.; ;01/02/2023;1801;0;218;1;Spese correnti;3;Acquisto di beni e servizi;2;Acquisto di servizi;5;Utenze e canoni;5;Acqua;03/02/2023
413;3;9999999;45,72;233,68;VERITAS  S.P.A.; ;01/02/2023;1801;0;218;1;Spese correnti;3;Acquisto di beni e servizi;2;Acquisto di servizi;5;Utenze e canoni;5;Acqua;03/02/2023
413;4;9999999;54,64;233,68;VERITAS  S.P.A.; ;01/02/2023;1801;0;218;1;Spese correnti;3;Acquisto di beni e servizi;2;Acquisto di servizi;5;Utenze e canoni;5;Acqua;03/02/2023
413;5;9999999;106,63;233,68;VERITAS  S.P.A.; ;01/02/2023;1801;0;218;1;Spese correnti;3;Acquisto di beni e servizi;2;Acquisto di servizi;5;Utenze e canoni;5;Acqua;03/02/2023
414;1;9999999;112,23;112,23;VERITAS  S.P.A.; ;01/02/2023;2790;0;219;1;Spese correnti;3;Acquisto di beni e servizi;2;Acquisto di servizi;5;Utenze e canoni;5;Acqua;03/02/2023
415;1;9999999;145,78;145,78;VERITAS  S.P.A.; ;01/02/2023;2792;0;220;1;Spese correnti;3;Acquisto di beni e servizi;2;Acquisto di servizi;5;Utenze e canoni;5;Acqua;03/02/2023
416;1;9999999;58,38;1.263,15;VERITAS  S.P.A.; ;01/02/2023;2973;0;221;1;Spese correnti;3;Acquisto di beni e servizi;2;Acquisto di servizi;5;Utenze e canoni;5;Acqua;03/02/2023
416;2;9999999;58,38;1.263,15;VERITAS  S.P.A.; ;01/02/2023;2973;0;221;1;Spese correnti;3;Acquisto di beni e servizi;2;Acquisto di servizi;5;Utenze e canoni;5;Acqua;03/02/2023
416;3;9999999;58,38;1.263,15;VERITAS  S.P.A.; ;01/02/2023;2973;0;221;1;Spese correnti;3;Acquisto di beni e servizi;2;Acquisto di servizi;5;Utenze e canoni;5;Acqua;03/02/2023
416;4;9999999;58,38;1.263,15;VERITAS  S.P.A.; ;01/02/2023;2973;0;221;1;Spese correnti;3;Acquisto di beni e servizi;2;Acquisto di servizi;5;Utenze e canoni;5;Acqua;03/02/2023
416;5;9999999;58,38;1.263,15;VERITAS  S.P.A.; ;01/02/2023;2973;0;221;1;Spese correnti;3;Acquisto di beni e servizi;2;Acquisto di servizi;5;Utenze e canoni;5;Acqua;03/02/2023
416;6;9999999;66,93;1.263,15;VERITAS  S.P.A.; ;01/02/2023;2973;0;221;1;Spese correnti;3;Acquisto di beni e servizi;2;Acquisto di servizi;5;Utenze e canoni;5;Acqua;03/02/2023
416;7;9999999;75,75;1.263,15;VERITAS  S.P.A.; ;01/02/2023;2973;0;221;1;Spese correnti;3;Acquisto di beni e servizi;2;Acquisto di servizi;5;Utenze e canoni;5;Acqua;03/02/2023
416;8;9999999;78,88;1.263,15;VERITAS  S.P.A.; ;01/02/2023;2973;0;221;1;Spese correnti;3;Acquisto di beni e servizi;2;Acquisto di servizi;5;Utenze e canoni;5;Acqua;03/02/2023
416;9;9999999;105,3;1.263,15;VERITAS  S.P.A.; ;01/02/2023;2973;0;221;1;Spese correnti;3;Acquisto di beni e servizi;2;Acquisto di servizi;5;Utenze e canoni;5;Acqua;03/02/2023
416;10;9999999;127,21;1.263,15;VERITAS  S.P.A.; ;01/02/2023;2973;0;221;1;Spese correnti;3;Acquisto di beni e servizi;2;Acquisto di servizi;5;Utenze e canoni;5;Acqua;03/02/2023
416;11;9999999;517,18;1.263,15;VERITAS  S.P.A.; ;01/02/2023;2973;0;221;1;Spese correnti;3;Acquisto di beni e servizi;2;Acquisto di servizi;5;Utenze e canoni;5;Acqua;03/02/2023
417;1;9999999;2.873,23;2.873,23;VERITAS  S.P.A.; ;01/02/2023;4020;0;222;1;Spese correnti;3;Acquisto di beni e servizi;2;Acquisto di servizi;5;Utenze e canoni;5;Acqua;03/02/2023
418;1;9999999;58,38;1.844,31;VERITAS  S.P.A.; ;01/02/2023;4020;0;222;1;Spese correnti;3;Acquisto di beni e servizi;2;Acquisto di servizi;5;Utenze e canoni;5;Acqua;03/02/2023
418;2;9999999;64,5;1.844,31;VERITAS  S.P.A.; ;01/02/2023;4020;0;222;1;Spese correnti;3;Acquisto di beni e servizi;2;Acquisto di servizi;5;Utenze e canoni;5;Acqua;03/02/2023
418;3;9999999;1.721,43;1.844,31;VERITAS  S.P.A.; ;01/02/2023;4020;0;222;1;Spese correnti;3;Acquisto di beni e servizi;2;Acquisto di servizi;5;Utenze e canoni;5;Acqua;03/02/2023
419;1;9999999;141,31;141,31;VERITAS  S.P.A.; ;01/02/2023;4527;0;223;1;Spese correnti;3;Acquisto di beni e servizi;2;Acquisto di servizi;5;Utenze e canoni;5;Acqua;03/02/2023
420;1;9999999;109,46;267,44;VERITAS  S.P.A.; ;01/02/2023;5051;0;224;1;Spese correnti;3;Acquisto di beni e servizi;2;Acquisto di servizi;5;Utenze e canoni;5;Acqua;03/02/2023
420;2;9999999;157,98;267,44;VERITAS  S.P.A.; ;01/02/2023;5051;0;224;1;Spese correnti;3;Acquisto di beni e servizi;2;Acquisto di servizi;5;Utenze e canoni;5;Acqua;03/02/2023
421;1;9999999;29,42;29,42;VERITAS  S.P.A.; ;01/02/2023;5051;0;224;1;Spese correnti;3;Acquisto di beni e servizi;2;Acquisto di servizi;5;Utenze e canoni;5;Acqua;03/02/2023
422;1;9999999;19,19;108,93;VERITAS  S.P.A.; ;01/02/2023;6461;0;226;1;Spese correnti;3;Acquisto di beni e servizi;2;Acquisto di servizi;5;Utenze e canoni;5;Acqua;03/02/2023
422;2;9999999;20,94;108,93;VERITAS  S.P.A.; ;01/02/2023;6461;0;226;1;Spese correnti;3;Acquisto di beni e servizi;2;Acquisto di servizi;5;Utenze e canoni;5;Acqua;03/02/2023
422;3;9999999;24,46;108,93;VERITAS  S.P.A.; ;01/02/2023;6461;0;226;1;Spese correnti;3;Acquisto di beni e servizi;2;Acquisto di servizi;5;Utenze e canoni;5;Acqua;03/02/2023
422;4;9999999;44,34;108,93;VERITAS  S.P.A.; ;01/02/2023;6461;0;226;1;Spese correnti;3;Acquisto di beni e servizi;2;Acquisto di servizi;5;Utenze e canoni;5;Acqua;03/02/2023
423;1;9999999;13,8;196,69;VERITAS  S.P.A.; ;01/02/2023;2973;0;221;1;Spese correnti;3;Acquisto di beni e servizi;2;Acquisto di servizi;5;Utenze e canoni;5;Acqua;03/02/2023
423;2;9999999;14,69;196,69;VERITAS  S.P.A.; ;01/02/2023;2973;0;221;1;Spese correnti;3;Acquisto di beni e servizi;2;Acquisto di servizi;5;Utenze e canoni;5;Acqua;03/02/2023
423;3;9999999;16,68;196,69;VERITAS  S.P.A.; ;01/02/2023;2973;0;221;1;Spese correnti;3;Acquisto di beni e servizi;2;Acquisto di servizi;5;Utenze e canoni;5;Acqua;03/02/2023
423;4;9999999;16,9;196,69;VERITAS  S.P.A.; ;01/02/2023;2973;0;221;1;Spese correnti;3;Acquisto di beni e servizi;2;Acquisto di servizi;5;Utenze e canoni;5;Acqua;03/02/2023
423;5;9999999;19,34;196,69;VERITAS  S.P.A.; ;01/02/2023;2973;0;221;1;Spese correnti;3;Acquisto di beni e servizi;2;Acquisto di servizi;5;Utenze e canoni;5;Acqua;03/02/2023
423;6;9999999;19,41;196,69;VERITAS  S.P.A.; ;01/02/2023;2973;0;221;1;Spese correnti;3;Acquisto di beni e servizi;2;Acquisto di servizi;5;Utenze e canoni;5;Acqua;03/02/2023
423;7;9999999;23,08;196,69;VERITAS  S.P.A.; ;01/02/2023;2973;0;221;1;Spese correnti;3;Acquisto di beni e servizi;2;Acquisto di servizi;5;Utenze e canoni;5;Acqua;03/02/2023
423;8;9999999;23,14;196,69;VERITAS  S.P.A.; ;01/02/2023;2973;0;221;1;Spese correnti;3;Acquisto di beni e servizi;2;Acquisto di servizi;5;Utenze e canoni;5;Acqua;03/02/2023
423;9;9999999;23,87;196,69;VERITAS  S.P.A.; ;01/02/2023;2973;0;221;1;Spese correnti;3;Acquisto di beni e servizi;2;Acquisto di servizi;5;Utenze e canoni;5;Acqua;03/02/2023
423;10;9999999;25,78;196,69;VERITAS  S.P.A.; ;01/02/2023;2973;0;221;1;Spese correnti;3;Acquisto di beni e servizi;2;Acquisto di servizi;5;Utenze e canoni;5;Acqua;03/02/2023
424;1;9999999;43,33;43,33;VERITAS  S.P.A.; ;01/02/2023;6905;0;227;1;Spese correnti;3;Acquisto di beni e servizi;2;Acquisto di servizi;5;Utenze e canoni;5;Acqua;03/02/2023
425;1;9999999;67,54;67,54;VERITAS  S.P.A.; ;01/02/2023;2973;0;221;1;Spese correnti;3;Acquisto di beni e servizi;2;Acquisto di servizi;5;Utenze e canoni;5;Acqua;03/02/2023
426;1;9999999;14,66;236,9;VERITAS  S.P.A.; ;01/02/2023;7431;0;228;1;Spese correnti;3;Acquisto di beni e servizi;2;Acquisto di servizi;5;Utenze e canoni;5;Acqua;03/02/2023
426;2;9999999;20,91;236,9;VERITAS  S.P.A.; ;01/02/2023;7431;0;228;1;Spese correnti;3;Acquisto di beni e servizi;2;Acquisto di servizi;5;Utenze e canoni;5;Acqua;03/02/2023
426;3;9999999;25,07;236,9;VERITAS  S.P.A.; ;01/02/2023;7431;0;228;1;Spese correnti;3;Acquisto di beni e servizi;2;Acquisto di servizi;5;Utenze e canoni;5;Acqua;03/02/2023
426;4;9999999;50,42;236,9;VERITAS  S.P.A.; ;01/02/2023;7431;0;228;1;Spese correnti;3;Acquisto di beni e servizi;2;Acquisto di servizi;5;Utenze e canoni;5;Acqua;03/02/2023
426;5;9999999;125,84;236,9;VERITAS  S.P.A.; ;01/02/2023;7431;0;228;1;Spese correnti;3;Acquisto di beni e servizi;2;Acquisto di servizi;5;Utenze e canoni;5;Acqua;03/02/2023
427;1;9999999;74,82;172,01;VERITAS  S.P.A.; ;01/02/2023;7552;1;229;1;Spese correnti;3;Acquisto di beni e servizi;2;Acquisto di servizi;5;Utenze e canoni;5;Acqua;03/02/2023
427;2;9999999;97,19;172,01;VERITAS  S.P.A.; ;01/02/2023;7552;1;229;1;Spese correnti;3;Acquisto di beni e servizi;2;Acquisto di servizi;5;Utenze e canoni;5;Acqua;03/02/2023
428;1;9999999;600;600;REGIONE EMILIA ROMAGNA; ;01/02/2023;1798;0;1254;1;Spese correnti;3;Acquisto di beni e servizi;2;Acquisto di servizi;19;Servizi informatici e di telecomunicazioni;7;Servizi di gestione documentale;06/02/2023
429;1;9999999;2.074,00;2.074,00;PRECOM SNC DI MARCO PANELLA & C.;Z3C38CB862;01/02/2023;6646;0;1222;1;Spese correnti;3;Acquisto di beni e servizi;2;Acquisto di servizi;99;Altri servizi;999;Altri servizi diversi n.a.c.;03/02/2023
430;1;9999999;4.570,12;4.570,12;PRECOM SNC DI MARCO PANELLA & C.;Z3C38CB862;01/02/2023;10792;0;1223;2;Spese in conto capitale;2;Investimenti fissi lordi e acquisto di terreni;1;Beni materiali;5;Attrezzature;999;Attrezzature n.a.c.;03/02/2023
431;1;9999999;61,89;61,89;MINISTERO INFRASTR./TRASPORTI-MOTORIZZ.CIVILE;Z8E33F0239;02/02/2023;2344;0;1169;1;Spese correnti;3;Acquisto di beni e servizi;2;Acquisto di servizi;5;Utenze e canoni;3;Accesso a banche dati e a pubblicazioni on line;08/02/2023
432;1;9999999;1.490,00;1.490,00;OMESSO NOMINATIVO NEL RISPETTO DELLA NORMATIVA SULLA PROTEZIONE DATI PERSONALI; ;02/02/2023;8361;0;1067;1;Spese correnti;4;Trasferimenti correnti;2;Trasferimenti correnti a Famiglie;2;Interventi assistenziali;999;Altri assegni e sussidi assistenziali;08/02/2023
436;1;9999999;15;15;BANCOPOSTA; ;02/02/2023;820;0;243;1;Spese correnti;3;Acquisto di beni e servizi;2;Acquisto di servizi;17;Servizi finanziari;999;Spese per servizi finanziari n.a.c.;08/02/2023
437;1;9999999;110;110;PROGETTO SOFIS DI MICHELE MAJETTA;ZA9398C000;06/02/2023;564;0;147;1;Spese correnti;3;Acquisto di beni e servizi;2;Acquisto di servizi;4;Acquisto di servizi per formazione e addestramento del personale dell'ente;999;Acquisto di servizi per altre spese per formazione e addestramento n.a.c.;08/02/2023
438;1;9999999;-78,3;78,3;AUTOFF.F.LLI DAL BO DI DAL BO MARIO & C. SAS;Z4E3995ED2;06/02/2023;1340;1;170;1;Spese correnti;3;Acquisto di beni e servizi;2;Acquisto di servizi;9;Manutenzione ordinaria e riparazioni;1;Manutenzione ordinaria e riparazioni di mezzi di trasporto ad uso civile, di sicurezza e ordine pubblico;08/02/2023
438;2;9999999;78,3;78,3;AUTOFF.F.LLI DAL BO DI DAL BO MARIO & C. SAS;Z4E3995ED2;06/02/2023;1340;1;170;1;Spese correnti;3;Acquisto di beni e servizi;2;Acquisto di servizi;9;Manutenzione ordinaria e riparazioni;1;Manutenzione ordinaria e riparazioni di mezzi di trasporto ad uso civile, di sicurezza e ordine pubblico;08/02/2023
438;3;9999999;78,3;78,3;AUTOFF.F.LLI DAL BO DI DAL BO MARIO & C. SAS;Z4E3995ED2;06/02/2023;1340;1;170;1;Spese correnti;3;Acquisto di beni e servizi;2;Acquisto di servizi;9;Manutenzione ordinaria e riparazioni;1;Manutenzione ordinaria e riparazioni di mezzi di trasporto ad uso civile, di sicurezza e ordine pubblico;08/02/2023
439;1;9999999;153,11;153,11;ENEL ENERGIA SPA;9072556E0B;06/02/2023;1346;0;321;1;Spese correnti;3;Acquisto di beni e servizi;2;Acquisto di servizi;5;Utenze e canoni;4;Energia elettrica;08/02/2023
440;1;9999999;212,67;527,59;DOLOMITI ENERGIA SPA;908782459B;06/02/2023;1346;0;553;1;Spese correnti;3;Acquisto di beni e servizi;2;Acquisto di servizi;5;Utenze e canoni;6;Gas;08/02/2023
440;2;9999999;314,92;527,59;DOLOMITI ENERGIA SPA;908782459B;06/02/2023;1346;0;553;1;Spese correnti;3;Acquisto di beni e servizi;2;Acquisto di servizi;5;Utenze e canoni;6;Gas;08/02/2023
441;1;9999999;36,35;4.005,50;ERREBIAN SPA;Z1338D774F;06/02/2023;1778;0;1216;1;Spese correnti;3;Acquisto di beni e servizi;1;Acquisto di beni;2;Altri beni di consumo;1;Carta, cancelleria e stampati;08/02/2023
441;2;9999999;3.969,15;4.005,50;ERREBIAN SPA;Z1338D774F;06/02/2023;1778;0;1216;1;Spese correnti;3;Acquisto di beni e servizi;1;Acquisto di beni;2;Altri beni di consumo;1;Carta, cancelleria e stampati;08/02/2023
442;1;9999999;3.999,99;3.999,99;PULITORI ED AFFINI SPA;87752258BF;06/02/2023;1794;0;656;1;Spese correnti;3;Acquisto di beni e servizi;2;Acquisto di servizi;13;Servizi ausiliari per il funzionamento dell'ente;2;Servizi di pulizia e lavanderia;08/02/2023
444;1;9999999;50,89;7.033,79;ENEL ENERGIA SPA;9072556E0B;06/02/2023;1801;0;542;1;Spese correnti;3;Acquisto di beni e servizi;2;Acquisto di servizi;5;Utenze e canoni;4;Energia elettrica;08/02/2023
444;2;9999999;354,89;7.033,79;ENEL ENERGIA SPA;9072556E0B;06/02/2023;1801;0;542;1;Spese correnti;3;Acquisto di beni e servizi;2;Acquisto di servizi;5;Utenze e canoni;4;Energia elettrica;08/02/2023
444;3;9999999;777,15;7.033,79;ENEL ENERGIA SPA;9072556E0B;06/02/2023;1801;0;542;1;Spese correnti;3;Acquisto di beni e servizi;2;Acquisto di servizi;5;Utenze e canoni;4;Energia elettrica;08/02/2023
444;4;9999999;1.003,56;7.033,79;ENEL ENERGIA SPA;9072556E0B;06/02/2023;1801;0;542;1;Spese correnti;3;Acquisto di beni e servizi;2;Acquisto di servizi;5;Utenze e canoni;4;Energia elettrica;08/02/2023
444;5;9999999;1.035,23;7.033,79;ENEL ENERGIA SPA;9072556E0B;06/02/2023;1801;0;542;1;Spese correnti;3;Acquisto di beni e servizi;2;Acquisto di servizi;5;Utenze e canoni;4;Energia elettrica;08/02/2023
444;6;9999999;3.812,07;7.033,79;ENEL ENERGIA SPA;9072556E0B;06/02/2023;1801;0;542;1;Spese correnti;3;Acquisto di beni e servizi;2;Acquisto di servizi;5;Utenze e canoni;4;Energia elettrica;08/02/2023
445;1;9999999;-78,3;78,3;AUTOFF.F.LLI DAL BO DI DAL BO MARIO & C. SAS;Z4E3995ED2;06/02/2023;2422;1;171;1;Spese correnti;3;Acquisto di beni e servizi;2;Acquisto di servizi;9;Manutenzione ordinaria e riparazioni;1;Manutenzione ordinaria e riparazioni di mezzi di trasporto ad uso civile, di sicurezza e ordine pubblico;08/02/2023
445;2;9999999;78,3;78,3;AUTOFF.F.LLI DAL BO DI DAL BO MARIO & C. SAS;Z4E3995ED2;06/02/2023;2422;1;171;1;Spese correnti;3;Acquisto di beni e servizi;2;Acquisto di servizi;9;Manutenzione ordinaria e riparazioni;1;Manutenzione ordinaria e riparazioni di mezzi di trasporto ad uso civile, di sicurezza e ordine pubblico;08/02/2023
445;3;9999999;78,3;78,3;AUTOFF.F.LLI DAL BO DI DAL BO MARIO & C. SAS;Z4E3995ED2;06/02/2023;2422;1;171;1;Spese correnti;3;Acquisto di beni e servizi;2;Acquisto di servizi;9;Manutenzione ordinaria e riparazioni;1;Manutenzione ordinaria e riparazioni di mezzi di trasporto ad uso civile, di sicurezza e ordine pubblico;08/02/2023
446;1;9999999;6.624,72;6.624,72;DOLOMITI ENERGIA SPA;908782459B;06/02/2023;2790;0;738;1;Spese correnti;3;Acquisto di beni e servizi;2;Acquisto di servizi;5;Utenze e canoni;6;Gas;08/02/2023
447;1;9999999;2.475,71;2.475,71;DOLOMITI ENERGIA SPA;908782459B;06/02/2023;2792;0;547;1;Spese correnti;3;Acquisto di beni e servizi;2;Acquisto di servizi;5;Utenze e canoni;6;Gas;08/02/2023
448;1;9999999;16,24;11.905,82;DOLOMITI ENERGIA SPA;908782459B;06/02/2023;2973;0;586;1;Spese correnti;3;Acquisto di beni e servizi;2;Acquisto di servizi;5;Utenze e canoni;6;Gas;08/02/2023
448;2;9999999;2.478,67;11.905,82;DOLOMITI ENERGIA SPA;908782459B;06/02/2023;2973;0;586;1;Spese correnti;3;Acquisto di beni e servizi;2;Acquisto di servizi;5;Utenze e canoni;6;Gas;08/02/2023
448;3;9999999;9.410,91;11.905,82;DOLOMITI ENERGIA SPA;908782459B;06/02/2023;2973;0;586;1;Spese correnti;3;Acquisto di beni e servizi;2;Acquisto di servizi;5;Utenze e canoni;6;Gas;08/02/2023
449;1;9999999;323,17;729,37;ENEL ENERGIA SPA;9072556E0B;06/02/2023;2973;0;572;1;Spese correnti;3;Acquisto di beni e servizi;2;Acquisto di servizi;5;Utenze e canoni;4;Energia elettrica;08/02/2023
449;2;9999999;406,2;729,37;ENEL ENERGIA SPA;9072556E0B;06/02/2023;2973;0;572;1;Spese correnti;3;Acquisto di beni e servizi;2;Acquisto di servizi;5;Utenze e canoni;4;Energia elettrica;08/02/2023
451;1;9999999;580,9;580,9;DOLOMITI ENERGIA SPA;908782459B;06/02/2023;4527;0;548;1;Spese correnti;3;Acquisto di beni e servizi;2;Acquisto di servizi;5;Utenze e canoni;6;Gas;08/02/2023
452;1;9999999;1.694,90;1.694,90;ENEL ENERGIA SPA;9072556E0B;06/02/2023;4527;0;543;1;Spese correnti;3;Acquisto di beni e servizi;2;Acquisto di servizi;5;Utenze e canoni;4;Energia elettrica;08/02/2023
453;1;9999999;941,88;941,88;DOLOMITI ENERGIA SPA;908782459B;06/02/2023;4527;0;548;1;Spese correnti;3;Acquisto di beni e servizi;2;Acquisto di servizi;5;Utenze e canoni;6;Gas;08/02/2023
454;1;9999999;6,87;6,87;DOLOMITI ENERGIA SPA;908782459B;06/02/2023;4686;0;549;1;Spese correnti;3;Acquisto di beni e servizi;2;Acquisto di servizi;5;Utenze e canoni;6;Gas;08/02/2023
455;1;9999999;41,64;41,64;DOLOMITI ENERGIA SPA;908782459B;06/02/2023;4686;0;549;1;Spese correnti;3;Acquisto di beni e servizi;2;Acquisto di servizi;5;Utenze e canoni;6;Gas;08/02/2023
456;1;9999999;65,03;65,03;ENEL ENERGIA SPA;9072556E0B;06/02/2023;4686;1;544;1;Spese correnti;3;Acquisto di beni e servizi;2;Acquisto di servizi;5;Utenze e canoni;4;Energia elettrica;08/02/2023
457;1;9999999;1.843,66;1.843,66;Societa' Cooperativa PORTABAGAGLI MULTISERVICE;ZC638DCDCB;06/02/2023;4710;0;1147;1;Spese correnti;3;Acquisto di beni e servizi;2;Acquisto di servizi;99;Altri servizi;999;Altri servizi diversi n.a.c.;08/02/2023
458;1;9999999;17;6.875,92;DOLOMITI ENERGIA SPA;908782459B;06/02/2023;5050;0;584;1;Spese correnti;3;Acquisto di beni e servizi;2;Acquisto di servizi;5;Utenze e canoni;6;Gas;08/02/2023
458;2;9999999;352,71;6.875,92;DOLOMITI ENERGIA SPA;908782459B;06/02/2023;5050;0;584;1;Spese correnti;3;Acquisto di beni e servizi;2;Acquisto di servizi;5;Utenze e canoni;6;Gas;08/02/2023
458;3;9999999;737,81;6.875,92;DOLOMITI ENERGIA SPA;908782459B;06/02/2023;5050;0;584;1;Spese correnti;3;Acquisto di beni e servizi;2;Acquisto di servizi;5;Utenze e canoni;6;Gas;08/02/2023
458;4;9999999;1.156,69;6.875,92;DOLOMITI ENERGIA SPA;908782459B;06/02/2023;5050;0;584;1;Spese correnti;3;Acquisto di beni e servizi;2;Acquisto di servizi;5;Utenze e canoni;6;Gas;08/02/2023
458;5;9999999;4.611,71;6.875,92;DOLOMITI ENERGIA SPA;908782459B;06/02/2023;5050;0;584;1;Spese correnti;3;Acquisto di beni e servizi;2;Acquisto di servizi;5;Utenze e canoni;6;Gas;08/02/2023
459;1;9999999;3,2;132,59;DOLOMITI ENERGIA SPA;908782459B;06/02/2023;5051;0;583;1;Spese correnti;3;Acquisto di beni e servizi;2;Acquisto di servizi;5;Utenze e canoni;6;Gas;08/02/2023
459;2;9999999;129,39;132,59;DOLOMITI ENERGIA SPA;908782459B;06/02/2023;5051;0;583;1;Spese correnti;3;Acquisto di beni e servizi;2;Acquisto di servizi;5;Utenze e canoni;6;Gas;08/02/2023
460;1;9999999;921,1;921,1;EASY-TECH SRLS UNIPERSONALE;ZA239A5407;06/02/2023;5080;0;184;1;Spese correnti;3;Acquisto di beni e servizi;2;Acquisto di servizi;9;Manutenzione ordinaria e riparazioni;4;Manutenzione ordinaria e riparazioni di impianti e macchinari;08/02/2023
462;1;9999999;23,53;7.388,35;ENEL ENERGIA SPA;9072556E0B;06/02/2023;5930;0;545;1;Spese correnti;3;Acquisto di beni e servizi;2;Acquisto di servizi;5;Utenze e canoni;4;Energia elettrica;08/02/2023
462;2;9999999;24,63;7.388,35;ENEL ENERGIA SPA;9072556E0B;06/02/2023;5930;0;545;1;Spese correnti;3;Acquisto di beni e servizi;2;Acquisto di servizi;5;Utenze e canoni;4;Energia elettrica;08/02/2023
462;3;9999999;29,79;7.388,35;ENEL ENERGIA SPA;9072556E0B;06/02/2023;5930;0;545;1;Spese correnti;3;Acquisto di beni e servizi;2;Acquisto di servizi;5;Utenze e canoni;4;Energia elettrica;08/02/2023
462;4;9999999;31,35;7.388,35;ENEL ENERGIA SPA;9072556E0B;06/02/2023;5930;0;545;1;Spese correnti;3;Acquisto di beni e servizi;2;Acquisto di servizi;5;Utenze e canoni;4;Energia elettrica;08/02/2023
462;5;9999999;47,4;7.388,35;ENEL ENERGIA SPA;9072556E0B;06/02/2023;5930;0;545;1;Spese correnti;3;Acquisto di beni e servizi;2;Acquisto di servizi;5;Utenze e canoni;4;Energia elettrica;08/02/2023
462;6;9999999;51,34;7.388,35;ENEL ENERGIA SPA;9072556E0B;06/02/2023;5930;0;545;1;Spese correnti;3;Acquisto di beni e servizi;2;Acquisto di servizi;5;Utenze e canoni;4;Energia elettrica;08/02/2023
462;7;9999999;58,76;7.388,35;ENEL ENERGIA SPA;9072556E0B;06/02/2023;5930;0;545;1;Spese correnti;3;Acquisto di beni e servizi;2;Acquisto di servizi;5;Utenze e canoni;4;Energia elettrica;08/02/2023
462;8;9999999;58,82;7.388,35;ENEL ENERGIA SPA;9072556E0B;06/02/2023;5930;0;545;1;Spese correnti;3;Acquisto di beni e servizi;2;Acquisto di servizi;5;Utenze e canoni;4;Energia elettrica;08/02/2023
462;9;9999999;61,07;7.388,35;ENEL ENERGIA SPA;9072556E0B;06/02/2023;5930;0;545;1;Spese correnti;3;Acquisto di beni e servizi;2;Acquisto di servizi;5;Utenze e canoni;4;Energia elettrica;08/02/2023
462;10;9999999;66,12;7.388,35;ENEL ENERGIA SPA;9072556E0B;06/02/2023;5930;0;545;1;Spese correnti;3;Acquisto di beni e servizi;2;Acquisto di servizi;5;Utenze e canoni;4;Energia elettrica;08/02/2023
462;11;9999999;66,56;7.388,35;ENEL ENERGIA SPA;9072556E0B;06/02/2023;5930;0;545;1;Spese correnti;3;Acquisto di beni e servizi;2;Acquisto di servizi;5;Utenze e canoni;4;Energia elettrica;08/02/2023
462;12;9999999;73,71;7.388,35;ENEL ENERGIA SPA;9072556E0B;06/02/2023;5930;0;545;1;Spese correnti;3;Acquisto di beni e servizi;2;Acquisto di servizi;5;Utenze e canoni;4;Energia elettrica;08/02/2023
462;13;9999999;78,34;7.388,35;ENEL ENERGIA SPA;9072556E0B;06/02/2023;5930;0;545;1;Spese correnti;3;Acquisto di beni e servizi;2;Acquisto di servizi;5;Utenze e canoni;4;Energia elettrica;08/02/2023
462;14;9999999;82,87;7.388,35;ENEL ENERGIA SPA;9072556E0B;06/02/2023;5930;0;545;1;Spese correnti;3;Acquisto di beni e servizi;2;Acquisto di servizi;5;Utenze e canoni;4;Energia elettrica;08/02/2023
462;15;9999999;89,76;7.388,35;ENEL ENERGIA SPA;9072556E0B;06/02/2023;5930;0;545;1;Spese correnti;3;Acquisto di beni e servizi;2;Acquisto di servizi;5;Utenze e canoni;4;Energia elettrica;08/02/2023
462;16;9999999;90,96;7.388,35;ENEL ENERGIA SPA;9072556E0B;06/02/2023;5930;0;545;1;Spese correnti;3;Acquisto di beni e servizi;2;Acquisto di servizi;5;Utenze e canoni;4;Energia elettrica;08/02/2023
462;17;9999999;92,44;7.388,35;ENEL ENERGIA SPA;9072556E0B;06/02/2023;5930;0;545;1;Spese correnti;3;Acquisto di beni e servizi;2;Acquisto di servizi;5;Utenze e canoni;4;Energia elettrica;08/02/2023
462;18;9999999;109,78;7.388,35;ENEL ENERGIA SPA;9072556E0B;06/02/2023;5930;0;545;1;Spese correnti;3;Acquisto di beni e servizi;2;Acquisto di servizi;5;Utenze e canoni;4;Energia elettrica;08/02/2023
462;19;9999999;111,97;7.388,35;ENEL ENERGIA SPA;9072556E0B;06/02/2023;5930;0;545;1;Spese correnti;3;Acquisto di beni e servizi;2;Acquisto di servizi;5;Utenze e canoni;4;Energia elettrica;08/02/2023
462;20;9999999;121,1;7.388,35;ENEL ENERGIA SPA;9072556E0B;06/02/2023;5930;0;545;1;Spese correnti;3;Acquisto di beni e servizi;2;Acquisto di servizi;5;Utenze e canoni;4;Energia elettrica;08/02/2023
462;21;9999999;122,62;7.388,35;ENEL ENERGIA SPA;9072556E0B;06/02/2023;5930;0;545;1;Spese correnti;3;Acquisto di beni e servizi;2;Acquisto di servizi;5;Utenze e canoni;4;Energia elettrica;08/02/2023
462;22;9999999;133,64;7.388,35;ENEL ENERGIA SPA;9072556E0B;06/02/2023;5930;0;545;1;Spese correnti;3;Acquisto di beni e servizi;2;Acquisto di servizi;5;Utenze e canoni;4;Energia elettrica;08/02/2023
462;23;9999999;147,71;7.388,35;ENEL ENERGIA SPA;9072556E0B;06/02/2023;5930;0;545;1;Spese correnti;3;Acquisto di beni e servizi;2;Acquisto di servizi;5;Utenze e canoni;4;Energia elettrica;08/02/2023
462;24;9999999;158,71;7.388,35;ENEL ENERGIA SPA;9072556E0B;06/02/2023;5930;0;545;1;Spese correnti;3;Acquisto di beni e servizi;2;Acquisto di servizi;5;Utenze e canoni;4;Energia elettrica;08/02/2023
462;25;9999999;170,51;7.388,35;ENEL ENERGIA SPA;9072556E0B;06/02/2023;5930;0;545;1;Spese correnti;3;Acquisto di beni e servizi;2;Acquisto di servizi;5;Utenze e canoni;4;Energia elettrica;08/02/2023
462;26;9999999;177,07;7.388,35;ENEL ENERGIA SPA;9072556E0B;06/02/2023;5930;0;545;1;Spese correnti;3;Acquisto di beni e servizi;2;Acquisto di servizi;5;Utenze e canoni;4;Energia elettrica;08/02/2023
462;27;9999999;193,91;7.388,35;ENEL ENERGIA SPA;9072556E0B;06/02/2023;5930;0;545;1;Spese correnti;3;Acquisto di beni e servizi;2;Acquisto di servizi;5;Utenze e canoni;4;Energia elettrica;08/02/2023
462;28;9999999;220,1;7.388,35;ENEL ENERGIA SPA;9072556E0B;06/02/2023;5930;0;545;1;Spese correnti;3;Acquisto di beni e servizi;2;Acquisto di servizi;5;Utenze e canoni;4;Energia elettrica;08/02/2023
462;29;9999999;223,74;7.388,35;ENEL ENERGIA SPA;9072556E0B;06/02/2023;5930;0;545;1;Spese correnti;3;Acquisto di beni e servizi;2;Acquisto di servizi;5;Utenze e canoni;4;Energia elettrica;08/02/2023
462;30;9999999;236,29;7.388,35;ENEL ENERGIA SPA;9072556E0B;06/02/2023;5930;0;545;1;Spese correnti;3;Acquisto di beni e servizi;2;Acquisto di servizi;5;Utenze e canoni;4;Energia elettrica;08/02/2023
462;31;9999999;290,67;7.388,35;ENEL ENERGIA SPA;9072556E0B;06/02/2023;5930;0;545;1;Spese correnti;3;Acquisto di beni e servizi;2;Acquisto di servizi;5;Utenze e canoni;4;Energia elettrica;08/02/2023
462;32;9999999;359,7;7.388,35;ENEL ENERGIA SPA;9072556E0B;06/02/2023;5930;0;545;1;Spese correnti;3;Acquisto di beni e servizi;2;Acquisto di servizi;5;Utenze e canoni;4;Energia elettrica;08/02/2023
462;33;9999999;384,64;7.388,35;ENEL ENERGIA SPA;9072556E0B;06/02/2023;5930;0;545;1;Spese correnti;3;Acquisto di beni e servizi;2;Acquisto di servizi;5;Utenze e canoni;4;Energia elettrica;08/02/2023
462;34;9999999;385,5;7.388,35;ENEL ENERGIA SPA;9072556E0B;06/02/2023;5930;0;545;1;Spese correnti;3;Acquisto di beni e servizi;2;Acquisto di servizi;5;Utenze e canoni;4;Energia elettrica;08/02/2023
462;35;9999999;386,65;7.388,35;ENEL ENERGIA SPA;9072556E0B;06/02/2023;5930;0;545;1;Spese correnti;3;Acquisto di beni e servizi;2;Acquisto di servizi;5;Utenze e canoni;4;Energia elettrica;08/02/2023
462;36;9999999;401,97;7.388,35;ENEL ENERGIA SPA;9072556E0B;06/02/2023;5930;0;545;1;Spese correnti;3;Acquisto di beni e servizi;2;Acquisto di servizi;5;Utenze e canoni;4;Energia elettrica;08/02/2023
462;37;9999999;413,29;7.388,35;ENEL ENERGIA SPA;9072556E0B;06/02/2023;5930;0;545;1;Spese correnti;3;Acquisto di beni e servizi;2;Acquisto di servizi;5;Utenze e canoni;4;Energia elettrica;08/02/2023
462;38;9999999;527,02;7.388,35;ENEL ENERGIA SPA;9072556E0B;06/02/2023;5930;0;545;1;Spese correnti;3;Acquisto di beni e servizi;2;Acquisto di servizi;5;Utenze e canoni;4;Energia elettrica;08/02/2023
462;39;9999999;538,24;7.388,35;ENEL ENERGIA SPA;9072556E0B;06/02/2023;5930;0;545;1;Spese correnti;3;Acquisto di beni e servizi;2;Acquisto di servizi;5;Utenze e canoni;4;Energia elettrica;08/02/2023
462;40;9999999;546,07;7.388,35;ENEL ENERGIA SPA;9072556E0B;06/02/2023;5930;0;545;1;Spese correnti;3;Acquisto di beni e servizi;2;Acquisto di servizi;5;Utenze e canoni;4;Energia elettrica;08/02/2023
463;1;9999999;575,93;20.576,61;ENEL ENERGIA SPA;9072556E0B;06/02/2023;5930;0;545;1;Spese correnti;3;Acquisto di beni e servizi;2;Acquisto di servizi;5;Utenze e canoni;4;Energia elettrica;08/02/2023
463;2;9999999;584,14;20.576,61;ENEL ENERGIA SPA;9072556E0B;06/02/2023;5930;0;545;1;Spese correnti;3;Acquisto di beni e servizi;2;Acquisto di servizi;5;Utenze e canoni;4;Energia elettrica;08/02/2023
463;3;9999999;626,84;20.576,61;ENEL ENERGIA SPA;9072556E0B;06/02/2023;5930;0;545;1;Spese correnti;3;Acquisto di beni e servizi;2;Acquisto di servizi;5;Utenze e canoni;4;Energia elettrica;08/02/2023
463;4;9999999;710,27;20.576,61;ENEL ENERGIA SPA;9072556E0B;06/02/2023;5930;0;545;1;Spese correnti;3;Acquisto di beni e servizi;2;Acquisto di servizi;5;Utenze e canoni;4;Energia elettrica;08/02/2023
463;5;9999999;761,18;20.576,61;ENEL ENERGIA SPA;9072556E0B;06/02/2023;5930;0;545;1;Spese correnti;3;Acquisto di beni e servizi;2;Acquisto di servizi;5;Utenze e canoni;4;Energia elettrica;08/02/2023
463;6;9999999;837,31;20.576,61;ENEL ENERGIA SPA;9072556E0B;06/02/2023;5930;0;545;1;Spese correnti;3;Acquisto di beni e servizi;2;Acquisto di servizi;5;Utenze e canoni;4;Energia elettrica;08/02/2023
463;7;9999999;859,94;20.576,61;ENEL ENERGIA SPA;9072556E0B;06/02/2023;5930;0;545;1;Spese correnti;3;Acquisto di beni e servizi;2;Acquisto di servizi;5;Utenze e canoni;4;Energia elettrica;08/02/2023
463;8;9999999;1.058,29;20.576,61;ENEL ENERGIA SPA;9072556E0B;06/02/2023;5930;0;545;1;Spese correnti;3;Acquisto di beni e servizi;2;Acquisto di servizi;5;Utenze e canoni;4;Energia elettrica;08/02/2023
463;9;9999999;1.136,91;20.576,61;ENEL ENERGIA SPA;9072556E0B;06/02/2023;5930;0;545;1;Spese correnti;3;Acquisto di beni e servizi;2;Acquisto di servizi;5;Utenze e canoni;4;Energia elettrica;08/02/2023
463;10;9999999;1.143,26;20.576,61;ENEL ENERGIA SPA;9072556E0B;06/02/2023;5930;0;545;1;Spese correnti;3;Acquisto di beni e servizi;2;Acquisto di servizi;5;Utenze e canoni;4;Energia elettrica;08/02/2023
463;11;9999999;1.486,78;20.576,61;ENEL ENERGIA SPA;9072556E0B;06/02/2023;5930;0;545;1;Spese correnti;3;Acquisto di beni e servizi;2;Acquisto di servizi;5;Utenze e canoni;4;Energia elettrica;08/02/2023
463;12;9999999;1.488,44;20.576,61;ENEL ENERGIA SPA;9072556E0B;06/02/2023;5930;0;545;1;Spese correnti;3;Acquisto di beni e servizi;2;Acquisto di servizi;5;Utenze e canoni;4;Energia elettrica;08/02/2023
463;13;9999999;1.951,79;20.576,61;ENEL ENERGIA SPA;9072556E0B;06/02/2023;5930;0;545;1;Spese correnti;3;Acquisto di beni e servizi;2;Acquisto di servizi;5;Utenze e canoni;4;Energia elettrica;08/02/2023
463;14;9999999;1.953,34;20.576,61;ENEL ENERGIA SPA;9072556E0B;06/02/2023;5930;0;545;1;Spese correnti;3;Acquisto di beni e servizi;2;Acquisto di servizi;5;Utenze e canoni;4;Energia elettrica;08/02/2023
463;15;9999999;2.228,74;20.576,61;ENEL ENERGIA SPA;9072556E0B;06/02/2023;5930;0;545;1;Spese correnti;3;Acquisto di beni e servizi;2;Acquisto di servizi;5;Utenze e canoni;4;Energia elettrica;08/02/2023
463;16;9999999;3.173,45;20.576,61;ENEL ENERGIA SPA;9072556E0B;06/02/2023;5930;0;545;1;Spese correnti;3;Acquisto di beni e servizi;2;Acquisto di servizi;5;Utenze e canoni;4;Energia elettrica;08/02/2023
464;1;9999999;326,13;326,13;ENEL ENERGIA SPA;9072556E0B;06/02/2023;5931;0;571;1;Spese correnti;3;Acquisto di beni e servizi;2;Acquisto di servizi;5;Utenze e canoni;4;Energia elettrica;08/02/2023
465;1;9999999;6,72;1.235,34;ENEL ENERGIA SPA;9072556E0B;06/02/2023;5931;0;571;1;Spese correnti;3;Acquisto di beni e servizi;2;Acquisto di servizi;5;Utenze e canoni;4;Energia elettrica;08/02/2023
465;2;9999999;10,58;1.235,34;ENEL ENERGIA SPA;9072556E0B;06/02/2023;5931;0;571;1;Spese correnti;3;Acquisto di beni e servizi;2;Acquisto di servizi;5;Utenze e canoni;4;Energia elettrica;08/02/2023
465;3;9999999;60,62;1.235,34;ENEL ENERGIA SPA;9072556E0B;06/02/2023;5931;0;571;1;Spese correnti;3;Acquisto di beni e servizi;2;Acquisto di servizi;5;Utenze e canoni;4;Energia elettrica;08/02/2023
465;4;9999999;72,7;1.235,34;ENEL ENERGIA SPA;9072556E0B;06/02/2023;5931;0;571;1;Spese correnti;3;Acquisto di beni e servizi;2;Acquisto di servizi;5;Utenze e canoni;4;Energia elettrica;08/02/2023
465;5;9999999;74,29;1.235,34;ENEL ENERGIA SPA;9072556E0B;06/02/2023;5931;0;571;1;Spese correnti;3;Acquisto di beni e servizi;2;Acquisto di servizi;5;Utenze e canoni;4;Energia elettrica;08/02/2023
465;6;9999999;76,36;1.235,34;ENEL ENERGIA SPA;9072556E0B;06/02/2023;5931;0;571;1;Spese correnti;3;Acquisto di beni e servizi;2;Acquisto di servizi;5;Utenze e canoni;4;Energia elettrica;08/02/2023
465;7;9999999;138,01;1.235,34;ENEL ENERGIA SPA;9072556E0B;06/02/2023;5931;0;571;1;Spese correnti;3;Acquisto di beni e servizi;2;Acquisto di servizi;5;Utenze e canoni;4;Energia elettrica;08/02/2023
465;8;9999999;199,92;1.235,34;ENEL ENERGIA SPA;9072556E0B;06/02/2023;5931;0;571;1;Spese correnti;3;Acquisto di beni e servizi;2;Acquisto di servizi;5;Utenze e canoni;4;Energia elettrica;08/02/2023
465;9;9999999;596,14;1.235,34;ENEL ENERGIA SPA;9072556E0B;06/02/2023;5931;0;571;1;Spese correnti;3;Acquisto di beni e servizi;2;Acquisto di servizi;5;Utenze e canoni;4;Energia elettrica;08/02/2023
466;1;9999999;315,05;315,05;DOLOMITI ENERGIA SPA;908782459B;06/02/2023;6461;0;550;1;Spese correnti;3;Acquisto di beni e servizi;2;Acquisto di servizi;5;Utenze e canoni;6;Gas;08/02/2023
467;1;9999999;76,46;172,62;ENEL ENERGIA SPA;9072556E0B;06/02/2023;6461;0;546;1;Spese correnti;3;Acquisto di beni e servizi;2;Acquisto di servizi;5;Utenze e canoni;4;Energia elettrica;08/02/2023
467;2;9999999;96,16;172,62;ENEL ENERGIA SPA;9072556E0B;06/02/2023;6461;0;546;1;Spese correnti;3;Acquisto di beni e servizi;2;Acquisto di servizi;5;Utenze e canoni;4;Energia elettrica;08/02/2023
468;1;9999999;192,09;192,09;DOLOMITI ENERGIA SPA;908782459B;06/02/2023;6647;0;552;1;Spese correnti;3;Acquisto di beni e servizi;2;Acquisto di servizi;5;Utenze e canoni;6;Gas;08/02/2023
469;1;9999999;116,11;116,11;DOLOMITI ENERGIA SPA;908782459B;06/02/2023;6647;0;552;1;Spese correnti;3;Acquisto di beni e servizi;2;Acquisto di servizi;5;Utenze e canoni;6;Gas;08/02/2023
470;1;9999999;1.335,56;5.752,04;DOLOMITI ENERGIA SPA;908782459B;06/02/2023;7552;1;551;1;Spese correnti;3;Acquisto di beni e servizi;2;Acquisto di servizi;5;Utenze e canoni;6;Gas;08/02/2023
470;2;9999999;4.416,48;5.752,04;DOLOMITI ENERGIA SPA;908782459B;06/02/2023;7552;1;551;1;Spese correnti;3;Acquisto di beni e servizi;2;Acquisto di servizi;5;Utenze e canoni;6;Gas;08/02/2023
471;1;9999999;1.586,00;1.586,00;SCOMPARIN SERVICE & GARDENS DI SCOMPARIN MICHELE;Z0B35C259E;06/02/2023;13450;9;1378;2;Spese in conto capitale;2;Investimenti fissi lordi e acquisto di terreni;1;Beni materiali;9;Beni immobili;3;Fabbricati ad uso scolastico;08/02/2023
472;1;9999999;488;488;LA MELA di SAMORI' MONTAGUTI ADAMO;Z6F38979F2;06/02/2023;15905;14;1022;2;Spese in conto capitale;2;Investimenti fissi lordi e acquisto di terreni;1;Beni materiali;9;Beni immobili;12;Infrastrutture stradali;08/02/2023
473;1;9999999;432,18;432,18;OMESSO NOMINATIVO NEL RISPETTO DELLA NORMATIVA SULLA PROTEZIONE DATI PERSONALI; ;06/02/2023;8361;0;1316;1;Spese correnti;4;Trasferimenti correnti;2;Trasferimenti correnti a Famiglie;2;Interventi assistenziali;999;Altri assegni e sussidi assistenziali;08/02/2023
478;1;9999999;961,12;961,12;AGENZIA DELLE ENTRATE DI TREVISO; ;06/02/2023;1904;0;219;1;Spese correnti;10;Altre spese correnti;3;Versamenti IVA a debito;1;Versamenti IVA a debito per le gestioni commerciali;1;Versamenti IVA a debito per le gestioni commerciali;16/02/2023
479;1;9999999;152;152;CENTRO STUDI ALTA PADOVANA DI BRUGNOLI DIVA;Z1438912FB;07/02/2023;504;0;1048;1;Spese correnti;3;Acquisto di beni e servizi;2;Acquisto di servizi;4;Acquisto di servizi per formazione e addestramento del personale dell'ente;4;Acquisto di servizi per formazione obbligatoria;10/02/2023
480;1;9999999;3.108,56;3.108,56;COVRE ALDO;ZE1316E598;08/02/2023;810;0;1069;1;Spese correnti;3;Acquisto di beni e servizi;2;Acquisto di servizi;99;Altri servizi;999;Altri servizi diversi n.a.c.;10/02/2023
481;1;9999999;1.493,61;1.493,61;Z.M. SRL;ZDE393D285;08/02/2023;1185;17;1296;1;Spese correnti;3;Acquisto di beni e servizi;2;Acquisto di servizi;9;Manutenzione ordinaria e riparazioni;4;Manutenzione ordinaria e riparazioni di impianti e macchinari;10/02/2023
482;1;9999999;275,39;275,39;Z.M. SRL;ZDE393D285;08/02/2023;1300;0;1297;1;Spese correnti;3;Acquisto di beni e servizi;1;Acquisto di beni;2;Altri beni di consumo;999;Altri beni e materiali di consumo n.a.c.;10/02/2023
483;1;9999999;1.205,36;1.205,36;STUDIO ASS.ARCH.INGEGNERI MOGNATO CAZZIN NIERO;Z3838AF254;08/02/2023;1340;0;1057;1;Spese correnti;3;Acquisto di beni e servizi;2;Acquisto di servizi;11;Prestazioni professionali e specialistiche;999;Altre prestazioni professionali e specialistiche n.a.c.;10/02/2023
484;1;9999999;300,45;300,45;BM S.N.C. DI BATTAGGIA MASSIMO & C.;ZA338E3327;08/02/2023;5720;0;1181;1;Spese correnti;3;Acquisto di beni e servizi;2;Acquisto di servizi;9;Manutenzione ordinaria e riparazioni;4;Manutenzione ordinaria e riparazioni di impianti e macchinari;10/02/2023
485;1;9999999;1.250,90;1.250,90;FUTURA IMPIANTI di PAVANETTO CRISTIAN;Z3D39107AE;08/02/2023;5720;2;1207;1;Spese correnti;3;Acquisto di beni e servizi;2;Acquisto di servizi;9;Manutenzione ordinaria e riparazioni;11;Manutenzione ordinaria e riparazioni di altri beni materiali;10/02/2023
486;1;9999999;603,15;603,15;BM S.N.C. DI BATTAGGIA MASSIMO & C.;ZA338E3327;08/02/2023;5840;0;1179;1;Spese correnti;3;Acquisto di beni e servizi;1;Acquisto di beni;2;Altri beni di consumo;999;Altri beni e materiali di consumo n.a.c.;10/02/2023
487;1;9999999;1.878,00;1.878,00;BM S.N.C. DI BATTAGGIA MASSIMO & C.;ZA338E3327;08/02/2023;5940;0;1180;1;Spese correnti;3;Acquisto di beni e servizi;2;Acquisto di servizi;9;Manutenzione ordinaria e riparazioni;4;Manutenzione ordinaria e riparazioni di impianti e macchinari;10/02/2023
488;1;9999999;457,1;457,1;FUTURA IMPIANTI di PAVANETTO CRISTIAN;Z3D39107AE;08/02/2023;6950;0;1206;1;Spese correnti;3;Acquisto di beni e servizi;2;Acquisto di servizi;9;Manutenzione ordinaria e riparazioni;11;Manutenzione ordinaria e riparazioni di altri beni materiali;10/02/2023
489;1;9999999;101.140,81;101.140,81;VILLANOVA COSTRUZIONI SRL;9487674444;08/02/2023;13215;0;1344;2;Spese in conto capitale;2;Investimenti fissi lordi e acquisto di terreni;1;Beni materiali;9;Beni immobili;3;Fabbricati ad uso scolastico;10/02/2023
490;1;9999999;3.077,17;3.077,17;JOLLY BOX SRL;9610119912;08/02/2023;13217;0;996;2;Spese in conto capitale;2;Investimenti fissi lordi e acquisto di terreni;1;Beni materiali;9;Beni immobili;3;Fabbricati ad uso scolastico;10/02/2023
491;1;9999999;3.093,05;3.093,05;ECOPAVI SRL;Z05387C485;08/02/2023;11302;2;1524;2;Spese in conto capitale;2;Investimenti fissi lordi e acquisto di terreni;1;Beni materiali;9;Beni immobili;12;Infrastrutture stradali;10/02/2023
492;1;9999999;2.823,95;2.823,95;ECOPAVI SRL;Z05387C485;08/02/2023;11302;16;1526;2;Spese in conto capitale;2;Investimenti fissi lordi e acquisto di terreni;1;Beni materiali;9;Beni immobili;12;Infrastrutture stradali;10/02/2023
493;1;9999999;60.000,00;60.000,00;ECOPAVI SRL;93327236A7;08/02/2023;15905;15;709;2;Spese in conto capitale;2;Investimenti fissi lordi e acquisto di terreni;1;Beni materiali;9;Beni immobili;12;Infrastrutture stradali;10/02/2023
494;1;9999999;9.038,13;9.038,13;ECOPAVI SRL;93327236A7;08/02/2023;15905;4;708;2;Spese in conto capitale;2;Investimenti fissi lordi e acquisto di terreni;1;Beni materiali;9;Beni immobili;12;Infrastrutture stradali;10/02/2023
495;1;9999999;1.512,80;1.512,80;CI.TI.ESSE S.R.L.;ZB538BE2E6;09/02/2023;2344;1;1083;1;Spese correnti;3;Acquisto di beni e servizi;2;Acquisto di servizi;9;Manutenzione ordinaria e riparazioni;5;Manutenzione ordinaria e riparazioni di attrezzature;14/02/2023
496;1;9999999;542,69;542,69;AMICI DEL CANE RANCH DI ZAMPARIOLO GABRIELLA;756846708D;09/02/2023;2450;0;801;1;Spese correnti;4;Trasferimenti correnti;4;Trasferimenti correnti a Istituzioni Sociali Private;1;Trasferimenti correnti a Istituzioni Sociali Private;1;Trasferimenti correnti a Istituzioni Sociali Private;14/02/2023
497;1;9999999;1.225,34;1.225,34;MARCHIOL S.P.A.;Z90356FC7F;09/02/2023;5840;0;322;1;Spese correnti;3;Acquisto di beni e servizi;1;Acquisto di beni;2;Altri beni di consumo;999;Altri beni e materiali di consumo n.a.c.;14/02/2023
498;1;9999999;2.000,00;2.000,00;PREGANZIOL ASSE T; ;09/02/2023;9461;0;588;1;Spese correnti;4;Trasferimenti correnti;3;Trasferimenti correnti a Imprese;99;Trasferimenti correnti a altre imprese;999;Trasferimenti correnti a altre imprese;14/02/2023
499;1;9999999;3.068,24;3.068,24;AG.ENTRATE RISCOSSIONE- A.N.C.I. NAZIONALE; ;09/02/2023;690;1;242;1;Spese correnti;3;Acquisto di beni e servizi;2;Acquisto di servizi;99;Altri servizi;3;Quote di associazioni;13/02/2023
500;1;9999999;800;800;ASSOCIAZIONE COMUNI MARCA TREVIGIANA; ;10/02/2023;4700;0;245;1;Spese correnti;3;Acquisto di beni e servizi;2;Acquisto di servizi;99;Altri servizi;3;Quote di associazioni;14/02/2023
501;1;9999999;793;793;SOC. IMM. MURETTO S.N.C. DI CRESCENTE V. & C.; ;10/02/2023;1812;0;327;1;Spese correnti;3;Acquisto di beni e servizi;2;Acquisto di servizi;7;Utilizzo di beni di terzi;1;Locazione di beni immobili;14/02/2023
502;1;9999999;225;225;OMESSO NOMINATIVO NEL RISPETTO DELLA NORMATIVA SULLA PROTEZIONE DATI PERSONALI; ;10/02/2023;8361;0;173;1;Spese correnti;4;Trasferimenti correnti;2;Trasferimenti correnti a Famiglie;2;Interventi assistenziali;999;Altri assegni e sussidi assistenziali;14/02/2023
503;1;9999999;262,66;262,66;EDILVERDE S.R.L.;Z82398837C;10/02/2023;1300;0;150;1;Spese correnti;3;Acquisto di beni e servizi;1;Acquisto di beni;2;Altri beni di consumo;999;Altri beni e materiali di consumo n.a.c.;14/02/2023
504;1;9999999;262,66;262,66;EDILVERDE S.R.L.;Z82398837C;10/02/2023;5620;2;148;1;Spese correnti;3;Acquisto di beni e servizi;1;Acquisto di beni;2;Altri beni di consumo;999;Altri beni e materiali di consumo n.a.c.;14/02/2023
505;1;9999999;41.984,20;41.984,20;PITTORI COLLA S.R.L.;Z7F35E9CEE;10/02/2023;13218;0;365;2;Spese in conto capitale;2;Investimenti fissi lordi e acquisto di terreni;1;Beni materiali;9;Beni immobili;3;Fabbricati ad uso scolastico;14/02/2023
506;1;9999999;3.365,31;3.365,31;PRO LOCO PREGANZIOL; ;10/02/2023;5412;0;246;1;Spese correnti;4;Trasferimenti correnti;4;Trasferimenti correnti a Istituzioni Sociali Private;1;Trasferimenti correnti a Istituzioni Sociali Private;1;Trasferimenti correnti a Istituzioni Sociali Private;14/02/2023
508;1;9999999;3,83;3,83;AGENZIA DELLE ENTRATE-RISCOSSIONE; ;13/02/2023;2351;1;249;1;Spese correnti;3;Acquisto di beni e servizi;2;Acquisto di servizi;3;Aggi di riscossione;999;Altri aggi di riscossione n.a.c.;15/02/2023
509;1;9999999;2,58;2,58;AGENZIA DELLE ENTRATE-RISCOSSIONE; ;13/02/2023;2351;1;249;1;Spese correnti;3;Acquisto di beni e servizi;2;Acquisto di servizi;3;Aggi di riscossione;999;Altri aggi di riscossione n.a.c.;15/02/2023
510;1;9999999;0,19;0,19;AGENZIA DELLE ENTRATE-RISCOSSIONE; ;13/02/2023;2351;1;249;1;Spese correnti;3;Acquisto di beni e servizi;2;Acquisto di servizi;3;Aggi di riscossione;999;Altri aggi di riscossione n.a.c.;15/02/2023
511;1;9999999;0,06;0,06;AGENZIA DELLE ENTRATE-RISCOSSIONE; ;13/02/2023;2351;1;228;1;Spese correnti;3;Acquisto di beni e servizi;2;Acquisto di servizi;3;Aggi di riscossione;999;Altri aggi di riscossione n.a.c.;15/02/2023
512;1;9999999;3,11;3,11;AGENZIA DELLE ENTRATE-RISCOSSIONE; ;13/02/2023;2351;1;458;1;Spese correnti;3;Acquisto di beni e servizi;2;Acquisto di servizi;3;Aggi di riscossione;999;Altri aggi di riscossione n.a.c.;15/02/2023
513;1;9999999;0,46;0,46;AGENZIA DELLE ENTRATE-RISCOSSIONE; ;13/02/2023;2351;1;1531;1;Spese correnti;3;Acquisto di beni e servizi;2;Acquisto di servizi;3;Aggi di riscossione;999;Altri aggi di riscossione n.a.c.;15/02/2023
514;1;9999999;0,18;0,18;AGENZIA DELLE ENTRATE-RISCOSSIONE; ;13/02/2023;2351;1;249;1;Spese correnti;3;Acquisto di beni e servizi;2;Acquisto di servizi;3;Aggi di riscossione;999;Altri aggi di riscossione n.a.c.;15/02/2023
515;1;9999999;0,74;0,74;AGENZIA DELLE ENTRATE-RISCOSSIONE; ;13/02/2023;2351;1;571;1;Spese correnti;3;Acquisto di beni e servizi;2;Acquisto di servizi;3;Aggi di riscossione;999;Altri aggi di riscossione n.a.c.;15/02/2023
516;1;9999999;0,64;0,64;AGENZIA DELLE ENTRATE-RISCOSSIONE; ;13/02/2023;2351;1;370;1;Spese correnti;3;Acquisto di beni e servizi;2;Acquisto di servizi;3;Aggi di riscossione;999;Altri aggi di riscossione n.a.c.;15/02/2023
517;1;9999999;0,63;0,63;AGENZIA DELLE ENTRATE-RISCOSSIONE; ;13/02/2023;2351;1;370;1;Spese correnti;3;Acquisto di beni e servizi;2;Acquisto di servizi;3;Aggi di riscossione;999;Altri aggi di riscossione n.a.c.;15/02/2023
518;1;9999999;0,34;0,34;AGENZIA DELLE ENTRATE-RISCOSSIONE; ;13/02/2023;1010;0;250;1;Spese correnti;3;Acquisto di beni e servizi;2;Acquisto di servizi;3;Aggi di riscossione;999;Altri aggi di riscossione n.a.c.;15/02/2023
519;1;9999999;0,04;0,04;AGENZIA DELLE ENTRATE-RISCOSSIONE; ;13/02/2023;1010;0;328;1;Spese correnti;3;Acquisto di beni e servizi;2;Acquisto di servizi;3;Aggi di riscossione;999;Altri aggi di riscossione n.a.c.;15/02/2023
520;1;9999999;3,9;3,9;AGENZIA DELLE ENTRATE-RISCOSSIONE; ;13/02/2023;1010;0;250;1;Spese correnti;3;Acquisto di beni e servizi;2;Acquisto di servizi;3;Aggi di riscossione;999;Altri aggi di riscossione n.a.c.;15/02/2023
558;1;9999999;951,6;951,6;ING.BARBAN ANDREA;Z7F3694498;14/02/2023;4710;0;558;1;Spese correnti;3;Acquisto di beni e servizi;2;Acquisto di servizi;99;Altri servizi;999;Altri servizi diversi n.a.c.;17/02/2023
559;1;9999999;7.000,00;7.000,00;ASSOCIAZIONE COMUNI MARCA TREVIGIANA; ;14/02/2023;4261;2;1313;1;Spese correnti;3;Acquisto di beni e servizi;2;Acquisto di servizi;99;Altri servizi;999;Altri servizi diversi n.a.c.;17/02/2023
560;1;9999999;1.233,00;1.233,00;ASSOCIAZIONE COMUNI MARCA TREVIGIANA; ;14/02/2023;4261;2;1019;1;Spese correnti;3;Acquisto di beni e servizi;2;Acquisto di servizi;99;Altri servizi;999;Altri servizi diversi n.a.c.;17/02/2023
563;1;9999999;517,23;517,23;KUWAIT PETROLEUM ITALIA SPA;Z9C36EAB07;15/02/2023;1307;0;598;1;Spese correnti;3;Acquisto di beni e servizi;1;Acquisto di beni;2;Altri beni di consumo;2;Carburanti, combustibili e lubrificanti;17/02/2023
564;1;9999999;450;450;BABALIBRI CASA EDITRICE srl;ZA43826699;15/02/2023;4506;0;956;1;Spese correnti;3;Acquisto di beni e servizi;1;Acquisto di beni;1;Giornali, riviste e pubblicazioni;1;Giornali e riviste;17/02/2023
566;1;9999999;6.100,00;6.100,00;SCOMPARIN SERVICE & GARDENS DI SCOMPARIN MICHELE;Z5C38E58E2;15/02/2023;5720;2;1190;1;Spese correnti;3;Acquisto di beni e servizi;2;Acquisto di servizi;9;Manutenzione ordinaria e riparazioni;11;Manutenzione ordinaria e riparazioni di altri beni materiali;17/02/2023
567;1;9999999;6.335,46;6.335,46;SINERGIE EFFICIENTI SRL;9579055640;15/02/2023;11316;0;1353;2;Spese in conto capitale;2;Investimenti fissi lordi e acquisto di terreni;1;Beni materiali;9;Beni immobili;19;Fabbricati ad uso strumentale;17/02/2023
568;1;9999999;225;225;PROVINCIA DI TREVISO;9,44E+58;15/02/2023;1021;0;1257;1;Spese correnti;4;Trasferimenti correnti;1;Trasferimenti correnti a Amministrazioni Pubbliche;2;Trasferimenti correnti a Amministrazioni Locali;2;Trasferimenti correnti a Province;17/02/2023
569;1;9999999;12,2;12,2;LASERMAX SRL;Z4E34C7120;16/02/2023;1778;0;152;1;Spese correnti;3;Acquisto di beni e servizi;1;Acquisto di beni;2;Altri beni di consumo;1;Carta, cancelleria e stampati;21/02/2023
570;1;9999999;266;266;MAGGIOLI SPA;Z983139180;16/02/2023;1779;0;448;1;Spese correnti;3;Acquisto di beni e servizi;1;Acquisto di beni;1;Giornali, riviste e pubblicazioni;1;Giornali e riviste;21/02/2023
571;1;9999999;2.583,52;2.583,52;SOGEST ITALIA SRL;Z08372EAAD;16/02/2023;1805;0;714;1;Spese correnti;3;Acquisto di beni e servizi;2;Acquisto di servizi;13;Servizi ausiliari per il funzionamento dell'ente;1;Servizi di sorveglianza, custodia e accoglienza;21/02/2023
572;1;9999999;538,61;538,61;KYOCERA DOCUMENT SOLUTIONS ITALIA SPA;8227602FF1;16/02/2023;1813;0;291;1;Spese correnti;3;Acquisto di beni e servizi;2;Acquisto di servizi;7;Utilizzo di beni di terzi;4;Noleggi di hardware;21/02/2023
573;1;9999999;19,41;778,16;VIER  SCARL; ;16/02/2023;2790;0;212;1;Spese correnti;3;Acquisto di beni e servizi;2;Acquisto di servizi;5;Utenze e canoni;4;Energia elettrica;21/02/2023
573;2;9999999;758,75;778,16;VIER  SCARL; ;16/02/2023;2790;0;212;1;Spese correnti;3;Acquisto di beni e servizi;2;Acquisto di servizi;5;Utenze e canoni;4;Energia elettrica;21/02/2023
574;1;9999999;795,59;1.777,59;VIER  SCARL; ;16/02/2023;2792;0;213;1;Spese correnti;3;Acquisto di beni e servizi;2;Acquisto di servizi;5;Utenze e canoni;4;Energia elettrica;21/02/2023
574;2;9999999;982;1.777,59;VIER  SCARL; ;16/02/2023;2792;0;213;1;Spese correnti;3;Acquisto di beni e servizi;2;Acquisto di servizi;5;Utenze e canoni;4;Energia elettrica;21/02/2023
575;1;9999999;2.958,00;2.958,00;VIER  SCARL; ;16/02/2023;2973;0;214;1;Spese correnti;3;Acquisto di beni e servizi;2;Acquisto di servizi;5;Utenze e canoni;4;Energia elettrica;21/02/2023
576;1;9999999;108,09;2.811,42;VIER  SCARL; ;16/02/2023;4020;0;215;1;Spese correnti;3;Acquisto di beni e servizi;2;Acquisto di servizi;5;Utenze e canoni;4;Energia elettrica;21/02/2023
576;2;9999999;2.703,33;2.811,42;VIER  SCARL; ;16/02/2023;4020;0;215;1;Spese correnti;3;Acquisto di beni e servizi;2;Acquisto di servizi;5;Utenze e canoni;4;Energia elettrica;21/02/2023
578;1;9999999;667,6;1.703,82;VIER  SCARL; ;16/02/2023;7552;1;217;1;Spese correnti;3;Acquisto di beni e servizi;2;Acquisto di servizi;5;Utenze e canoni;4;Energia elettrica;21/02/2023
578;2;9999999;1.036,22;1.703,82;VIER  SCARL; ;16/02/2023;7552;1;217;1;Spese correnti;3;Acquisto di beni e servizi;2;Acquisto di servizi;5;Utenze e canoni;4;Energia elettrica;21/02/2023
579;1;9999999;2.237,55;2.237,55;CONSORZIO PROVINCIALE INTESA-CCA SOC.COOP.SOCIALECONSORTILE;9293702D7F;16/02/2023;8204;4;847;1;Spese correnti;3;Acquisto di beni e servizi;2;Acquisto di servizi;99;Altri servizi;999;Altri servizi diversi n.a.c.;21/02/2023
580;1;9999999;3.611,20;3.611,20;TIEMMESICUREZZA S.R.L.;Z2639129AE;16/02/2023;13153;0;1208;2;Spese in conto capitale;2;Investimenti fissi lordi e acquisto di terreni;1;Beni materiali;9;Beni immobili;3;Fabbricati ad uso scolastico;21/02/2023
581;1;9999999;27.417,87;27.417,87;EURO TOURS SRL;88188476C3;16/02/2023;4261;4;729;1;Spese correnti;3;Acquisto di beni e servizi;2;Acquisto di servizi;15;Contratti di servizio pubblico;2;Contratti di servizio di trasporto scolastico;21/02/2023
582;1;9999999;3.370,37;3.370,37;CONTARINA S.P.A.;ZF434535A4;16/02/2023;5720;2;1219;1;Spese correnti;3;Acquisto di beni e servizi;2;Acquisto di servizi;9;Manutenzione ordinaria e riparazioni;3;Manutenzione ordinaria e riparazioni di mobili e arredi;21/02/2023
583;1;9999999;170;170;INTERMEDIA IB SRL BROKER PER AVIVA ITALIA SPA;Z8530C2DF5;16/02/2023;140;0;256;1;Spese correnti;10;Altre spese correnti;4;Premi di assicurazione;1;Premi di assicurazione contro i danni;3;Premi di assicurazione per responsabilità civile verso terzi;21/02/2023
584;1;9999999;2.970,08;2.970,08;INTERMEDIA IB SRL BROKER PER ALLIANZ SPA;853472450C;16/02/2023;1345;0;223;1;Spese correnti;10;Altre spese correnti;4;Premi di assicurazione;1;Premi di assicurazione contro i danni;3;Premi di assicurazione per responsabilità civile verso terzi;21/02/2023
585;1;9999999;10.407,00;10.407,00;INTERMEDIA IB SRL BROKER PER AVIVA ITALIA SPA;8,53E+12;16/02/2023;1797;0;221;1;Spese correnti;10;Altre spese correnti;4;Premi di assicurazione;1;Premi di assicurazione contro i danni;2;Premi di assicurazione su beni immobili;21/02/2023
586;1;9999999;18.048,50;18.048,50;INTERMEDIA IB SRL BROKER PER XL INSURANCE COMPANY SE;8534713BF6;16/02/2023;1797;0;222;1;Spese correnti;10;Altre spese correnti;4;Premi di assicurazione;1;Premi di assicurazione contro i danni;3;Premi di assicurazione per responsabilità civile verso terzi;21/02/2023
587;1;9999999;914,24;914,24;INTERMEDIA IB SRL BROKER PER AIG EUROPE SA;8534732BA4;16/02/2023;1797;0;227;1;Spese correnti;10;Altre spese correnti;4;Premi di assicurazione;1;Premi di assicurazione contro i danni;999;Altri premi di assicurazione contro i danni;21/02/2023
588;1;9999999;40;40;INTERMEDIA IB SRL BROKER PER AVIVA ITALIA SPA;Z8530C2DF5;16/02/2023;1797;0;257;1;Spese correnti;10;Altre spese correnti;4;Premi di assicurazione;1;Premi di assicurazione contro i danni;3;Premi di assicurazione per responsabilità civile verso terzi;21/02/2023
589;1;9999999;530;530;INTERMEDIA IB SRL BROKER PER AVIVA ITALIA SPA;Z8530C2DF5;16/02/2023;1797;0;258;1;Spese correnti;10;Altre spese correnti;4;Premi di assicurazione;1;Premi di assicurazione contro i danni;3;Premi di assicurazione per responsabilità civile verso terzi;21/02/2023
590;1;9999999;41;41;INTERMEDIA IB SRL BROKER PER AVIVA ITALIA SPA;Z8530C2DF5;16/02/2023;1797;0;259;1;Spese correnti;10;Altre spese correnti;4;Premi di assicurazione;1;Premi di assicurazione contro i danni;3;Premi di assicurazione per responsabilità civile verso terzi;21/02/2023
591;1;9999999;5.819,99;5.819,99;INTERMEDIA IB SRL BROKER PER ROLAND RECHTSSCHUTZ;Z4C30C2E48;16/02/2023;1797;0;261;1;Spese correnti;10;Altre spese correnti;4;Premi di assicurazione;1;Premi di assicurazione contro i danni;3;Premi di assicurazione per responsabilità civile verso terzi;21/02/2023
592;1;9999999;3.150,00;3.150,00;INTERMEDIA IB SRL BROKER PER XL INSURANCE COMPANY SE;ZA830C2E91;16/02/2023;1797;0;262;1;Spese correnti;10;Altre spese correnti;4;Premi di assicurazione;1;Premi di assicurazione contro i danni;3;Premi di assicurazione per responsabilità civile verso terzi;21/02/2023
593;1;9999999;3.300,68;3.300,68;INTERMEDIA IB SRL BROKER PER CHUBB EUROPEAN GROUP SE;ZC530C4321;16/02/2023;1797;0;263;1;Spese correnti;10;Altre spese correnti;4;Premi di assicurazione;1;Premi di assicurazione contro i danni;999;Altri premi di assicurazione contro i danni;21/02/2023
594;1;9999999;1.660,61;1.660,61;INTERMEDIA IB SRL BROKER PER ALLIANZ SPA;853472450C;16/02/2023;2345;1;224;1;Spese correnti;10;Altre spese correnti;4;Premi di assicurazione;1;Premi di assicurazione contro i danni;3;Premi di assicurazione per responsabilità civile verso terzi;21/02/2023
595;1;9999999;292,96;292,96;INTERMEDIA IB SRL BROKER PER ALLIANZ SPA;853472450C;16/02/2023;6643;0;225;1;Spese correnti;10;Altre spese correnti;4;Premi di assicurazione;1;Premi di assicurazione contro i danni;3;Premi di assicurazione per responsabilità civile verso terzi;21/02/2023
596;1;9999999;515,54;515,54;INTERMEDIA IB SRL BROKER PER ALLIANZ SPA;853472450C;16/02/2023;8201;0;226;1;Spese correnti;10;Altre spese correnti;4;Premi di assicurazione;1;Premi di assicurazione contro i danni;3;Premi di assicurazione per responsabilità civile verso terzi;21/02/2023
597;1;9999999;119;119;INTERMEDIA IB SRL BROKER PER AVIVA ITALIA SPA;Z8530C2DF5;16/02/2023;8202;0;260;1;Spese correnti;10;Altre spese correnti;4;Premi di assicurazione;1;Premi di assicurazione contro i danni;3;Premi di assicurazione per responsabilità civile verso terzi;21/02/2023
599;1;9999999;11.294,41;11.294,41;AMMINISTRATORI COMUNALI; ;16/02/2023;74;0;141;1;Spese correnti;3;Acquisto di beni e servizi;2;Acquisto di servizi;1;Organi e incarichi istituzionali dell'amministrazione;1;Organi istituzionali dell'amministrazione - Indennità;23/02/2023
657;1;9999999;0,5;0,5;DIPENDENTI DIVERSI (MISSIONI E RIMBORSO SPESE); ;16/02/2023;1786;0;211;1;Spese correnti;3;Acquisto di beni e servizi;2;Acquisto di servizi;2;Organizzazione eventi, pubblicita` e servizi per trasferta;1;Rimborso per viaggio e trasloco;23/02/2023
701;1;9999999;11.101,00;11.101,00;STILELIBERO SSD SRL; ;20/02/2023;8361;3;1342;1;Spese correnti;4;Trasferimenti correnti;4;Trasferimenti correnti a Istituzioni Sociali Private;1;Trasferimenti correnti a Istituzioni Sociali Private;1;Trasferimenti correnti a Istituzioni Sociali Private;22/02/2023
702;1;9999999;709;709;F.C. UNION PRO 1928 S.S.D.R.L.; ;20/02/2023;8361;3;1344;1;Spese correnti;4;Trasferimenti correnti;4;Trasferimenti correnti a Istituzioni Sociali Private;1;Trasferimenti correnti a Istituzioni Sociali Private;1;Trasferimenti correnti a Istituzioni Sociali Private;22/02/2023
703;1;9999999;4.488,00;4.488,00;GRUPPO SPORTIVO SAMBUGHE' SSD a RL; ;20/02/2023;8361;3;1339;1;Spese correnti;4;Trasferimenti correnti;4;Trasferimenti correnti a Istituzioni Sociali Private;1;Trasferimenti correnti a Istituzioni Sociali Private;1;Trasferimenti correnti a Istituzioni Sociali Private;22/02/2023
704;1;9999999;2.362,00;2.362,00;POLISPORTIVA PREGANZIOL; ;20/02/2023;8361;3;1340;1;Spese correnti;4;Trasferimenti correnti;4;Trasferimenti correnti a Istituzioni Sociali Private;1;Trasferimenti correnti a Istituzioni Sociali Private;1;Trasferimenti correnti a Istituzioni Sociali Private;22/02/2023
705;1;9999999;469;469;REN BU KAN MOGLIANO E PREGANZIOL ASD; ;20/02/2023;8361;3;1343;1;Spese correnti;4;Trasferimenti correnti;4;Trasferimenti correnti a Istituzioni Sociali Private;1;Trasferimenti correnti a Istituzioni Sociali Private;1;Trasferimenti correnti a Istituzioni Sociali Private;22/02/2023
706;1;9999999;945;945;A.S. ZERMAN A.S.D.; ;20/02/2023;8361;3;1341;1;Spese correnti;4;Trasferimenti correnti;4;Trasferimenti correnti a Istituzioni Sociali Private;1;Trasferimenti correnti a Istituzioni Sociali Private;1;Trasferimenti correnti a Istituzioni Sociali Private;22/02/2023
707;1;9999999;548;548;OMESSO NOMINATIVO NEL RISPETTO DELLA NORMATIVA SULLA PROTEZIONE DATI PERSONALI; ;20/02/2023;8361;2;265;1;Spese correnti;4;Trasferimenti correnti;4;Trasferimenti correnti a Istituzioni Sociali Private;1;Trasferimenti correnti a Istituzioni Sociali Private;1;Trasferimenti correnti a Istituzioni Sociali Private;22/02/2023
708;1;9999999;701,99;701,99;OMESSO NOMINATIVO NEL RISPETTO DELLA NORMATIVA SULLA PROTEZIONE DATI PERSONALI; ;20/02/2023;8361;2;266;1;Spese correnti;4;Trasferimenti correnti;4;Trasferimenti correnti a Istituzioni Sociali Private;1;Trasferimenti correnti a Istituzioni Sociali Private;1;Trasferimenti correnti a Istituzioni Sociali Private;22/02/2023
709;1;9999999;391,15;391,15;COMUNE DI MOGLIANO VENETO; ;20/02/2023;2452;1;1338;1;Spese correnti;4;Trasferimenti correnti;1;Trasferimenti correnti a Amministrazioni Pubbliche;2;Trasferimenti correnti a Amministrazioni Locali;3;Trasferimenti correnti a Comuni;22/02/2023
710;1;9999999;1.346,00;1.346,00;OMESSO NOMINATIVO NEL RISPETTO DELLA NORMATIVA SULLA PROTEZIONE DATI PERSONALI; ;22/02/2023;8361;0;277;1;Spese correnti;4;Trasferimenti correnti;2;Trasferimenti correnti a Famiglie;2;Interventi assistenziali;999;Altri assegni e sussidi assistenziali;24/02/2023
711;1;9999999;117,82;117,82;ENEL ENERGIA SPA;9072556E0B;22/02/2023;1346;0;228;1;Spese correnti;3;Acquisto di beni e servizi;2;Acquisto di servizi;5;Utenze e canoni;4;Energia elettrica;24/02/2023
712;1;9999999;38,52;5.044,90;ENEL ENERGIA SPA;9072556E0B;22/02/2023;1801;0;229;1;Spese correnti;3;Acquisto di beni e servizi;2;Acquisto di servizi;5;Utenze e canoni;4;Energia elettrica;24/02/2023
712;2;9999999;170,39;5.044,90;ENEL ENERGIA SPA;9072556E0B;22/02/2023;1801;0;229;1;Spese correnti;3;Acquisto di beni e servizi;2;Acquisto di servizi;5;Utenze e canoni;4;Energia elettrica;24/02/2023
712;3;9999999;507,37;5.044,90;ENEL ENERGIA SPA;9072556E0B;22/02/2023;1801;0;229;1;Spese correnti;3;Acquisto di beni e servizi;2;Acquisto di servizi;5;Utenze e canoni;4;Energia elettrica;24/02/2023
712;4;9999999;654,24;5.044,90;ENEL ENERGIA SPA;9072556E0B;22/02/2023;1801;0;229;1;Spese correnti;3;Acquisto di beni e servizi;2;Acquisto di servizi;5;Utenze e canoni;4;Energia elettrica;24/02/2023
712;5;9999999;730,3;5.044,90;ENEL ENERGIA SPA;9072556E0B;22/02/2023;1801;0;229;1;Spese correnti;3;Acquisto di beni e servizi;2;Acquisto di servizi;5;Utenze e canoni;4;Energia elettrica;24/02/2023
712;6;9999999;2.944,08;5.044,90;ENEL ENERGIA SPA;9072556E0B;22/02/2023;1801;0;229;1;Spese correnti;3;Acquisto di beni e servizi;2;Acquisto di servizi;5;Utenze e canoni;4;Energia elettrica;24/02/2023
713;1;9999999;226,2;507,07;ENEL ENERGIA SPA;9072556E0B;22/02/2023;2973;0;230;1;Spese correnti;3;Acquisto di beni e servizi;2;Acquisto di servizi;5;Utenze e canoni;4;Energia elettrica;24/02/2023
713;2;9999999;280,87;507,07;ENEL ENERGIA SPA;9072556E0B;22/02/2023;2973;0;230;1;Spese correnti;3;Acquisto di beni e servizi;2;Acquisto di servizi;5;Utenze e canoni;4;Energia elettrica;24/02/2023
714;1;9999999;169,26;3.515,76;SERENISSIMA RISTORAZIONE SPA;932853027C;22/02/2023;4260;0;731;1;Spese correnti;3;Acquisto di beni e servizi;2;Acquisto di servizi;15;Contratti di servizio pubblico;6;Contratti di servizio per le mense scolastiche;24/02/2023
714;2;9999999;188,6;3.515,76;SERENISSIMA RISTORAZIONE SPA;932853027C;22/02/2023;4260;0;731;1;Spese correnti;3;Acquisto di beni e servizi;2;Acquisto di servizi;15;Contratti di servizio pubblico;6;Contratti di servizio per le mense scolastiche;24/02/2023
714;3;9999999;188,6;3.515,76;SERENISSIMA RISTORAZIONE SPA;932853027C;22/02/2023;4260;0;731;1;Spese correnti;3;Acquisto di beni e servizi;2;Acquisto di servizi;15;Contratti di servizio pubblico;6;Contratti di servizio per le mense scolastiche;24/02/2023
714;4;9999999;575,48;3.515,76;SERENISSIMA RISTORAZIONE SPA;932853027C;22/02/2023;4260;0;731;1;Spese correnti;3;Acquisto di beni e servizi;2;Acquisto di servizi;15;Contratti di servizio pubblico;6;Contratti di servizio per le mense scolastiche;24/02/2023
714;5;9999999;1.078,43;3.515,76;SERENISSIMA RISTORAZIONE SPA;932853027C;22/02/2023;4260;0;731;1;Spese correnti;3;Acquisto di beni e servizi;2;Acquisto di servizi;15;Contratti di servizio pubblico;6;Contratti di servizio per le mense scolastiche;24/02/2023
714;6;9999999;1.315,39;3.515,76;SERENISSIMA RISTORAZIONE SPA;932853027C;22/02/2023;4260;0;731;1;Spese correnti;3;Acquisto di beni e servizi;2;Acquisto di servizi;15;Contratti di servizio pubblico;6;Contratti di servizio per le mense scolastiche;24/02/2023
715;1;9999999;445,57;10.801,78;SERENISSIMA RISTORAZIONE SPA;932853027C;22/02/2023;4261;0;732;1;Spese correnti;3;Acquisto di beni e servizi;2;Acquisto di servizi;15;Contratti di servizio pubblico;6;Contratti di servizio per le mense scolastiche;24/02/2023
715;2;9999999;493,21;10.801,78;SERENISSIMA RISTORAZIONE SPA;932853027C;22/02/2023;4261;0;732;1;Spese correnti;3;Acquisto di beni e servizi;2;Acquisto di servizi;15;Contratti di servizio pubblico;6;Contratti di servizio per le mense scolastiche;24/02/2023
715;3;9999999;669,59;10.801,78;SERENISSIMA RISTORAZIONE SPA;932853027C;22/02/2023;4261;0;732;1;Spese correnti;3;Acquisto di beni e servizi;2;Acquisto di servizi;15;Contratti di servizio pubblico;6;Contratti di servizio per le mense scolastiche;24/02/2023
715;4;9999999;848,02;10.801,78;SERENISSIMA RISTORAZIONE SPA;932853027C;22/02/2023;4261;0;732;1;Spese correnti;3;Acquisto di beni e servizi;2;Acquisto di servizi;15;Contratti di servizio pubblico;6;Contratti di servizio per le mense scolastiche;24/02/2023
715;5;9999999;1.540,66;10.801,78;SERENISSIMA RISTORAZIONE SPA;932853027C;22/02/2023;4261;0;732;1;Spese correnti;3;Acquisto di beni e servizi;2;Acquisto di servizi;15;Contratti di servizio pubblico;6;Contratti di servizio per le mense scolastiche;24/02/2023
715;6;9999999;3.308,70;10.801,78;SERENISSIMA RISTORAZIONE SPA;932853027C;22/02/2023;4261;0;732;1;Spese correnti;3;Acquisto di beni e servizi;2;Acquisto di servizi;15;Contratti di servizio pubblico;6;Contratti di servizio per le mense scolastiche;24/02/2023
715;7;9999999;3.496,03;10.801,78;SERENISSIMA RISTORAZIONE SPA;932853027C;22/02/2023;4261;0;732;1;Spese correnti;3;Acquisto di beni e servizi;2;Acquisto di servizi;15;Contratti di servizio pubblico;6;Contratti di servizio per le mense scolastiche;24/02/2023
716;1;9999999;1.237,84;1.237,84;ENEL ENERGIA SPA;9072556E0B;22/02/2023;4527;0;231;1;Spese correnti;3;Acquisto di beni e servizi;2;Acquisto di servizi;5;Utenze e canoni;4;Energia elettrica;24/02/2023
717;1;9999999;60,78;60,78;ENEL ENERGIA SPA;9072556E0B;22/02/2023;4686;1;232;1;Spese correnti;3;Acquisto di beni e servizi;2;Acquisto di servizi;5;Utenze e canoni;4;Energia elettrica;24/02/2023
718;1;9999999;9,72;5.965,30;ENEL ENERGIA SPA;9072556E0B;22/02/2023;5930;0;186;1;Spese correnti;3;Acquisto di beni e servizi;2;Acquisto di servizi;5;Utenze e canoni;4;Energia elettrica;24/02/2023
718;2;9999999;17,36;5.965,30;ENEL ENERGIA SPA;9072556E0B;22/02/2023;5930;0;186;1;Spese correnti;3;Acquisto di beni e servizi;2;Acquisto di servizi;5;Utenze e canoni;4;Energia elettrica;24/02/2023
718;3;9999999;19,09;5.965,30;ENEL ENERGIA SPA;9072556E0B;22/02/2023;5930;0;186;1;Spese correnti;3;Acquisto di beni e servizi;2;Acquisto di servizi;5;Utenze e canoni;4;Energia elettrica;24/02/2023
718;4;9999999;25,72;5.965,30;ENEL ENERGIA SPA;9072556E0B;22/02/2023;5930;0;186;1;Spese correnti;3;Acquisto di beni e servizi;2;Acquisto di servizi;5;Utenze e canoni;4;Energia elettrica;24/02/2023
718;5;9999999;36,75;5.965,30;ENEL ENERGIA SPA;9072556E0B;22/02/2023;5930;0;186;1;Spese correnti;3;Acquisto di beni e servizi;2;Acquisto di servizi;5;Utenze e canoni;4;Energia elettrica;24/02/2023
718;6;9999999;40,44;5.965,30;ENEL ENERGIA SPA;9072556E0B;22/02/2023;5930;0;186;1;Spese correnti;3;Acquisto di beni e servizi;2;Acquisto di servizi;5;Utenze e canoni;4;Energia elettrica;24/02/2023
718;7;9999999;46,46;5.965,30;ENEL ENERGIA SPA;9072556E0B;22/02/2023;5930;0;186;1;Spese correnti;3;Acquisto di beni e servizi;2;Acquisto di servizi;5;Utenze e canoni;4;Energia elettrica;24/02/2023
718;8;9999999;46,46;5.965,30;ENEL ENERGIA SPA;9072556E0B;22/02/2023;5930;0;186;1;Spese correnti;3;Acquisto di beni e servizi;2;Acquisto di servizi;5;Utenze e canoni;4;Energia elettrica;24/02/2023
718;9;9999999;50,33;5.965,30;ENEL ENERGIA SPA;9072556E0B;22/02/2023;5930;0;186;1;Spese correnti;3;Acquisto di beni e servizi;2;Acquisto di servizi;5;Utenze e canoni;4;Energia elettrica;24/02/2023
718;10;9999999;52,16;5.965,30;ENEL ENERGIA SPA;9072556E0B;22/02/2023;5930;0;186;1;Spese correnti;3;Acquisto di beni e servizi;2;Acquisto di servizi;5;Utenze e canoni;4;Energia elettrica;24/02/2023
718;11;9999999;56,27;5.965,30;ENEL ENERGIA SPA;9072556E0B;22/02/2023;5930;0;186;1;Spese correnti;3;Acquisto di beni e servizi;2;Acquisto di servizi;5;Utenze e canoni;4;Energia elettrica;24/02/2023
718;12;9999999;60,68;5.965,30;ENEL ENERGIA SPA;9072556E0B;22/02/2023;5930;0;186;1;Spese correnti;3;Acquisto di beni e servizi;2;Acquisto di servizi;5;Utenze e canoni;4;Energia elettrica;24/02/2023
718;13;9999999;64,34;5.965,30;ENEL ENERGIA SPA;9072556E0B;22/02/2023;5930;0;186;1;Spese correnti;3;Acquisto di beni e servizi;2;Acquisto di servizi;5;Utenze e canoni;4;Energia elettrica;24/02/2023
718;14;9999999;69,98;5.965,30;ENEL ENERGIA SPA;9072556E0B;22/02/2023;5930;0;186;1;Spese correnti;3;Acquisto di beni e servizi;2;Acquisto di servizi;5;Utenze e canoni;4;Energia elettrica;24/02/2023
718;15;9999999;70,27;5.965,30;ENEL ENERGIA SPA;9072556E0B;22/02/2023;5930;0;186;1;Spese correnti;3;Acquisto di beni e servizi;2;Acquisto di servizi;5;Utenze e canoni;4;Energia elettrica;24/02/2023
718;16;9999999;71,63;5.965,30;ENEL ENERGIA SPA;9072556E0B;22/02/2023;5930;0;186;1;Spese correnti;3;Acquisto di beni e servizi;2;Acquisto di servizi;5;Utenze e canoni;4;Energia elettrica;24/02/2023
718;17;9999999;82,31;5.965,30;ENEL ENERGIA SPA;9072556E0B;22/02/2023;5930;0;186;1;Spese correnti;3;Acquisto di beni e servizi;2;Acquisto di servizi;5;Utenze e canoni;4;Energia elettrica;24/02/2023
718;18;9999999;87,32;5.965,30;ENEL ENERGIA SPA;9072556E0B;22/02/2023;5930;0;186;1;Spese correnti;3;Acquisto di beni e servizi;2;Acquisto di servizi;5;Utenze e canoni;4;Energia elettrica;24/02/2023
718;19;9999999;94,28;5.965,30;ENEL ENERGIA SPA;9072556E0B;22/02/2023;5930;0;186;1;Spese correnti;3;Acquisto di beni e servizi;2;Acquisto di servizi;5;Utenze e canoni;4;Energia elettrica;24/02/2023
718;20;9999999;95,14;5.965,30;ENEL ENERGIA SPA;9072556E0B;22/02/2023;5930;0;186;1;Spese correnti;3;Acquisto di beni e servizi;2;Acquisto di servizi;5;Utenze e canoni;4;Energia elettrica;24/02/2023
718;21;9999999;117,36;5.965,30;ENEL ENERGIA SPA;9072556E0B;22/02/2023;5930;0;186;1;Spese correnti;3;Acquisto di beni e servizi;2;Acquisto di servizi;5;Utenze e canoni;4;Energia elettrica;24/02/2023
718;22;9999999;131,63;5.965,30;ENEL ENERGIA SPA;9072556E0B;22/02/2023;5930;0;186;1;Spese correnti;3;Acquisto di beni e servizi;2;Acquisto di servizi;5;Utenze e canoni;4;Energia elettrica;24/02/2023
718;23;9999999;134,09;5.965,30;ENEL ENERGIA SPA;9072556E0B;22/02/2023;5930;0;186;1;Spese correnti;3;Acquisto di beni e servizi;2;Acquisto di servizi;5;Utenze e canoni;4;Energia elettrica;24/02/2023
718;24;9999999;136,71;5.965,30;ENEL ENERGIA SPA;9072556E0B;22/02/2023;5930;0;186;1;Spese correnti;3;Acquisto di beni e servizi;2;Acquisto di servizi;5;Utenze e canoni;4;Energia elettrica;24/02/2023
718;25;9999999;142;5.965,30;ENEL ENERGIA SPA;9072556E0B;22/02/2023;5930;0;186;1;Spese correnti;3;Acquisto di beni e servizi;2;Acquisto di servizi;5;Utenze e canoni;4;Energia elettrica;24/02/2023
718;26;9999999;151,4;5.965,30;ENEL ENERGIA SPA;9072556E0B;22/02/2023;5930;0;186;1;Spese correnti;3;Acquisto di beni e servizi;2;Acquisto di servizi;5;Utenze e canoni;4;Energia elettrica;24/02/2023
718;27;9999999;167,35;5.965,30;ENEL ENERGIA SPA;9072556E0B;22/02/2023;5930;0;186;1;Spese correnti;3;Acquisto di beni e servizi;2;Acquisto di servizi;5;Utenze e canoni;4;Energia elettrica;24/02/2023
718;28;9999999;173,44;5.965,30;ENEL ENERGIA SPA;9072556E0B;22/02/2023;5930;0;186;1;Spese correnti;3;Acquisto di beni e servizi;2;Acquisto di servizi;5;Utenze e canoni;4;Energia elettrica;24/02/2023
718;29;9999999;201,08;5.965,30;ENEL ENERGIA SPA;9072556E0B;22/02/2023;5930;0;186;1;Spese correnti;3;Acquisto di beni e servizi;2;Acquisto di servizi;5;Utenze e canoni;4;Energia elettrica;24/02/2023
718;30;9999999;223,74;5.965,30;ENEL ENERGIA SPA;9072556E0B;22/02/2023;5930;0;186;1;Spese correnti;3;Acquisto di beni e servizi;2;Acquisto di servizi;5;Utenze e canoni;4;Energia elettrica;24/02/2023
718;31;9999999;279,76;5.965,30;ENEL ENERGIA SPA;9072556E0B;22/02/2023;5930;0;186;1;Spese correnti;3;Acquisto di beni e servizi;2;Acquisto di servizi;5;Utenze e canoni;4;Energia elettrica;24/02/2023
718;32;9999999;292,45;5.965,30;ENEL ENERGIA SPA;9072556E0B;22/02/2023;5930;0;186;1;Spese correnti;3;Acquisto di beni e servizi;2;Acquisto di servizi;5;Utenze e canoni;4;Energia elettrica;24/02/2023
718;33;9999999;297,18;5.965,30;ENEL ENERGIA SPA;9072556E0B;22/02/2023;5930;0;186;1;Spese correnti;3;Acquisto di beni e servizi;2;Acquisto di servizi;5;Utenze e canoni;4;Energia elettrica;24/02/2023
718;34;9999999;298,79;5.965,30;ENEL ENERGIA SPA;9072556E0B;22/02/2023;5930;0;186;1;Spese correnti;3;Acquisto di beni e servizi;2;Acquisto di servizi;5;Utenze e canoni;4;Energia elettrica;24/02/2023
718;35;9999999;304,77;5.965,30;ENEL ENERGIA SPA;9072556E0B;22/02/2023;5930;0;186;1;Spese correnti;3;Acquisto di beni e servizi;2;Acquisto di servizi;5;Utenze e canoni;4;Energia elettrica;24/02/2023
718;36;9999999;313,78;5.965,30;ENEL ENERGIA SPA;9072556E0B;22/02/2023;5930;0;186;1;Spese correnti;3;Acquisto di beni e servizi;2;Acquisto di servizi;5;Utenze e canoni;4;Energia elettrica;24/02/2023
718;37;9999999;320,13;5.965,30;ENEL ENERGIA SPA;9072556E0B;22/02/2023;5930;0;186;1;Spese correnti;3;Acquisto di beni e servizi;2;Acquisto di servizi;5;Utenze e canoni;4;Energia elettrica;24/02/2023
718;38;9999999;371,25;5.965,30;ENEL ENERGIA SPA;9072556E0B;22/02/2023;5930;0;186;1;Spese correnti;3;Acquisto di beni e servizi;2;Acquisto di servizi;5;Utenze e canoni;4;Energia elettrica;24/02/2023
718;39;9999999;403,94;5.965,30;ENEL ENERGIA SPA;9072556E0B;22/02/2023;5930;0;186;1;Spese correnti;3;Acquisto di beni e servizi;2;Acquisto di servizi;5;Utenze e canoni;4;Energia elettrica;24/02/2023
718;40;9999999;407,74;5.965,30;ENEL ENERGIA SPA;9072556E0B;22/02/2023;5930;0;186;1;Spese correnti;3;Acquisto di beni e servizi;2;Acquisto di servizi;5;Utenze e canoni;4;Energia elettrica;24/02/2023
719;1;9999999;421,84;41.716,19;ENEL ENERGIA SPA;9072556E0B;22/02/2023;5930;0;186;1;Spese correnti;3;Acquisto di beni e servizi;2;Acquisto di servizi;5;Utenze e canoni;4;Energia elettrica;24/02/2023
719;2;9999999;459,48;41.716,19;ENEL ENERGIA SPA;9072556E0B;22/02/2023;5930;0;186;1;Spese correnti;3;Acquisto di beni e servizi;2;Acquisto di servizi;5;Utenze e canoni;4;Energia elettrica;24/02/2023
719;3;9999999;460,1;41.716,19;ENEL ENERGIA SPA;9072556E0B;22/02/2023;5930;0;186;1;Spese correnti;3;Acquisto di beni e servizi;2;Acquisto di servizi;5;Utenze e canoni;4;Energia elettrica;24/02/2023
719;4;9999999;467,24;41.716,19;ENEL ENERGIA SPA;9072556E0B;22/02/2023;5930;0;186;1;Spese correnti;3;Acquisto di beni e servizi;2;Acquisto di servizi;5;Utenze e canoni;4;Energia elettrica;24/02/2023
719;5;9999999;481,19;41.716,19;ENEL ENERGIA SPA;9072556E0B;22/02/2023;5930;0;186;1;Spese correnti;3;Acquisto di beni e servizi;2;Acquisto di servizi;5;Utenze e canoni;4;Energia elettrica;24/02/2023
719;6;9999999;484,41;41.716,19;ENEL ENERGIA SPA;9072556E0B;22/02/2023;5930;0;186;1;Spese correnti;3;Acquisto di beni e servizi;2;Acquisto di servizi;5;Utenze e canoni;4;Energia elettrica;24/02/2023
719;7;9999999;514,85;41.716,19;ENEL ENERGIA SPA;9072556E0B;22/02/2023;5930;0;186;1;Spese correnti;3;Acquisto di beni e servizi;2;Acquisto di servizi;5;Utenze e canoni;4;Energia elettrica;24/02/2023
719;8;9999999;530,9;41.716,19;ENEL ENERGIA SPA;9072556E0B;22/02/2023;5930;0;186;1;Spese correnti;3;Acquisto di beni e servizi;2;Acquisto di servizi;5;Utenze e canoni;4;Energia elettrica;24/02/2023
719;9;9999999;538,76;41.716,19;ENEL ENERGIA SPA;9072556E0B;22/02/2023;5930;0;186;1;Spese correnti;3;Acquisto di beni e servizi;2;Acquisto di servizi;5;Utenze e canoni;4;Energia elettrica;24/02/2023
719;10;9999999;554,15;41.716,19;ENEL ENERGIA SPA;9072556E0B;22/02/2023;5930;0;186;1;Spese correnti;3;Acquisto di beni e servizi;2;Acquisto di servizi;5;Utenze e canoni;4;Energia elettrica;24/02/2023
719;11;9999999;574,28;41.716,19;ENEL ENERGIA SPA;9072556E0B;22/02/2023;5930;0;186;1;Spese correnti;3;Acquisto di beni e servizi;2;Acquisto di servizi;5;Utenze e canoni;4;Energia elettrica;24/02/2023
719;12;9999999;598,62;41.716,19;ENEL ENERGIA SPA;9072556E0B;22/02/2023;5930;0;186;1;Spese correnti;3;Acquisto di beni e servizi;2;Acquisto di servizi;5;Utenze e canoni;4;Energia elettrica;24/02/2023
719;13;9999999;665,28;41.716,19;ENEL ENERGIA SPA;9072556E0B;22/02/2023;5930;0;186;1;Spese correnti;3;Acquisto di beni e servizi;2;Acquisto di servizi;5;Utenze e canoni;4;Energia elettrica;24/02/2023
719;14;9999999;674,98;41.716,19;ENEL ENERGIA SPA;9072556E0B;22/02/2023;5930;0;186;1;Spese correnti;3;Acquisto di beni e servizi;2;Acquisto di servizi;5;Utenze e canoni;4;Energia elettrica;24/02/2023
719;15;9999999;708,58;41.716,19;ENEL ENERGIA SPA;9072556E0B;22/02/2023;5930;0;186;1;Spese correnti;3;Acquisto di beni e servizi;2;Acquisto di servizi;5;Utenze e canoni;4;Energia elettrica;24/02/2023
719;16;9999999;773,83;41.716,19;ENEL ENERGIA SPA;9072556E0B;22/02/2023;5930;0;186;1;Spese correnti;3;Acquisto di beni e servizi;2;Acquisto di servizi;5;Utenze e canoni;4;Energia elettrica;24/02/2023
719;17;9999999;778,97;41.716,19;ENEL ENERGIA SPA;9072556E0B;22/02/2023;5930;0;186;1;Spese correnti;3;Acquisto di beni e servizi;2;Acquisto di servizi;5;Utenze e canoni;4;Energia elettrica;24/02/2023
719;18;9999999;787,3;41.716,19;ENEL ENERGIA SPA;9072556E0B;22/02/2023;5930;0;186;1;Spese correnti;3;Acquisto di beni e servizi;2;Acquisto di servizi;5;Utenze e canoni;4;Energia elettrica;24/02/2023
719;19;9999999;835,65;41.716,19;ENEL ENERGIA SPA;9072556E0B;22/02/2023;5930;0;186;1;Spese correnti;3;Acquisto di beni e servizi;2;Acquisto di servizi;5;Utenze e canoni;4;Energia elettrica;24/02/2023
719;20;9999999;877,31;41.716,19;ENEL ENERGIA SPA;9072556E0B;22/02/2023;5930;0;186;1;Spese correnti;3;Acquisto di beni e servizi;2;Acquisto di servizi;5;Utenze e canoni;4;Energia elettrica;24/02/2023
719;21;9999999;886,39;41.716,19;ENEL ENERGIA SPA;9072556E0B;22/02/2023;5930;0;186;1;Spese correnti;3;Acquisto di beni e servizi;2;Acquisto di servizi;5;Utenze e canoni;4;Energia elettrica;24/02/2023
719;22;9999999;897,41;41.716,19;ENEL ENERGIA SPA;9072556E0B;22/02/2023;5930;0;186;1;Spese correnti;3;Acquisto di beni e servizi;2;Acquisto di servizi;5;Utenze e canoni;4;Energia elettrica;24/02/2023
719;23;9999999;1.032,82;41.716,19;ENEL ENERGIA SPA;9072556E0B;22/02/2023;5930;0;186;1;Spese correnti;3;Acquisto di beni e servizi;2;Acquisto di servizi;5;Utenze e canoni;4;Energia elettrica;24/02/2023
719;24;9999999;1.108,76;41.716,19;ENEL ENERGIA SPA;9072556E0B;22/02/2023;5930;0;186;1;Spese correnti;3;Acquisto di beni e servizi;2;Acquisto di servizi;5;Utenze e canoni;4;Energia elettrica;24/02/2023
719;25;9999999;1.135,15;41.716,19;ENEL ENERGIA SPA;9072556E0B;22/02/2023;5930;0;186;1;Spese correnti;3;Acquisto di beni e servizi;2;Acquisto di servizi;5;Utenze e canoni;4;Energia elettrica;24/02/2023
719;26;9999999;1.195,78;41.716,19;ENEL ENERGIA SPA;9072556E0B;22/02/2023;5930;0;186;1;Spese correnti;3;Acquisto di beni e servizi;2;Acquisto di servizi;5;Utenze e canoni;4;Energia elettrica;24/02/2023
719;27;9999999;1.285,48;41.716,19;ENEL ENERGIA SPA;9072556E0B;22/02/2023;5930;0;186;1;Spese correnti;3;Acquisto di beni e servizi;2;Acquisto di servizi;5;Utenze e canoni;4;Energia elettrica;24/02/2023
719;28;9999999;1.510,60;41.716,19;ENEL ENERGIA SPA;9072556E0B;22/02/2023;5930;0;186;1;Spese correnti;3;Acquisto di beni e servizi;2;Acquisto di servizi;5;Utenze e canoni;4;Energia elettrica;24/02/2023
719;29;9999999;1.697,17;41.716,19;ENEL ENERGIA SPA;9072556E0B;22/02/2023;5930;0;186;1;Spese correnti;3;Acquisto di beni e servizi;2;Acquisto di servizi;5;Utenze e canoni;4;Energia elettrica;24/02/2023
719;30;9999999;1.890,22;41.716,19;ENEL ENERGIA SPA;9072556E0B;22/02/2023;5930;0;186;1;Spese correnti;3;Acquisto di beni e servizi;2;Acquisto di servizi;5;Utenze e canoni;4;Energia elettrica;24/02/2023
719;31;9999999;1.902,31;41.716,19;ENEL ENERGIA SPA;9072556E0B;22/02/2023;5930;0;186;1;Spese correnti;3;Acquisto di beni e servizi;2;Acquisto di servizi;5;Utenze e canoni;4;Energia elettrica;24/02/2023
719;32;9999999;1.938,86;41.716,19;ENEL ENERGIA SPA;9072556E0B;22/02/2023;5930;0;186;1;Spese correnti;3;Acquisto di beni e servizi;2;Acquisto di servizi;5;Utenze e canoni;4;Energia elettrica;24/02/2023
719;33;9999999;2.195,07;41.716,19;ENEL ENERGIA SPA;9072556E0B;22/02/2023;5930;0;186;1;Spese correnti;3;Acquisto di beni e servizi;2;Acquisto di servizi;5;Utenze e canoni;4;Energia elettrica;24/02/2023
719;34;9999999;2.421,31;41.716,19;ENEL ENERGIA SPA;9072556E0B;22/02/2023;5930;0;186;1;Spese correnti;3;Acquisto di beni e servizi;2;Acquisto di servizi;5;Utenze e canoni;4;Energia elettrica;24/02/2023
719;35;9999999;2.449,81;41.716,19;ENEL ENERGIA SPA;9072556E0B;22/02/2023;5930;0;186;1;Spese correnti;3;Acquisto di beni e servizi;2;Acquisto di servizi;5;Utenze e canoni;4;Energia elettrica;24/02/2023
719;36;9999999;2.860,67;41.716,19;ENEL ENERGIA SPA;9072556E0B;22/02/2023;5930;0;186;1;Spese correnti;3;Acquisto di beni e servizi;2;Acquisto di servizi;5;Utenze e canoni;4;Energia elettrica;24/02/2023
719;37;9999999;3.120,66;41.716,19;ENEL ENERGIA SPA;9072556E0B;22/02/2023;5930;0;186;1;Spese correnti;3;Acquisto di beni e servizi;2;Acquisto di servizi;5;Utenze e canoni;4;Energia elettrica;24/02/2023
720;1;9999999;6,93;1.190,18;ENEL ENERGIA SPA;9072556E0B;22/02/2023;5931;0;187;1;Spese correnti;3;Acquisto di beni e servizi;2;Acquisto di servizi;5;Utenze e canoni;4;Energia elettrica;24/02/2023
720;2;9999999;10,86;1.190,18;ENEL ENERGIA SPA;9072556E0B;22/02/2023;5931;0;187;1;Spese correnti;3;Acquisto di beni e servizi;2;Acquisto di servizi;5;Utenze e canoni;4;Energia elettrica;24/02/2023
720;3;9999999;53,7;1.190,18;ENEL ENERGIA SPA;9072556E0B;22/02/2023;5931;0;187;1;Spese correnti;3;Acquisto di beni e servizi;2;Acquisto di servizi;5;Utenze e canoni;4;Energia elettrica;24/02/2023
720;4;9999999;62,89;1.190,18;ENEL ENERGIA SPA;9072556E0B;22/02/2023;5931;0;187;1;Spese correnti;3;Acquisto di beni e servizi;2;Acquisto di servizi;5;Utenze e canoni;4;Energia elettrica;24/02/2023
720;5;9999999;64,11;1.190,18;ENEL ENERGIA SPA;9072556E0B;22/02/2023;5931;0;187;1;Spese correnti;3;Acquisto di beni e servizi;2;Acquisto di servizi;5;Utenze e canoni;4;Energia elettrica;24/02/2023
720;6;9999999;111,46;1.190,18;ENEL ENERGIA SPA;9072556E0B;22/02/2023;5931;0;187;1;Spese correnti;3;Acquisto di beni e servizi;2;Acquisto di servizi;5;Utenze e canoni;4;Energia elettrica;24/02/2023
720;7;9999999;139,65;1.190,18;ENEL ENERGIA SPA;9072556E0B;22/02/2023;5931;0;187;1;Spese correnti;3;Acquisto di beni e servizi;2;Acquisto di servizi;5;Utenze e canoni;4;Energia elettrica;24/02/2023
720;8;9999999;147,79;1.190,18;ENEL ENERGIA SPA;9072556E0B;22/02/2023;5931;0;187;1;Spese correnti;3;Acquisto di beni e servizi;2;Acquisto di servizi;5;Utenze e canoni;4;Energia elettrica;24/02/2023
720;9;9999999;592,79;1.190,18;ENEL ENERGIA SPA;9072556E0B;22/02/2023;5931;0;187;1;Spese correnti;3;Acquisto di beni e servizi;2;Acquisto di servizi;5;Utenze e canoni;4;Energia elettrica;24/02/2023
721;1;9999999;57,85;120,38;ENEL ENERGIA SPA;9072556E0B;22/02/2023;6461;0;233;1;Spese correnti;3;Acquisto di beni e servizi;2;Acquisto di servizi;5;Utenze e canoni;4;Energia elettrica;24/02/2023
721;2;9999999;62,53;120,38;ENEL ENERGIA SPA;9072556E0B;22/02/2023;6461;0;233;1;Spese correnti;3;Acquisto di beni e servizi;2;Acquisto di servizi;5;Utenze e canoni;4;Energia elettrica;24/02/2023
722;1;9999999;178,5;1.717,08;SERENISSIMA RISTORAZIONE SPA;932853027C;22/02/2023;7553;1;733;1;Spese correnti;3;Acquisto di beni e servizi;2;Acquisto di servizi;15;Contratti di servizio pubblico;6;Contratti di servizio per le mense scolastiche;24/02/2023
722;2;9999999;668,31;1.717,08;SERENISSIMA RISTORAZIONE SPA;932853027C;22/02/2023;7553;1;733;1;Spese correnti;3;Acquisto di beni e servizi;2;Acquisto di servizi;15;Contratti di servizio pubblico;6;Contratti di servizio per le mense scolastiche;24/02/2023
722;3;9999999;870,27;1.717,08;SERENISSIMA RISTORAZIONE SPA;932853027C;22/02/2023;7553;1;733;1;Spese correnti;3;Acquisto di beni e servizi;2;Acquisto di servizi;15;Contratti di servizio pubblico;6;Contratti di servizio per le mense scolastiche;24/02/2023
723;1;9999999;37,7;37,7;ACLI SERVICE TREVISO SRL;ZC721197FD;22/02/2023;8204;3;1353;1;Spese correnti;3;Acquisto di beni e servizi;2;Acquisto di servizi;99;Altri servizi;999;Altri servizi diversi n.a.c.;24/02/2023
724;1;9999999;12.028,64;12.028,64;CODESS SOCIALE-COOP. ONLUS;9120417633;22/02/2023;8250;0;578;1;Spese correnti;3;Acquisto di beni e servizi;2;Acquisto di servizi;15;Contratti di servizio pubblico;9;Contratti di servizio di assistenza sociale domiciliare;24/02/2023
725;1;9999999;2.379,00;2.379,00;UFFICIOSTILE S.P.A.;Z3439444B1;22/02/2023;10785;2;1308;2;Spese in conto capitale;2;Investimenti fissi lordi e acquisto di terreni;1;Beni materiali;3;Mobili e arredi;1;Mobili e arredi per ufficio;24/02/2023
726;1;9999999;3.269,60;3.269,60;TECNOCLIMAT SRL;ZD0390F76A;22/02/2023;15010;0;1205;2;Spese in conto capitale;2;Investimenti fissi lordi e acquisto di terreni;1;Beni materiali;9;Beni immobili;16;Impianti sportivi;24/02/2023
727;1;9999999;8.566,94;8.566,94;CODESS SOCIALE-COOP. ONLUS;8855832FBD;22/02/2023;7560;1;771;1;Spese correnti;3;Acquisto di beni e servizi;2;Acquisto di servizi;15;Contratti di servizio pubblico;10;Contratti di servizio di asilo nido;24/02/2023
728;1;9999999;11.977,73;11.977,73;CODESS SOCIALE-COOP. ONLUS;8855832FBD;22/02/2023;7560;1;771;1;Spese correnti;3;Acquisto di beni e servizi;2;Acquisto di servizi;15;Contratti di servizio pubblico;10;Contratti di servizio di asilo nido;24/02/2023
730;1;9999999;30;30;A.N.A.C.;9,29E+10;23/02/2023;1798;0;618;1;Spese correnti;3;Acquisto di beni e servizi;2;Acquisto di servizi;19;Servizi informatici e di telecomunicazioni;999;Altri servizi informatici e di telecomunicazioni n.a.c.;24/02/2023
731;1;9999999;30;30;A.N.A.C.;9403598E8B;23/02/2023;15904;0;812;2;Spese in conto capitale;2;Investimenti fissi lordi e acquisto di terreni;1;Beni materiali;9;Beni immobili;12;Infrastrutture stradali;24/02/2023
732;1;9999999;375;375;A.N.A.C.;9487674444;23/02/2023;13217;0;1346;2;Spese in conto capitale;2;Investimenti fissi lordi e acquisto di terreni;1;Beni materiali;9;Beni immobili;3;Fabbricati ad uso scolastico;24/02/2023
733;1;9999999;30;30;A.N.A.C.;93327236A7;23/02/2023;15905;4;708;2;Spese in conto capitale;2;Investimenti fissi lordi e acquisto di terreni;1;Beni materiali;9;Beni immobili;12;Infrastrutture stradali;24/02/2023
734;1;9999999;913,54;913,54;Societa' Cooperativa PORTABAGAGLI MULTISERVICE;ZA739E5401;23/02/2023;1185;17;248;1;Spese correnti;3;Acquisto di beni e servizi;2;Acquisto di servizi;9;Manutenzione ordinaria e riparazioni;8;Manutenzione ordinaria e riparazioni di beni immobili;27/02/2023
735;1;9999999;298,73;298,73;CONTARINA S.P.A.;ZDA34B8D27;23/02/2023;1194;0;130;1;Spese correnti;3;Acquisto di beni e servizi;2;Acquisto di servizi;5;Utenze e canoni;999;Utenze e canoni per altri servizi n.a.c.;27/02/2023
736;1;9999999;4.559,87;4.559,87;Societa' Cooperativa PORTABAGAGLI MULTISERVICE;Z323853107;23/02/2023;1344;1;1003;1;Spese correnti;3;Acquisto di beni e servizi;2;Acquisto di servizi;99;Altri servizi;999;Altri servizi diversi n.a.c.;27/02/2023
737;1;9999999;1.815,73;1.815,73;TELECOM ITALIA S.P.A.;9,29E+10;23/02/2023;1801;1;610;1;Spese correnti;3;Acquisto di beni e servizi;2;Acquisto di servizi;5;Utenze e canoni;999;Utenze e canoni per altri servizi n.a.c.;27/02/2023
738;1;9999999;488,32;488,32;TELECOM ITALIA S.P.A.;Z523435997;23/02/2023;1801;1;235;1;Spese correnti;3;Acquisto di beni e servizi;2;Acquisto di servizi;5;Utenze e canoni;2;Telefonia mobile;27/02/2023
739;1;9999999;489,06;489,06;TELECOM ITALIA S.P.A.;9,29E+10;23/02/2023;1801;1;610;1;Spese correnti;3;Acquisto di beni e servizi;2;Acquisto di servizi;5;Utenze e canoni;999;Utenze e canoni per altri servizi n.a.c.;27/02/2023
740;1;9999999;268,4;268,4;CI.TI.ESSE S.R.L.;ZE639340CD;23/02/2023;2344;1;1337;1;Spese correnti;3;Acquisto di beni e servizi;2;Acquisto di servizi;9;Manutenzione ordinaria e riparazioni;5;Manutenzione ordinaria e riparazioni di attrezzature;27/02/2023
741;1;9999999;194,26;194,26;TELECOM ITALIA S.P.A.;9,29E+10;23/02/2023;2790;1;613;1;Spese correnti;3;Acquisto di beni e servizi;2;Acquisto di servizi;5;Utenze e canoni;999;Utenze e canoni per altri servizi n.a.c.;27/02/2023
742;1;9999999;97,58;97,58;TELECOM ITALIA S.P.A.;9,29E+10;23/02/2023;2790;1;613;1;Spese correnti;3;Acquisto di beni e servizi;2;Acquisto di servizi;5;Utenze e canoni;999;Utenze e canoni per altri servizi n.a.c.;27/02/2023
743;1;9999999;73,49;73,49;TELECOM ITALIA S.P.A.;9,29E+10;23/02/2023;2792;1;611;1;Spese correnti;3;Acquisto di beni e servizi;2;Acquisto di servizi;5;Utenze e canoni;999;Utenze e canoni per altri servizi n.a.c.;27/02/2023
744;1;9999999;59,39;59,39;TELECOM ITALIA S.P.A.;9,29E+10;23/02/2023;2792;1;611;1;Spese correnti;3;Acquisto di beni e servizi;2;Acquisto di servizi;5;Utenze e canoni;999;Utenze e canoni per altri servizi n.a.c.;27/02/2023
745;1;9999999;1.201,14;1.201,14;TELECOM ITALIA S.P.A.;9,29E+10;23/02/2023;2973;1;612;1;Spese correnti;3;Acquisto di beni e servizi;2;Acquisto di servizi;5;Utenze e canoni;999;Utenze e canoni per altri servizi n.a.c.;27/02/2023
746;1;9999999;640,29;640,29;TELECOM ITALIA S.P.A.;9,29E+10;23/02/2023;2973;1;612;1;Spese correnti;3;Acquisto di beni e servizi;2;Acquisto di servizi;5;Utenze e canoni;999;Utenze e canoni per altri servizi n.a.c.;27/02/2023
747;1;9999999;65;65;LAMPS PREMIAZIONI di MAZZUIA MICHELE;ZB1394F77E;23/02/2023;5180;0;1350;1;Spese correnti;3;Acquisto di beni e servizi;1;Acquisto di beni;2;Altri beni di consumo;1;Carta, cancelleria e stampati;27/02/2023
748;1;9999999;151,04;302,08;TELECOM ITALIA S.P.A.;9,29E+10;23/02/2023;6642;0;838;1;Spese correnti;3;Acquisto di beni e servizi;2;Acquisto di servizi;5;Utenze e canoni;1;Telefonia fissa;27/02/2023
748;2;9999999;151,04;302,08;TELECOM ITALIA S.P.A.;9,29E+10;23/02/2023;6642;0;838;1;Spese correnti;3;Acquisto di beni e servizi;2;Acquisto di servizi;5;Utenze e canoni;1;Telefonia fissa;27/02/2023
749;1;9999999;8.118,45;29.470,68;CONTARINA S.P.A.; ;23/02/2023;7430;0;868;1;Spese correnti;3;Acquisto di beni e servizi;2;Acquisto di servizi;9;Manutenzione ordinaria e riparazioni;8;Manutenzione ordinaria e riparazioni di beni immobili;27/02/2023
749;2;9999999;8.615,69;29.470,68;CONTARINA S.P.A.; ;23/02/2023;7430;0;868;1;Spese correnti;3;Acquisto di beni e servizi;2;Acquisto di servizi;9;Manutenzione ordinaria e riparazioni;8;Manutenzione ordinaria e riparazioni di beni immobili;27/02/2023
749;3;9999999;12.736,54;29.470,68;CONTARINA S.P.A.; ;23/02/2023;7430;0;868;1;Spese correnti;3;Acquisto di beni e servizi;2;Acquisto di servizi;9;Manutenzione ordinaria e riparazioni;8;Manutenzione ordinaria e riparazioni di beni immobili;27/02/2023
750;1;9999999;489,12;489,12;CONTARINA S.P.A.; ;23/02/2023;7433;0;869;1;Spese correnti;3;Acquisto di beni e servizi;2;Acquisto di servizi;99;Altri servizi;999;Altri servizi diversi n.a.c.;27/02/2023
751;1;9999999;24,4;24,4;LINDE MATERIAL HANDLING ITALIA SPA;Z8B370D069;23/02/2023;1344;1;685;1;Spese correnti;3;Acquisto di beni e servizi;2;Acquisto di servizi;99;Altri servizi;999;Altri servizi diversi n.a.c.;27/02/2023
752;1;9999999;183;183;LINDE MATERIAL HANDLING ITALIA SPA;Z8B370D069;23/02/2023;1344;1;685;1;Spese correnti;3;Acquisto di beni e servizi;2;Acquisto di servizi;99;Altri servizi;999;Altri servizi diversi n.a.c.;27/02/2023
756;1;9999999;610;610;T-ZERO S.R.L.;Z01353B0FD;27/02/2023;13200;0;1336;2;Spese in conto capitale;2;Investimenti fissi lordi e acquisto di terreni;1;Beni materiali;9;Beni immobili;3;Fabbricati ad uso scolastico;01/03/2023
757;1;9999999;8.000,00;8.000,00;PARROCCHIA DI S.MARTINO VESCOVO DI SAMBUGHE'; ;27/02/2023;11990;0;17;2;Spese in conto capitale;3;Contributi agli investimenti;4;Contributi agli investimenti a Istituzioni Sociali Private;1;Contributi agli investimenti a Istituzioni Sociali Private;1;Contributi agli investimenti a Istituzioni Sociali Private;01/03/2023
758;1;9999999;7.478,60;7.478,60;OBS SRL;Z363959A6F;27/02/2023;12456;0;1368;2;Spese in conto capitale;2;Investimenti fissi lordi e acquisto di terreni;1;Beni materiali;5;Attrezzature;999;Attrezzature n.a.c.;01/03/2023
760;1;9999999;261;261;FORMEL SRL;ZE538BF1CC;27/02/2023;550;0;1078;1;Spese correnti;3;Acquisto di beni e servizi;2;Acquisto di servizi;4;Acquisto di servizi per formazione e addestramento del personale dell'ente;999;Acquisto di servizi per altre spese per formazione e addestramento n.a.c.;01/03/2023
761;1;9999999;81;81;FORMEL SRL;ZE538BF1CC;27/02/2023;551;0;1079;1;Spese correnti;3;Acquisto di beni e servizi;2;Acquisto di servizi;4;Acquisto di servizi per formazione e addestramento del personale dell'ente;999;Acquisto di servizi per altre spese per formazione e addestramento n.a.c.;01/03/2023
762;1;9999999;3.996,95;3.996,95;ABACO S.P.A.;9,44E+58;27/02/2023;1010;0;1259;1;Spese correnti;3;Acquisto di beni e servizi;2;Acquisto di servizi;3;Aggi di riscossione;999;Altri aggi di riscossione n.a.c.;01/03/2023
763;1;9999999;6.693,96;6.693,96;ABACO S.P.A.;9,44E+58;27/02/2023;1010;0;1259;1;Spese correnti;3;Acquisto di beni e servizi;2;Acquisto di servizi;3;Aggi di riscossione;999;Altri aggi di riscossione n.a.c.;01/03/2023
764;1;9999999;580,56;580,56;OLIVETTI S.P.A. CREDIT MANAGEMENT;7660530556;27/02/2023;1813;0;1183;1;Spese correnti;3;Acquisto di beni e servizi;2;Acquisto di servizi;7;Utilizzo di beni di terzi;4;Noleggi di hardware;01/03/2023
765;1;9999999;16.311,46;16.311,46;ALBERTIN & COMPANY S.R.L.;Z08367460D;27/02/2023;13215;0;1339;2;Spese in conto capitale;2;Investimenti fissi lordi e acquisto di terreni;1;Beni materiali;9;Beni immobili;3;Fabbricati ad uso scolastico;01/03/2023
766;1;9999999;1.220,75;1.220,75;ASSOCIAZIONE PROFESSIONALE IPTS;Z9138E6A1C;28/02/2023;561;0;1194;1;Spese correnti;3;Acquisto di beni e servizi;2;Acquisto di servizi;4;Acquisto di servizi per formazione e addestramento del personale dell'ente;999;Acquisto di servizi per altre spese per formazione e addestramento n.a.c.;03/03/2023
767;1;9999999;1.812,49;1.812,49;ZETA AUTOFFICINA S.N.C. DI ZOGGIA & C.;ZD5392D836;28/02/2023;2346;0;1336;1;Spese correnti;3;Acquisto di beni e servizi;2;Acquisto di servizi;99;Altri servizi;999;Altri servizi diversi n.a.c.;03/03/2023
768;1;9999999;87,96;87,96;CISL VENETO SERVIZI SRL;ZC721197FD;28/02/2023;8204;3;1353;1;Spese correnti;3;Acquisto di beni e servizi;2;Acquisto di servizi;99;Altri servizi;999;Altri servizi diversi n.a.c.;03/03/2023
769;1;9999999;62,83;62,83;IMPRESA VERDE TREVISO-BELLUNO SRL;ZC721197FD;28/02/2023;8204;3;1353;1;Spese correnti;3;Acquisto di beni e servizi;2;Acquisto di servizi;99;Altri servizi;999;Altri servizi diversi n.a.c.;03/03/2023
770;1;9999999;1.573,11;5.788,11;CONSORZIO PROVINCIALE INTESA-CCA SOC.COOP.SOCIALECONSORTILE;9293702D7F;28/02/2023;8208;0;846;1;Spese correnti;3;Acquisto di beni e servizi;2;Acquisto di servizi;99;Altri servizi;999;Altri servizi diversi n.a.c.;03/03/2023
770;2;9999999;4.215,00;5.788,11;CONSORZIO PROVINCIALE INTESA-CCA SOC.COOP.SOCIALECONSORTILE;9293702D7F;28/02/2023;8208;0;846;1;Spese correnti;3;Acquisto di beni e servizi;2;Acquisto di servizi;99;Altri servizi;999;Altri servizi diversi n.a.c.;03/03/2023
771;1;9999999;6.280,59;6.280,59;PRO LOCO PREGANZIOL; ;28/02/2023;5412;0;282;1;Spese correnti;4;Trasferimenti correnti;4;Trasferimenti correnti a Istituzioni Sociali Private;1;Trasferimenti correnti a Istituzioni Sociali Private;1;Trasferimenti correnti a Istituzioni Sociali Private;03/03/2023
772;1;9999999;2.033,00;2.033,00;COND. CA' DEL CAVALIER C/O AMM. TAGLIAPIETRA A.; ;28/02/2023;1198;0;288;1;Spese correnti;3;Acquisto di beni e servizi;2;Acquisto di servizi;5;Utenze e canoni;999;Utenze e canoni per altri servizi n.a.c.;03/03/2023
773;1;9999999;34.342,32;34.342,32;AP RETI GAS S.P.A.; ;28/02/2023;1905;0;289;1;Spese correnti;10;Altre spese correnti;99;Altre spese correnti n.a.c.;99;Altre spese correnti n.a.c.;999;Altre spese correnti n.a.c.;03/03/2023
775;1;9999999;1.249,24;1.249,24;ABACO S.P.A.;9,44E+58;01/03/2023;1010;0;1259;1;Spese correnti;3;Acquisto di beni e servizi;2;Acquisto di servizi;3;Aggi di riscossione;999;Altri aggi di riscossione n.a.c.;03/03/2023
776;1;9999999;42,11;42,11;ABACO S.P.A.;90176575F7;01/03/2023;1010;0;1174;1;Spese correnti;3;Acquisto di beni e servizi;2;Acquisto di servizi;3;Aggi di riscossione;999;Altri aggi di riscossione n.a.c.;03/03/2023
777;1;9999999;2.139,86;2.139,86;BP SRL;Z163742B24;06/03/2023;1185;1;755;1;Spese correnti;3;Acquisto di beni e servizi;2;Acquisto di servizi;9;Manutenzione ordinaria e riparazioni;4;Manutenzione ordinaria e riparazioni di impianti e macchinari;08/03/2023
778;1;9999999;148,69;148,69;BP SRL;Z163742B24;06/03/2023;1185;2;756;1;Spese correnti;3;Acquisto di beni e servizi;2;Acquisto di servizi;9;Manutenzione ordinaria e riparazioni;4;Manutenzione ordinaria e riparazioni di impianti e macchinari;08/03/2023
779;1;9999999;3.999,99;3.999,99;PULITORI ED AFFINI SPA;87752258BF;06/03/2023;1794;0;656;1;Spese correnti;3;Acquisto di beni e servizi;2;Acquisto di servizi;13;Servizi ausiliari per il funzionamento dell'ente;2;Servizi di pulizia e lavanderia;08/03/2023
780;1;9999999;933,15;933,15;BP SRL;Z163742B24;06/03/2023;2760;0;757;1;Spese correnti;3;Acquisto di beni e servizi;2;Acquisto di servizi;9;Manutenzione ordinaria e riparazioni;4;Manutenzione ordinaria e riparazioni di impianti e macchinari;08/03/2023
781;1;9999999;892,9;892,9;BP SRL;Z163742B24;06/03/2023;2770;1;758;1;Spese correnti;3;Acquisto di beni e servizi;2;Acquisto di servizi;9;Manutenzione ordinaria e riparazioni;4;Manutenzione ordinaria e riparazioni di impianti e macchinari;08/03/2023
782;1;9999999;2.488,93;2.488,93;BP SRL;Z163742B24;06/03/2023;2980;1;759;1;Spese correnti;3;Acquisto di beni e servizi;2;Acquisto di servizi;9;Manutenzione ordinaria e riparazioni;4;Manutenzione ordinaria e riparazioni di impianti e macchinari;08/03/2023
783;1;9999999;1.067,00;1.067,00;CAMPIGOTTO FIORI GIARDINI DI CAMPIGOTTO DIEGO;Z99393CAE2;06/03/2023;2980;1;1304;1;Spese correnti;3;Acquisto di beni e servizi;2;Acquisto di servizi;9;Manutenzione ordinaria e riparazioni;12;Manutenzione ordinaria e riparazioni di terreni e beni materiali non prodotti;08/03/2023
784;1;9999999;468,8;468,8;BP SRL;Z163742B24;06/03/2023;4030;0;760;1;Spese correnti;3;Acquisto di beni e servizi;2;Acquisto di servizi;9;Manutenzione ordinaria e riparazioni;4;Manutenzione ordinaria e riparazioni di impianti e macchinari;08/03/2023
785;1;9999999;230,44;230,44;BP SRL;Z163742B24;06/03/2023;4540;0;761;1;Spese correnti;3;Acquisto di beni e servizi;2;Acquisto di servizi;9;Manutenzione ordinaria e riparazioni;4;Manutenzione ordinaria e riparazioni di impianti e macchinari;08/03/2023
786;1;9999999;9,76;9,76;BP SRL;Z163742B24;06/03/2023;4660;0;762;1;Spese correnti;3;Acquisto di beni e servizi;2;Acquisto di servizi;9;Manutenzione ordinaria e riparazioni;4;Manutenzione ordinaria e riparazioni di impianti e macchinari;08/03/2023
787;1;9999999;1.366,40;1.366,40;IDRAULIC-THERM DI MENONCELLO PAOLO;Z3839FD9BA;06/03/2023;4660;0;267;1;Spese correnti;3;Acquisto di beni e servizi;2;Acquisto di servizi;9;Manutenzione ordinaria e riparazioni;8;Manutenzione ordinaria e riparazioni di beni immobili;08/03/2023
788;1;9999999;173,24;173,24;BP SRL;Z163742B24;06/03/2023;4720;0;763;1;Spese correnti;3;Acquisto di beni e servizi;2;Acquisto di servizi;9;Manutenzione ordinaria e riparazioni;4;Manutenzione ordinaria e riparazioni di impianti e macchinari;08/03/2023
789;1;9999999;45,69;45,69;BP SRL;Z163742B24;06/03/2023;5080;0;764;1;Spese correnti;3;Acquisto di beni e servizi;2;Acquisto di servizi;9;Manutenzione ordinaria e riparazioni;4;Manutenzione ordinaria e riparazioni di impianti e macchinari;08/03/2023
790;1;9999999;1.891,00;1.891,00;M2L SRLS;ZFA39B5AFB;06/03/2023;6277;0;210;1;Spese correnti;3;Acquisto di beni e servizi;2;Acquisto di servizi;19;Servizi informatici e di telecomunicazioni;999;Altri servizi informatici e di telecomunicazioni n.a.c.;08/03/2023
791;1;9999999;4.587,46;4.587,46;FELTRIN TIZIANO;ZDC3899949;06/03/2023;1340;0;1028;1;Spese correnti;3;Acquisto di beni e servizi;2;Acquisto di servizi;11;Prestazioni professionali e specialistiche;999;Altre prestazioni professionali e specialistiche n.a.c.;08/03/2023
792;1;9999999;172,92;172,92;DOLOMITI ENERGIA SPA;908782459B;06/03/2023;1346;0;221;1;Spese correnti;3;Acquisto di beni e servizi;2;Acquisto di servizi;5;Utenze e canoni;6;Gas;08/03/2023
793;1;9999999;34,06;5.331,05;DOLOMITI ENERGIA SPA;908782459B;06/03/2023;1801;0;133;1;Spese correnti;3;Acquisto di beni e servizi;2;Acquisto di servizi;5;Utenze e canoni;6;Gas;08/03/2023
793;2;9999999;58,24;5.331,05;DOLOMITI ENERGIA SPA;908782459B;06/03/2023;1801;0;133;1;Spese correnti;3;Acquisto di beni e servizi;2;Acquisto di servizi;5;Utenze e canoni;6;Gas;08/03/2023
793;3;9999999;84,78;5.331,05;DOLOMITI ENERGIA SPA;908782459B;06/03/2023;1801;0;133;1;Spese correnti;3;Acquisto di beni e servizi;2;Acquisto di servizi;5;Utenze e canoni;6;Gas;08/03/2023
793;4;9999999;232,06;5.331,05;DOLOMITI ENERGIA SPA;908782459B;06/03/2023;1801;0;133;1;Spese correnti;3;Acquisto di beni e servizi;2;Acquisto di servizi;5;Utenze e canoni;6;Gas;08/03/2023
